﻿Department family,Entity,Date of payment,Expense type,Expense area,Supplier,Transaction number,Amount in Sterling,Supplier VAT Registration Number
Department of Health,Guys and St Thomas NHS Foundation Trust,09/04/2021,(83400) Office Equipment,(id:4621419) TAP,NHS SUPPLY CHAIN (MAIDSTONE),id:13845954,   8.33
Department of Health,Guys and St Thomas NHS Foundation Trust,01/04/2021,(81200) Medical Surgical Supplies & Equipment,(id:850419) TAP,JOHNSON & JOHNSON MEDICAL LTD,id:13864602    , 855.15
Department of Health,Guys and St Thomas NHS Foundation Trust,01/04/2021,(81200) Medical Surgical Supplies & Equipment,(id:850419) TAP,TPS HEALTHCARE GROUP,id:13884594   , 840.00
Department of Health,Guys and St Thomas NHS Foundation Trust,09/04/2021,(81200) Medical Surgical Supplies & Equipment,(id:850419) TAP,NHS SUPPLY CHAIN (MAIDSTONE),id:13845954,   2.70
Department of Health,Guys and St Thomas NHS Foundation Trust,23/04/2021,(81100) Dressings,(id:850419) TAP,NHS SUPPLY CHAIN (MAIDSTONE),id:13933387   , 114.84
Department of Health,Guys and St Thomas NHS Foundation Trust,23/04/2021,(81200) Medical Surgical Supplies & Equipment,(id:41897) TAP,JOHNSON & JOHNSON MEDICAL LTD,id:13958858, 378.50
Department of Health,Guys and St Thomas NHS Foundation Trust,01/04/2021,(81200) Medical Surgical Supplies & Equipment,(id:41897) TAP,JOHNSON & JOHNSON MEDICAL LTD,id:13882245, 252.34
Department of Health,Guys and St Thomas NHS Foundation Trust,01/04/2021,(81200) Medical Surgical Supplies & Equipment,(id:41897) TAP,CRYOLIFE EUROPA LTD,id:13926794, 630.00
Department of Health,Guys and St Thomas NHS Foundation Trust,28/04/2021,(81200) Medical Surgical Supplies & Equipment,(id:41897) TAP,KEBOMED UK,id:14030797    , 509.40
Department of Health,Guys and St Thomas NHS Foundation Trust,01/04/2021,(81100) Dressings,(id:41897) TAP,ELIS UK LIMITED,id:13948074  , 529.70
Department of Health,Guys and St Thomas NHS Foundation Trust,23/04/2021,(81100) Dressings,(id:41897) TAP,ELIS UK LIMITED,id:13969734  , 892.90
Department of Health,Guys and St Thomas NHS Foundation Trust,01/04/2021,(81100) Dressings,(id:41897) TAP,ELIS UK LIMITED,id:13948135  , 717.88
Department of Health,Guys and St Thomas NHS Foundation Trust,01/04/2021,(81100) Dressings,(id:41897) TAP,ELIS UK LIMITED,id:13947794  , 501.30
Department of Health,Guys and St Thomas NHS Foundation Trust,16/04/2021,(89000) Other - Training courses and conferences,(id:41896) TAP,STAFFORDSHIRE UNIVERSITY,id:13983874  ,1267.50
Department of Health,Guys and St Thomas NHS Foundation Trust,09/04/2021,(83500) Furniture & Fittings,(id:41894) TAP,CJ MEDICAL,id:13944894 ,1920.00
Department of Health,Guys and St Thomas NHS Foundation Trust,23/04/2021,(82800) Bedding & Linen,(id:41894) TAP,NHS SUPPLY CHAIN (MAIDSTONE),id:13946606   ,   3.38
Department of Health,Guys and St Thomas NHS Foundation Trust,09/04/2021,(81200) Medical Surgical Supplies & Equipment,(id:41894) TAP,NHS SUPPLY CHAIN (MAIDSTONE),id:13845954 , 546.38
Department of Health,Guys and St Thomas NHS Foundation Trust,16/04/2021,(81200) Medical Surgical Supplies & Equipment,(id:41894) TAP,ELIS UK LIMITED,id:13927897    , 101.40
Department of Health,Guys and St Thomas NHS Foundation Trust,23/04/2021,(82600) Uniforms & Clothing,(id:41883) TAP,NHS SUPPLY CHAIN (MAIDSTONE),id:13933387    , 234.58
Department of Health,Guys and St Thomas NHS Foundation Trust,09/04/2021,(82600) Uniforms & Clothing,(id:41883) TAP,NHS SUPPLY CHAIN (MAIDSTONE),id:13763774    ,   5.58
Department of Health,Guys and St Thomas NHS Foundation Trust,23/04/2021,(82800) Bedding & Linen,(id:41883) TAP,NHS SUPPLY CHAIN (MAIDSTONE),id:13946606   , 248.46
Department of Health,Guys and St Thomas NHS Foundation Trust,09/04/2021,(82800) Bedding & Linen,(id:41883) TAP,NHS SUPPLY CHAIN (MAIDSTONE),id:13845954   , 292.73
Department of Health,Guys and St Thomas NHS Foundation Trust,09/04/2021,(81700) Lab Equipment Purchase,(id:41883) TAP,NHS SUPPLY CHAIN (MAIDSTONE),id:13763774 ,  22.43
Department of Health,Guys and St Thomas NHS Foundation Trust,09/04/2021,(81225) Medical Surgical Supplies & Equipment,(id:41883) TAP,NHS SUPPLY CHAIN (MAIDSTONE),id:13894938 ,  62.00
Department of Health,Guys and St Thomas NHS Foundation Trust,23/04/2021,(81100) Dressings,(id:41883) TAP,NHS SUPPLY CHAIN (MAIDSTONE),id:13933387    ,1058.30
Department of Health,Guys and St Thomas NHS Foundation Trust,09/04/2021,(81200) Medical Surgical Supplies & Equipment,(id:41883) TAP,NHS SUPPLY CHAIN (MAIDSTONE),id:13845954 ,1868.06
Department of Health,Guys and St Thomas NHS Foundation Trust,16/04/2021,(81200) Medical Surgical Supplies & Equipment,(id:41883) TAP,JOHNSON & JOHNSON MEDICAL LTD,id:13940027, 176.24
Department of Health,Guys and St Thomas NHS Foundation Trust,16/04/2021,(81200) Medical Surgical Supplies & Equipment,(id:41883) TAP,JOHNSON & JOHNSON MEDICAL LTD,id:13954333,  52.13
Department of Health,Guys and St Thomas NHS Foundation Trust,01/04/2021,(81200) Medical Surgical Supplies & Equipment,(id:41883) TAP,JOHNSON & JOHNSON MEDICAL LTD,id:13882466,  63.32
Department of Health,Guys and St Thomas NHS Foundation Trust,01/04/2021,(81200) Medical Surgical Supplies & Equipment,(id:41883) TAP,JOHNSON & JOHNSON MEDICAL LTD,id:13870168,  72.90
Department of Health,Guys and St Thomas NHS Foundation Trust,16/04/2021,(81200) Medical Surgical Supplies & Equipment,(id:41883) TAP,JOHNSON & JOHNSON MEDICAL LTD,id:13933922, 217.74
Department of Health,Guys and St Thomas NHS Foundation Trust,23/04/2021,(50552) Qualified Nursing Staff,(id:41883) TAP,CONTINENTAL NURSE LTD,id:14017039  ,1579.79
Department of Health,Guys and St Thomas NHS Foundation Trust,09/04/2021,(81255) Medical Surgical Supplies & Equipment,(id:41883) TAP,NHS SUPPLY CHAIN (MAIDSTONE),id:13763774 ,  14.36
Department of Health,Guys and St Thomas NHS Foundation Trust,23/04/2021,(81200) Medical Surgical Supplies & Equipment,(id:41907) TAP,NHS SUPPLY CHAIN (MAIDSTONE),id:13933387 ,2040.58
Department of Health,Guys and St Thomas NHS Foundation Trust,09/04/2021,(81100) Dressings,(id:41907) TAP,NHS SUPPLY CHAIN (MAIDSTONE),id:13894938    ,  47.97
Department of Health,Guys and St Thomas NHS Foundation Trust,09/04/2021,(81100) Dressings,(id:41907) TAP,NHS SUPPLY CHAIN (MAIDSTONE),id:13845954    ,  72.85
Department of Health,Guys and St Thomas NHS Foundation Trust,09/04/2021,(81230) Medical Surgical Supplies & Equipment,(id:41907) TAP,NHS SUPPLY CHAIN (MAIDSTONE),id:13894938 , 173.85
Department of Health,Guys and St Thomas NHS Foundation Trust,09/04/2021,(82800) Bedding & Linen,(id:41906) TAP,NHS SUPPLY CHAIN (MAIDSTONE),id:13894938   ,  18.60
Department of Health,Guys and St Thomas NHS Foundation Trust,09/04/2021,(81200) Medical Surgical Supplies & Equipment,(id:41906) TAP,NHS SUPPLY CHAIN (MAIDSTONE),id:13763774 ,2026.67
Department of Health,Guys and St Thomas NHS Foundation Trust,09/04/2021,(81100) Dressings,(id:41905) TAP,NHS SUPPLY CHAIN (MAIDSTONE),id:13763774    , 125.05
Department of Health,Guys and St Thomas NHS Foundation Trust,23/04/2021,(81100) Dressings,(id:41905) TAP,NHS SUPPLY CHAIN (MAIDSTONE),id:13946606    , 119.79
Department of Health,Guys and St Thomas NHS Foundation Trust,23/04/2021,(81100) Dressings,(id:41905) TAP,NHS SUPPLY CHAIN (MAIDSTONE),id:13933387    ,  64.24
Department of Health,Guys and St Thomas NHS Foundation Trust,23/04/2021,(81255) Medical Surgical Supplies & Equipment,(id:41913) TAP,NHS SUPPLY CHAIN (MAIDSTONE),id:13946606 ,  41.32
Department of Health,Guys and St Thomas NHS Foundation Trust,09/04/2021,(81100) Dressings,(id:41913) TAP,NHS SUPPLY CHAIN (MAIDSTONE),id:13894938    ,  91.01
Department of Health,Guys and St Thomas NHS Foundation Trust,23/04/2021,(81700) Lab Equipment Purchase,(id:41913) TAP,NHS SUPPLY CHAIN (MAIDSTONE),id:13946606 ,  10.16
Department of Health,Guys and St Thomas NHS Foundation Trust,09/04/2021,(82600) Uniforms & Clothing,(id:41913) TAP,NHS SUPPLY CHAIN (MAIDSTONE),id:13845954    ,  15.76
Department of Health,Guys and St Thomas NHS Foundation Trust,09/04/2021,(82600) Uniforms & Clothing,(id:41913) TAP,NHS SUPPLY CHAIN (MAIDSTONE),id:13894938    ,   7.20
Department of Health,Guys and St Thomas NHS Foundation Trust,23/04/2021,(82600) Uniforms & Clothing,(id:41913) TAP,NHS SUPPLY CHAIN (MAIDSTONE),id:13946606    ,   3.60
Department of Health,Guys and St Thomas NHS Foundation Trust,23/04/2021,(82000) Provisions & Kitchens,(id:41918) TAP,NHS SUPPLY CHAIN (MAIDSTONE),id:13946606  ,  45.14
Department of Health,Guys and St Thomas NHS Foundation Trust,09/04/2021,(83400) Office Equipment,(id:41918) TAP,NHS SUPPLY CHAIN (MAIDSTONE),id:13763774  ,  16.12
Department of Health,Guys and St Thomas NHS Foundation Trust,23/04/2021,(81200) Medical Surgical Supplies & Equipment,(id:41918) TAP,NHS SUPPLY CHAIN (MAIDSTONE),id:13946606 ,  18.98
Department of Health,Guys and St Thomas NHS Foundation Trust,23/04/2021,(81200) Medical Surgical Supplies & Equipment,(id:41918) TAP,JOHNSON & JOHNSON MEDICAL LTD,id:13958886, 504.67
Department of Health,Guys and St Thomas NHS Foundation Trust,23/04/2021,(82600) Uniforms & Clothing,(id:41916) TAP,NHS SUPPLY CHAIN (MAIDSTONE),id:13933387    ,   6.48
Department of Health,Guys and St Thomas NHS Foundation Trust,23/04/2021,(82600) Uniforms & Clothing,(id:41916) TAP,NHS SUPPLY CHAIN (MAIDSTONE),id:13946606    , 152.64
Department of Health,Guys and St Thomas NHS Foundation Trust,09/04/2021,(82800) Bedding & Linen,(id:41916) TAP,NHS SUPPLY CHAIN (MAIDSTONE),id:13894938   ,  32.75
Department of Health,Guys and St Thomas NHS Foundation Trust,09/04/2021,(81700) Lab Equipment Purchase,(id:41916) TAP,NHS SUPPLY CHAIN (MAIDSTONE),id:13763774 ,   9.27
Department of Health,Guys and St Thomas NHS Foundation Trust,23/04/2021,(81200) Medical Surgical Supplies & Equipment,(id:41923) TAP,NHS SUPPLY CHAIN (MAIDSTONE),id:13933387 , 131.52
Department of Health,Guys and St Thomas NHS Foundation Trust,23/04/2021,(83400) Office Equipment,(id:41923) TAP,NHS SUPPLY CHAIN (MAIDSTONE),id:13933387  ,  12.62
Department of Health,Guys and St Thomas NHS Foundation Trust,23/04/2021,(82000) Provisions & Kitchens,(id:41922) TAP,NHS SUPPLY CHAIN (MAIDSTONE),id:13946606  ,  19.87
Department of Health,Guys and St Thomas NHS Foundation Trust,09/04/2021,(81200) Medical Surgical Supplies & Equipment,(id:41921) TAP,NHS SUPPLY CHAIN (MAIDSTONE),id:13845954 ,  21.18
Department of Health,Guys and St Thomas NHS Foundation Trust,01/04/2021,(81400) Medical Surgical Supplies & Equipment,(id:41921) TAP,H C SLINGSBY PLC,id:13866081   , 237.50
Department of Health,Guys and St Thomas NHS Foundation Trust,09/04/2021,(81100) Dressings,(id:41921) TAP,NHS SUPPLY CHAIN (MAIDSTONE),id:13845954    , 116.64
Department of Health,Guys and St Thomas NHS Foundation Trust,09/04/2021,(82700) Uniforms & Clothing,(id:41921) TAP,NHS SUPPLY CHAIN (MAIDSTONE),id:13845954    ,  77.93
Department of Health,Guys and St Thomas NHS Foundation Trust,16/04/2021,(89000) Other - Training courses and conferences,(id:4274419) Gastrointestinal Medicine & Surgery,ST MARK'S HOSPITAL FOUNDATION,id:13989174   , 720.00
Department of Health,Guys and St Thomas NHS Foundation Trust,23/04/2021,(81400) Medical Surgical Supplies & Equipment,(id:41959) Gastrointestinal Medicine & Surgery,LABORIE MEDICAL TECHNOLOGIES UK,id:13971319 ,6035.58
Department of Health,Guys and St Thomas NHS Foundation Trust,23/04/2021,(82000) Provisions & Kitchens,(id:41958) Gastrointestinal Medicine & Surgery,NHS SUPPLY CHAIN (MAIDSTONE),id:13933387,  75.62
Department of Health,Guys and St Thomas NHS Foundation Trust,09/04/2021,(81200) Medical Surgical Supplies & Equipment,(id:41958) Gastrointestinal Medicine & Surgery,NHS SUPPLY CHAIN (MAIDSTONE),id:13845954    , 389.85
Department of Health,Guys and St Thomas NHS Foundation Trust,23/04/2021,(81100) Dressings,(id:41958) Gastrointestinal Medicine & Surgery,NHS SUPPLY CHAIN (MAIDSTONE),id:13946606  ,  43.61
Department of Health,Guys and St Thomas NHS Foundation Trust,09/04/2021,(81225) Medical Surgical Supplies & Equipment,(id:41958) Gastrointestinal Medicine & Surgery,NHS SUPPLY CHAIN (MAIDSTONE),id:13763774    ,   4.85
Department of Health,Guys and St Thomas NHS Foundation Trust,09/04/2021,(81700) Lab Equipment Purchase,(id:41958) Gastrointestinal Medicine & Surgery,NHS SUPPLY CHAIN (MAIDSTONE),id:13845954    ,  38.51
Department of Health,Guys and St Thomas NHS Foundation Trust,09/04/2021,(82000) Provisions & Kitchens,(id:41954) Gastrointestinal Medicine & Surgery,NHS SUPPLY CHAIN (MAIDSTONE),id:13894938, 162.83
Department of Health,Guys and St Thomas NHS Foundation Trust,23/04/2021,(82800) Bedding & Linen,(id:41954) Gastrointestinal Medicine & Surgery,NHS SUPPLY CHAIN (MAIDSTONE),id:13933387 ,  61.21
Department of Health,Guys and St Thomas NHS Foundation Trust,09/04/2021,(81200) Medical Surgical Supplies & Equipment,(id:41954) Gastrointestinal Medicine & Surgery,NHS SUPPLY CHAIN (MAIDSTONE),id:13894938    , 810.93
Department of Health,Guys and St Thomas NHS Foundation Trust,23/04/2021,(81200) Medical Surgical Supplies & Equipment,(id:41954) Gastrointestinal Medicine & Surgery,NHS SUPPLY CHAIN (MAIDSTONE),id:13946606    , 828.18
Department of Health,Guys and St Thomas NHS Foundation Trust,09/04/2021,(50552) Qualified Nursing Staff,(id:41954) Gastrointestinal Medicine & Surgery,CONTINENTAL NURSE LTD,id:13970224, 272.57
Department of Health,Guys and St Thomas NHS Foundation Trust,09/04/2021,(81255) Medical Surgical Supplies & Equipment,(id:41954) Gastrointestinal Medicine & Surgery,NHS SUPPLY CHAIN (MAIDSTONE),id:13763774    ,    .62
Department of Health,Guys and St Thomas NHS Foundation Trust,09/04/2021,(81700) Lab Equipment Purchase,(id:41954) Gastrointestinal Medicine & Surgery,NHS SUPPLY CHAIN (MAIDSTONE),id:13894938    ,  78.07
Department of Health,Guys and St Thomas NHS Foundation Trust,09/04/2021,(81225) Medical Surgical Supplies & Equipment,(id:41954) Gastrointestinal Medicine & Surgery,NHS SUPPLY CHAIN (MAIDSTONE),id:13763774    ,   4.85
Department of Health,Guys and St Thomas NHS Foundation Trust,09/04/2021,(81100) Dressings,(id:41949) Gastrointestinal Medicine & Surgery,NHS SUPPLY CHAIN (MAIDSTONE),id:13894938  , 367.24
Department of Health,Guys and St Thomas NHS Foundation Trust,16/04/2021,(81100) Dressings,(id:41949) Gastrointestinal Medicine & Surgery,JOHNSON & JOHNSON MEDICAL LTD,id:13954317 , 972.56
Department of Health,Guys and St Thomas NHS Foundation Trust,23/04/2021,(81100) Dressings,(id:41949) Gastrointestinal Medicine & Surgery,JOHNSON & JOHNSON MEDICAL LTD,id:13958755 ,1308.96
Department of Health,Guys and St Thomas NHS Foundation Trust,16/04/2021,(81200) Medical Surgical Supplies & Equipment,(id:41949) Gastrointestinal Medicine & Surgery,JOHNSON & JOHNSON MEDICAL LTD,id:13954321   , 586.98
Department of Health,Guys and St Thomas NHS Foundation Trust,16/04/2021,(81200) Medical Surgical Supplies & Equipment,(id:41949) Gastrointestinal Medicine & Surgery,MEDTRONIC LTD,id:13954349    ,5668.49
Department of Health,Guys and St Thomas NHS Foundation Trust,23/04/2021,(81200) Medical Surgical Supplies & Equipment,(id:41949) Gastrointestinal Medicine & Surgery,JOHNSON & JOHNSON MEDICAL LTD,id:13965068   , 157.15
Department of Health,Guys and St Thomas NHS Foundation Trust,23/04/2021,(81200) Medical Surgical Supplies & Equipment,(id:41949) Gastrointestinal Medicine & Surgery,JOHNSON & JOHNSON MEDICAL LTD,id:13965064   , 605.02
Department of Health,Guys and St Thomas NHS Foundation Trust,23/04/2021,(81200) Medical Surgical Supplies & Equipment,(id:41949) Gastrointestinal Medicine & Surgery,JOHNSON & JOHNSON MEDICAL LTD,id:13958858   , 312.05
Department of Health,Guys and St Thomas NHS Foundation Trust,23/04/2021,(81200) Medical Surgical Supplies & Equipment,(id:41949) Gastrointestinal Medicine & Surgery,JOHNSON & JOHNSON MEDICAL LTD,id:13965078   , 531.91
Department of Health,Guys and St Thomas NHS Foundation Trust,01/04/2021,(81200) Medical Surgical Supplies & Equipment,(id:41949) Gastrointestinal Medicine & Surgery,JOHNSON & JOHNSON MEDICAL LTD,id:13870175   ,1451.09
Department of Health,Guys and St Thomas NHS Foundation Trust,01/04/2021,(81200) Medical Surgical Supplies & Equipment,(id:41949) Gastrointestinal Medicine & Surgery,JOHNSON & JOHNSON MEDICAL LTD,id:13882245   , 296.45
Department of Health,Guys and St Thomas NHS Foundation Trust,28/04/2021,(81200) Medical Surgical Supplies & Equipment,(id:41949) Gastrointestinal Medicine & Surgery,JOHNSON & JOHNSON MEDICAL LTD,id:13980337   , 101.91
Department of Health,Guys and St Thomas NHS Foundation Trust,09/04/2021,(82800) Bedding & Linen,(id:41949) Gastrointestinal Medicine & Surgery,NHS SUPPLY CHAIN (MAIDSTONE),id:13845954 , 296.52
Department of Health,Guys and St Thomas NHS Foundation Trust,09/04/2021,(82000) Provisions & Kitchens,(id:2367419) Gastrointestinal Medicine & Surgery,NHS SUPPLY CHAIN (MAIDSTONE),id:13845954   ,  11.84
Department of Health,Guys and St Thomas NHS Foundation Trust,23/04/2021,(83400) Office Equipment,(id:41917) Gastrointestinal Medicine & Surgery,NHS SUPPLY CHAIN (MAIDSTONE),id:13946606, 405.18
Department of Health,Guys and St Thomas NHS Foundation Trust,23/04/2021,(82800) Bedding & Linen,(id:41917) Gastrointestinal Medicine & Surgery,NHS SUPPLY CHAIN (MAIDSTONE),id:13933387 ,  85.34
Department of Health,Guys and St Thomas NHS Foundation Trust,23/04/2021,(81235) Medical Surgical Supplies & Equipment,(id:41917) Gastrointestinal Medicine & Surgery,BOSTON SCIENTIFIC LTD,id:13958803 , 512.22
Department of Health,Guys and St Thomas NHS Foundation Trust,23/04/2021,(81200) Medical Surgical Supplies & Equipment,(id:41917) Gastrointestinal Medicine & Surgery,THERAPY EQUIPMENT LTD,id:14016275 , 516.72
Department of Health,Guys and St Thomas NHS Foundation Trust,16/04/2021,(81200) Medical Surgical Supplies & Equipment,(id:41917) Gastrointestinal Medicine & Surgery,DIAGMED HEALTHCARE LTD,id:13978196, 889.20
Department of Health,Guys and St Thomas NHS Foundation Trust,16/04/2021,(81200) Medical Surgical Supplies & Equipment,(id:41917) Gastrointestinal Medicine & Surgery,BOSTON SCIENTIFIC LTD,id:13939999 ,3060.00
Department of Health,Guys and St Thomas NHS Foundation Trust,09/04/2021,(81200) Medical Surgical Supplies & Equipment,(id:41917) Gastrointestinal Medicine & Surgery,CANTEL (UK) LTD,id:13941894  ,3336.00
Department of Health,Guys and St Thomas NHS Foundation Trust,16/04/2021,(81400) Medical Surgical Supplies & Equipment,(id:41917) Gastrointestinal Medicine & Surgery,MEDTRONIC LTD,id:13923860    ,    92000.00
Department of Health,Guys and St Thomas NHS Foundation Trust,16/04/2021,(81400) Medical Surgical Supplies & Equipment,(id:41917) Gastrointestinal Medicine & Surgery,MEDTRONIC LTD,id:13933970    ,    23000.00
Department of Health,Guys and St Thomas NHS Foundation Trust,09/04/2021,(81400) Medical Surgical Supplies & Equipment,(id:41917) Gastrointestinal Medicine & Surgery,GETINGE UK LTD,id:13928894   ,    12772.00
Department of Health,Guys and St Thomas NHS Foundation Trust,23/04/2021,(89570) Other – Other Operating Expenditure,(id:41917) Gastrointestinal Medicine & Surgery,18 WEEK SUPPORT LIMITED,id:14018356,    23800.00
Department of Health,Guys and St Thomas NHS Foundation Trust,01/04/2021,(89570) Other – Other Operating Expenditure,(id:41917) Gastrointestinal Medicine & Surgery,18 WEEK SUPPORT LIMITED,id:13946857,    11900.00
Department of Health,Guys and St Thomas NHS Foundation Trust,09/04/2021,(81700) Lab Equipment Purchase,(id:41917) Gastrointestinal Medicine & Surgery,NHS SUPPLY CHAIN (MAIDSTONE),id:13894938    ,  33.77
Department of Health,Guys and St Thomas NHS Foundation Trust,01/04/2021,(81900) Lab Equipment Purchase,(id:111406) Pathology,VIAPATH ANALYTICS LLP,id:13874835 ,    18196.00
Department of Health,Guys and St Thomas NHS Foundation Trust,01/04/2021,(81900) Lab Equipment Purchase,(id:111406) Pathology,VIAPATH SERVICES LLP,id:13924514  ,   -13822.88
Department of Health,Guys and St Thomas NHS Foundation Trust,01/04/2021,(81900) Lab Equipment Purchase,(id:111406) Pathology,VIAPATH SERVICES LLP,id:13938315  ,   -20830.21
Department of Health,Guys and St Thomas NHS Foundation Trust,01/04/2021,(81900) Lab Equipment Purchase,(id:111406) Pathology,VIAPATH ANALYTICS LLP,id:13938294 ,   -38885.84
Department of Health,Guys and St Thomas NHS Foundation Trust,16/04/2021,(81100) Dressings,(id:2625419) Transplant Renal and Urology,JOHNSON & JOHNSON MEDICAL LTD,id:13954333 ,1113.19
Department of Health,Guys and St Thomas NHS Foundation Trust,01/04/2021,(81100) Dressings,(id:2625419) Transplant Renal and Urology,JOHNSON & JOHNSON MEDICAL LTD,id:13870168 , 556.60
Department of Health,Guys and St Thomas NHS Foundation Trust,09/04/2021,(82000) Provisions & Kitchens,(id:42419) Transplant Renal and Urology,NHS SUPPLY CHAIN (MAIDSTONE),id:13845954  ,  25.13
Department of Health,Guys and St Thomas NHS Foundation Trust,09/04/2021,(82800) Bedding & Linen,(id:42419) Transplant Renal and Urology,NHS SUPPLY CHAIN (MAIDSTONE),id:13894938   , 112.26
Department of Health,Guys and St Thomas NHS Foundation Trust,23/04/2021,(81700) Lab Equipment Purchase,(id:42419) Transplant Renal and Urology,NHS SUPPLY CHAIN (MAIDSTONE),id:13946606 ,  41.58
Department of Health,Guys and St Thomas NHS Foundation Trust,09/04/2021,(81255) Medical Surgical Supplies & Equipment,(id:42419) Transplant Renal and Urology,NHS SUPPLY CHAIN (MAIDSTONE),id:13763774 ,  17.28
Department of Health,Guys and St Thomas NHS Foundation Trust,09/04/2021,(81200) Medical Surgical Supplies & Equipment,(id:42450) Transplant Renal and Urology,JOHNSON & JOHNSON MEDICAL LTD,id:13923700,1048.94
Department of Health,Guys and St Thomas NHS Foundation Trust,28/04/2021,(81200) Medical Surgical Supplies & Equipment,(id:42450) Transplant Renal and Urology,STRYKER UK LTD,id:13997554, 613.87
Department of Health,Guys and St Thomas NHS Foundation Trust,16/04/2021,(81200) Medical Surgical Supplies & Equipment,(id:42449) Transplant Renal and Urology,DIGITIMER LTD,id:13947174 , 546.00
Department of Health,Guys and St Thomas NHS Foundation Trust,09/04/2021,(81200) Medical Surgical Supplies & Equipment,(id:42449) Transplant Renal and Urology,NHS SUPPLY CHAIN (MAIDSTONE),id:13845954 ,1382.40
Department of Health,Guys and St Thomas NHS Foundation Trust,23/04/2021,(81200) Medical Surgical Supplies & Equipment,(id:42449) Transplant Renal and Urology,NHS SUPPLY CHAIN (MAIDSTONE),id:13946606 ,  84.00
Department of Health,Guys and St Thomas NHS Foundation Trust,23/04/2021,(81225) Medical Surgical Supplies & Equipment,(id:42449) Transplant Renal and Urology,NHS SUPPLY CHAIN (MAIDSTONE),id:13933387 , 483.00
Department of Health,Guys and St Thomas NHS Foundation Trust,16/04/2021,(81200) Medical Surgical Supplies & Equipment,(id:42447) Transplant Renal and Urology,BOSTON SCIENTIFIC LTD,id:13928529   , 509.75
Department of Health,Guys and St Thomas NHS Foundation Trust,23/04/2021,(81100) Dressings,(id:42447) Transplant Renal and Urology,NHS SUPPLY CHAIN (MAIDSTONE),id:13933387    ,  64.59
Department of Health,Guys and St Thomas NHS Foundation Trust,23/04/2021,(82800) Bedding & Linen,(id:42446) Transplant Renal and Urology,NHS SUPPLY CHAIN (MAIDSTONE),id:13933387   ,  52.06
Department of Health,Guys and St Thomas NHS Foundation Trust,16/04/2021,(81200) Medical Surgical Supplies & Equipment,(id:42446) Transplant Renal and Urology,BOSTON SCIENTIFIC LTD,id:13923768   , 710.76
Department of Health,Guys and St Thomas NHS Foundation Trust,16/04/2021,(81200) Medical Surgical Supplies & Equipment,(id:42446) Transplant Renal and Urology,MEDTRONIC LTD,id:13940073 ,1973.09
Department of Health,Guys and St Thomas NHS Foundation Trust,01/04/2021,(81200) Medical Surgical Supplies & Equipment,(id:42446) Transplant Renal and Urology,JOHNSON & JOHNSON MEDICAL LTD,id:13882247,1202.21
Department of Health,Guys and St Thomas NHS Foundation Trust,09/04/2021,(81200) Medical Surgical Supplies & Equipment,(id:42446) Transplant Renal and Urology,JOHNSON & JOHNSON MEDICAL LTD,id:13906054, 706.34
Department of Health,Guys and St Thomas NHS Foundation Trust,28/04/2021,(81200) Medical Surgical Supplies & Equipment,(id:42446) Transplant Renal and Urology,MEDTRONIC LTD,id:13975867 , 986.54
Department of Health,Guys and St Thomas NHS Foundation Trust,23/04/2021,(81200) Medical Surgical Supplies & Equipment,(id:42446) Transplant Renal and Urology,NHS SUPPLY CHAIN (MAIDSTONE),id:13933387 ,    14324.43
Department of Health,Guys and St Thomas NHS Foundation Trust,23/04/2021,(81200) Medical Surgical Supplies & Equipment,(id:42446) Transplant Renal and Urology,SIGMACON (UK) LTD,id:14017354  ,7899.60
Department of Health,Guys and St Thomas NHS Foundation Trust,23/04/2021,(81200) Medical Surgical Supplies & Equipment,(id:42446) Transplant Renal and Urology,BXTACCELYON LIMITED,id:14007314,1254.00
Department of Health,Guys and St Thomas NHS Foundation Trust,23/04/2021,(81200) Medical Surgical Supplies & Equipment,(id:42446) Transplant Renal and Urology,BOSTON SCIENTIFIC LTD,id:13989223   ,2376.00
Department of Health,Guys and St Thomas NHS Foundation Trust,01/04/2021,(81500) X Ray Equipment Purchase,(id:42446) Transplant Renal and Urology,BXTACCELYON LIMITED,id:13904094   ,4320.00
Department of Health,Guys and St Thomas NHS Foundation Trust,01/04/2021,(81200) Medical Surgical Supplies & Equipment,(id:42444) Transplant Renal and Urology,BOSTON SCIENTIFIC LTD,id:13856617   ,1506.81
Department of Health,Guys and St Thomas NHS Foundation Trust,09/04/2021,(81200) Medical Surgical Supplies & Equipment,(id:42444) Transplant Renal and Urology,BOSTON SCIENTIFIC LTD,id:13901916   ,6393.08
Department of Health,Guys and St Thomas NHS Foundation Trust,09/04/2021,(81200) Medical Surgical Supplies & Equipment,(id:42444) Transplant Renal and Urology,BOSTON SCIENTIFIC LTD,id:13917674   ,1124.65
Department of Health,Guys and St Thomas NHS Foundation Trust,23/04/2021,(81200) Medical Surgical Supplies & Equipment,(id:42444) Transplant Renal and Urology,NHS SUPPLY CHAIN (MAIDSTONE),id:13946606 ,   9.00
Department of Health,Guys and St Thomas NHS Foundation Trust,23/04/2021,(82800) Bedding & Linen,(id:42443) Transplant Renal and Urology,NHS SUPPLY CHAIN (MAIDSTONE),id:13933387   ,  46.82
Department of Health,Guys and St Thomas NHS Foundation Trust,09/04/2021,(82800) Bedding & Linen,(id:42443) Transplant Renal and Urology,NHS SUPPLY CHAIN (MAIDSTONE),id:13763774   , 163.74
Department of Health,Guys and St Thomas NHS Foundation Trust,09/04/2021,(82800) Bedding & Linen,(id:42443) Transplant Renal and Urology,NHS SUPPLY CHAIN (MAIDSTONE),id:13894938   , 121.73
Department of Health,Guys and St Thomas NHS Foundation Trust,23/04/2021,(81700) Lab Equipment Purchase,(id:42443) Transplant Renal and Urology,NHS SUPPLY CHAIN (MAIDSTONE),id:13933387 ,   5.93
Department of Health,Guys and St Thomas NHS Foundation Trust,23/04/2021,(82700) Uniforms & Clothing,(id:42442) Transplant Renal and Urology,NHS SUPPLY CHAIN (MAIDSTONE),id:13933387    ,  31.68
Department of Health,Guys and St Thomas NHS Foundation Trust,23/04/2021,(82000) Provisions & Kitchens,(id:42442) Transplant Renal and Urology,NHS SUPPLY CHAIN (MAIDSTONE),id:13933387  ,  22.42
Department of Health,Guys and St Thomas NHS Foundation Trust,23/04/2021,(82800) Bedding & Linen,(id:42442) Transplant Renal and Urology,NHS SUPPLY CHAIN (MAIDSTONE),id:13946606   , 242.37
Department of Health,Guys and St Thomas NHS Foundation Trust,23/04/2021,(81100) Dressings,(id:42442) Transplant Renal and Urology,NHS SUPPLY CHAIN (MAIDSTONE),id:13946606    , 498.41
Department of Health,Guys and St Thomas NHS Foundation Trust,23/04/2021,(81100) Dressings,(id:42442) Transplant Renal and Urology,NHS SUPPLY CHAIN (MAIDSTONE),id:13933387    ,  25.38
Department of Health,Guys and St Thomas NHS Foundation Trust,09/04/2021,(81100) Dressings,(id:42442) Transplant Renal and Urology,NHS SUPPLY CHAIN (MAIDSTONE),id:13763774    ,  59.52
Department of Health,Guys and St Thomas NHS Foundation Trust,09/04/2021,(81700) Lab Equipment Purchase,(id:42442) Transplant Renal and Urology,NHS SUPPLY CHAIN (MAIDSTONE),id:13894938 ,  63.10
Department of Health,Guys and St Thomas NHS Foundation Trust,01/04/2021,(81200) Medical Surgical Supplies & Equipment,(id:42439) Transplant Renal and Urology,INTUITIVE SURGICAL LTD,id:13715160  ,   -41250.00
Department of Health,Guys and St Thomas NHS Foundation Trust,23/04/2021,(81200) Medical Surgical Supplies & Equipment,(id:3671419) Transplant Renal and Urology,FRESENIUS MEDICAL CARE UK LTD,id:14006595   ,1382.40
Department of Health,Guys and St Thomas NHS Foundation Trust,09/04/2021,(81200) Medical Surgical Supplies & Equipment,(id:2653419) Transplant Renal and Urology,NHS SUPPLY CHAIN (MAIDSTONE),id:13845954    , 115.32
Department of Health,Guys and St Thomas NHS Foundation Trust,23/04/2021,(82000) Provisions & Kitchens,(id:42435) Transplant Renal and Urology,NHS SUPPLY CHAIN (MAIDSTONE),id:13933387  ,   7.80
Department of Health,Guys and St Thomas NHS Foundation Trust,23/04/2021,(81100) Dressings,(id:42435) Transplant Renal and Urology,NHS SUPPLY CHAIN (MAIDSTONE),id:13946606    , 237.63
Department of Health,Guys and St Thomas NHS Foundation Trust,23/04/2021,(81200) Medical Surgical Supplies & Equipment,(id:42435) Transplant Renal and Urology,NHS SUPPLY CHAIN (MAIDSTONE),id:13933387 , 406.18
Department of Health,Guys and St Thomas NHS Foundation Trust,23/04/2021,(81255) Medical Surgical Supplies & Equipment,(id:42435) Transplant Renal and Urology,NHS SUPPLY CHAIN (MAIDSTONE),id:13946606 ,   1.56
Department of Health,Guys and St Thomas NHS Foundation Trust,16/04/2021,(50203) Consultants,(id:42433) Transplant Renal and Urology,KINGS COLLEGE LONDON:03529700,id:13931954 ,    24399.59
Department of Health,Guys and St Thomas NHS Foundation Trust,23/04/2021,(81200) Medical Surgical Supplies & Equipment,(id:42433) Transplant Renal and Urology,WL GORE & ASSOCIATES (UK) LTD,id:14001375, 632.40
Department of Health,Guys and St Thomas NHS Foundation Trust,28/04/2021,(81100) Dressings,(id:42433) Transplant Renal and Urology,MEDTRONIC LTD,id:13980381    ,1872.00
Department of Health,Guys and St Thomas NHS Foundation Trust,23/04/2021,(81100) Dressings,(id:42428) Transplant Renal and Urology,NHS SUPPLY CHAIN (MAIDSTONE),id:13946606    ,   5.45
Department of Health,Guys and St Thomas NHS Foundation Trust,09/04/2021,(81200) Medical Surgical Supplies & Equipment,(id:42428) Transplant Renal and Urology,NHS SUPPLY CHAIN (MAIDSTONE),id:13894938 ,  49.80
Department of Health,Guys and St Thomas NHS Foundation Trust,23/04/2021,(83400) Office Equipment,(id:42428) Transplant Renal and Urology,NHS SUPPLY CHAIN (MAIDSTONE),id:13933387  ,  93.27
Department of Health,Guys and St Thomas NHS Foundation Trust,16/04/2021,(81200) Medical Surgical Supplies & Equipment,(id:42420) Transplant Renal and Urology,KIMAL RENAL CARE LTD,id:13979315    , 710.64
Department of Health,Guys and St Thomas NHS Foundation Trust,16/04/2021,(81200) Medical Surgical Supplies & Equipment,(id:42420) Transplant Renal and Urology,FRESENIUS MEDICAL CARE UK LTD,id:13984434, 730.80
Department of Health,Guys and St Thomas NHS Foundation Trust,28/04/2021,(81200) Medical Surgical Supplies & Equipment,(id:42420) Transplant Renal and Urology,FRESENIUS MEDICAL CARE UK LTD,id:14035394,3250.80
Department of Health,Guys and St Thomas NHS Foundation Trust,16/04/2021,(80150) Drug Costs,(id:42420) Transplant Renal and Urology,BAXTER HEALTHCARE LTD,id:13975135, 144.00
Department of Health,Guys and St Thomas NHS Foundation Trust,09/04/2021,(81100) Dressings,(id:42420) Transplant Renal and Urology,NHS SUPPLY CHAIN (MAIDSTONE),id:13845954    , 774.64
Department of Health,Guys and St Thomas NHS Foundation Trust,23/04/2021,(81700) Lab Equipment Purchase,(id:42438) Transplant Renal and Urology,NHS SUPPLY CHAIN (MAIDSTONE),id:13946606 , 126.58
Department of Health,Guys and St Thomas NHS Foundation Trust,28/04/2021,(84400) Transport,(id:42425) Transplant Renal and Urology,UK FREIGHT MASTERS LTD,id:13923612,1416.00
Department of Health,Guys and St Thomas NHS Foundation Trust,16/04/2021,(81200) Medical Surgical Supplies & Equipment,(id:42422) Transplant Renal and Urology,NXSTAGE MEDICAL UK LIMITED,id:13687495   ,1309.44
Department of Health,Guys and St Thomas NHS Foundation Trust,16/04/2021,(81200) Medical Surgical Supplies & Equipment,(id:42422) Transplant Renal and Urology,NXSTAGE MEDICAL UK LIMITED,id:13892434   ,1357.80
Department of Health,Guys and St Thomas NHS Foundation Trust,16/04/2021,(81200) Medical Surgical Supplies & Equipment,(id:42422) Transplant Renal and Urology,NXSTAGE MEDICAL UK LIMITED,id:13349425   ,2071.58
Department of Health,Guys and St Thomas NHS Foundation Trust,16/04/2021,(81200) Medical Surgical Supplies & Equipment,(id:42422) Transplant Renal and Urology,NXSTAGE MEDICAL UK LIMITED,id:13939693   ,1309.44
Department of Health,Guys and St Thomas NHS Foundation Trust,16/04/2021,(81200) Medical Surgical Supplies & Equipment,(id:42422) Transplant Renal and Urology,NXSTAGE MEDICAL UK LIMITED,id:13927934   ,1309.44
Department of Health,Guys and St Thomas NHS Foundation Trust,16/04/2021,(81200) Medical Surgical Supplies & Equipment,(id:42422) Transplant Renal and Urology,NXSTAGE MEDICAL UK LIMITED,id:13899614   ,1309.44
Department of Health,Guys and St Thomas NHS Foundation Trust,16/04/2021,(81200) Medical Surgical Supplies & Equipment,(id:42422) Transplant Renal and Urology,NXSTAGE MEDICAL UK LIMITED,id:13869034   , 729.72
Department of Health,Guys and St Thomas NHS Foundation Trust,16/04/2021,(81200) Medical Surgical Supplies & Equipment,(id:42422) Transplant Renal and Urology,NXSTAGE MEDICAL UK LIMITED,id:13376069   ,1057.08
Department of Health,Guys and St Thomas NHS Foundation Trust,16/04/2021,(81200) Medical Surgical Supplies & Equipment,(id:42422) Transplant Renal and Urology,NXSTAGE MEDICAL UK LIMITED,id:13519275   ,1145.76
Department of Health,Guys and St Thomas NHS Foundation Trust,23/04/2021,(81200) Medical Surgical Supplies & Equipment,(id:42422) Transplant Renal and Urology,NXSTAGE MEDICAL UK LIMITED,id:13985795   ,1086.24
Department of Health,Guys and St Thomas NHS Foundation Trust,23/04/2021,(81200) Medical Surgical Supplies & Equipment,(id:42422) Transplant Renal and Urology,NXSTAGE MEDICAL UK LIMITED,id:13977656   ,1309.44
Department of Health,Guys and St Thomas NHS Foundation Trust,23/04/2021,(82800) Bedding & Linen,(id:42422) Transplant Renal and Urology,NHS SUPPLY CHAIN (MAIDSTONE),id:13933387   ,  42.14
Department of Health,Guys and St Thomas NHS Foundation Trust,09/04/2021,(83400) Office Equipment,(id:42485) Surgery,NHS SUPPLY CHAIN (MAIDSTONE),id:13845954   ,  74.00
Department of Health,Guys and St Thomas NHS Foundation Trust,01/04/2021,(84600) Establishment,(id:42485) Surgery,CLARITY TRAVEL MANAGEMENT,id:13663837    , 257.43
Department of Health,Guys and St Thomas NHS Foundation Trust,23/04/2021,(82000) Provisions & Kitchens,(id:42485) Surgery,NHS SUPPLY CHAIN (MAIDSTONE),id:13933387   ,  11.75
Department of Health,Guys and St Thomas NHS Foundation Trust,09/04/2021,(81100) Dressings,(id:42485) Surgery,NHS SUPPLY CHAIN (MAIDSTONE),id:13763774, 279.91
Department of Health,Guys and St Thomas NHS Foundation Trust,09/04/2021,(81200) Medical Surgical Supplies & Equipment,(id:42485) Surgery,NHS SUPPLY CHAIN (MAIDSTONE),id:13894938  , 285.54
Department of Health,Guys and St Thomas NHS Foundation Trust,09/04/2021,(81200) Medical Surgical Supplies & Equipment,(id:42484) Surgery,MERCIAN SURGICAL SUPPLY CO LTD,id:13939542,1032.00
Department of Health,Guys and St Thomas NHS Foundation Trust,09/04/2021,(81200) Medical Surgical Supplies & Equipment,(id:42484) Surgery,HEALTHCARE 21 LTD,id:13922955   ,4380.00
Department of Health,Guys and St Thomas NHS Foundation Trust,09/04/2021,(81200) Medical Surgical Supplies & Equipment,(id:42484) Surgery,BONESUPPORT AB,id:13933045 ,3456.00
Department of Health,Guys and St Thomas NHS Foundation Trust,23/04/2021,(81200) Medical Surgical Supplies & Equipment,(id:42484) Surgery,NHS SUPPLY CHAIN (MAIDSTONE),id:13946606  ,   7.67
Department of Health,Guys and St Thomas NHS Foundation Trust,28/04/2021,(81200) Medical Surgical Supplies & Equipment,(id:42484) Surgery,HEALTHCARE 21 LTD,id:14029599   ,2814.00
Department of Health,Guys and St Thomas NHS Foundation Trust,09/04/2021,(81200) Medical Surgical Supplies & Equipment,(id:42483) Surgery,NHS SUPPLY CHAIN (MAIDSTONE),id:13845954  , 331.50
Department of Health,Guys and St Thomas NHS Foundation Trust,23/04/2021,(81200) Medical Surgical Supplies & Equipment,(id:42483) Surgery,NHS SUPPLY CHAIN (MAIDSTONE),id:13946606  , 780.33
Department of Health,Guys and St Thomas NHS Foundation Trust,23/04/2021,(81100) Dressings,(id:42483) Surgery,NHS SUPPLY CHAIN (MAIDSTONE),id:13946606, 456.59
Department of Health,Guys and St Thomas NHS Foundation Trust,23/04/2021,(81100) Dressings,(id:42481) Surgery,NHS SUPPLY CHAIN (MAIDSTONE),id:13933387, 142.49
Department of Health,Guys and St Thomas NHS Foundation Trust,09/04/2021,(82800) Bedding & Linen,(id:42467) Surgery,NHS SUPPLY CHAIN (MAIDSTONE),id:13763774    , 288.60
Department of Health,Guys and St Thomas NHS Foundation Trust,09/04/2021,(81200) Medical Surgical Supplies & Equipment,(id:42467) Surgery,JOHNSON & JOHNSON MEDICAL LTD,id:13913011 ,1058.01
Department of Health,Guys and St Thomas NHS Foundation Trust,09/04/2021,(81200) Medical Surgical Supplies & Equipment,(id:42467) Surgery,NHS SUPPLY CHAIN (MAIDSTONE),id:13763774  ,1378.56
Department of Health,Guys and St Thomas NHS Foundation Trust,09/04/2021,(81200) Medical Surgical Supplies & Equipment,(id:42467) Surgery,STRYKER UK LTD,id:13943407 ,1917.60
Department of Health,Guys and St Thomas NHS Foundation Trust,23/04/2021,(81200) Medical Surgical Supplies & Equipment,(id:42467) Surgery,JOHNSON & JOHNSON MEDICAL LTD,id:14000914 ,1979.51
Department of Health,Guys and St Thomas NHS Foundation Trust,23/04/2021,(81200) Medical Surgical Supplies & Equipment,(id:42467) Surgery,JOHNSON & JOHNSON MEDICAL LTD,id:14000994 , 996.50
Department of Health,Guys and St Thomas NHS Foundation Trust,23/04/2021,(81200) Medical Surgical Supplies & Equipment,(id:42467) Surgery,JOHNSON & JOHNSON MEDICAL LTD,id:14000895 ,1118.82
Department of Health,Guys and St Thomas NHS Foundation Trust,23/04/2021,(81200) Medical Surgical Supplies & Equipment,(id:42467) Surgery,JOHNSON & JOHNSON MEDICAL LTD,id:14001195 ,1046.52
Department of Health,Guys and St Thomas NHS Foundation Trust,16/04/2021,(81200) Medical Surgical Supplies & Equipment,(id:42467) Surgery,JOHNSON & JOHNSON MEDICAL LTD,id:13933941 , 515.41
Department of Health,Guys and St Thomas NHS Foundation Trust,23/04/2021,(81100) Dressings,(id:42467) Surgery,NHS SUPPLY CHAIN (MAIDSTONE),id:13946606, 115.74
Department of Health,Guys and St Thomas NHS Foundation Trust,09/04/2021,(83400) Office Equipment,(id:42467) Surgery,NHS SUPPLY CHAIN (MAIDSTONE),id:13763774   , 581.83
Department of Health,Guys and St Thomas NHS Foundation Trust,23/04/2021,(81225) Medical Surgical Supplies & Equipment,(id:42466) Surgery,NHS SUPPLY CHAIN (MAIDSTONE),id:13933387  ,  74.40
Department of Health,Guys and St Thomas NHS Foundation Trust,09/04/2021,(82000) Provisions & Kitchens,(id:42465) Surgery,NHS SUPPLY CHAIN (MAIDSTONE),id:13763774   , 339.98
Department of Health,Guys and St Thomas NHS Foundation Trust,09/04/2021,(82800) Bedding & Linen,(id:42465) Surgery,NHS SUPPLY CHAIN (MAIDSTONE),id:13845954    , 152.69
Department of Health,Guys and St Thomas NHS Foundation Trust,28/04/2021,(84500) Establishment,(id:42465) Surgery,OFFICE DEPOT UK LTD,id:13975810,   4.61
Department of Health,Guys and St Thomas NHS Foundation Trust,09/04/2021,(81225) Medical Surgical Supplies & Equipment,(id:42465) Surgery,NHS SUPPLY CHAIN (MAIDSTONE),id:13763774  ,  37.24
Department of Health,Guys and St Thomas NHS Foundation Trust,09/04/2021,(81225) Medical Surgical Supplies & Equipment,(id:42465) Surgery,NHS SUPPLY CHAIN (MAIDSTONE),id:13894938  , 230.48
Department of Health,Guys and St Thomas NHS Foundation Trust,16/04/2021,(50522) Unqualified Nursing Staff,(id:42465) Surgery,MSI GROUP LTD,id:13993342    , 249.77
Department of Health,Guys and St Thomas NHS Foundation Trust,09/04/2021,(81700) Lab Equipment Purchase,(id:42464) Surgery,NHS SUPPLY CHAIN (MAIDSTONE),id:13763774  ,   3.18
Department of Health,Guys and St Thomas NHS Foundation Trust,09/04/2021,(82000) Provisions & Kitchens,(id:42464) Surgery,NHS SUPPLY CHAIN (MAIDSTONE),id:13894938   , 134.67
Department of Health,Guys and St Thomas NHS Foundation Trust,09/04/2021,(81225) Medical Surgical Supplies & Equipment,(id:42461) Surgery,NHS SUPPLY CHAIN (MAIDSTONE),id:13763774  , 390.00
Department of Health,Guys and St Thomas NHS Foundation Trust,01/04/2021,(81000) Surgical Appliances,(id:42461) Surgery,TALAR MADE ORTHOTICS LTD,id:13942834    , 614.07
Department of Health,Guys and St Thomas NHS Foundation Trust,01/04/2021,(81000) Surgical Appliances,(id:42461) Surgery,TALAR MADE ORTHOTICS LTD,id:13942915    , 570.04
Department of Health,Guys and St Thomas NHS Foundation Trust,23/04/2021,(81255) Medical Surgical Supplies & Equipment,(id:42459) Surgery,NHS SUPPLY CHAIN (MAIDSTONE),id:13933387  ,   4.32
Department of Health,Guys and St Thomas NHS Foundation Trust,16/04/2021,(81000) Surgical Appliances,(id:42459) Surgery,TALAR MADE ORTHOTICS LTD,id:13994194    ,  29.40
Department of Health,Guys and St Thomas NHS Foundation Trust,16/04/2021,(81000) Surgical Appliances,(id:42459) Surgery,TALAR MADE ORTHOTICS LTD,id:13994217    ,  93.00
Department of Health,Guys and St Thomas NHS Foundation Trust,01/04/2021,(81000) Surgical Appliances,(id:42459) Surgery,TALAR MADE ORTHOTICS LTD,id:13942974    , 218.04
Department of Health,Guys and St Thomas NHS Foundation Trust,09/04/2021,(81700) Lab Equipment Purchase,(id:42459) Surgery,NHS SUPPLY CHAIN (MAIDSTONE),id:13894938  ,  10.15
Department of Health,Guys and St Thomas NHS Foundation Trust,23/04/2021,(81200) Medical Surgical Supplies & Equipment,(id:42458) Surgery,NHS SUPPLY CHAIN (MAIDSTONE),id:13933387  ,1028.17
Department of Health,Guys and St Thomas NHS Foundation Trust,09/04/2021,(81225) Medical Surgical Supplies & Equipment,(id:42458) Surgery,NHS SUPPLY CHAIN (MAIDSTONE),id:13894938  ,   9.36
Department of Health,Guys and St Thomas NHS Foundation Trust,23/04/2021,(81225) Medical Surgical Supplies & Equipment,(id:42458) Surgery,NHS SUPPLY CHAIN (MAIDSTONE),id:13933387  ,   9.36
Department of Health,Guys and St Thomas NHS Foundation Trust,23/04/2021,(81400) Medical Surgical Supplies & Equipment,(id:356411) Haematology Cellular Pathology and Supporting Services,COX SCIENTIFIC LTD,id:14014934    , 750.00
Department of Health,Guys and St Thomas NHS Foundation Trust,23/04/2021,(81100) Dressings,(id:42270) Haematology Cellular Pathology and Supporting Services,NHS SUPPLY CHAIN (MAIDSTONE),id:13946606   , 140.31
Department of Health,Guys and St Thomas NHS Foundation Trust,09/04/2021,(81100) Dressings,(id:42270) Haematology Cellular Pathology and Supporting Services,NHS SUPPLY CHAIN (MAIDSTONE),id:13894938   , 774.09
Department of Health,Guys and St Thomas NHS Foundation Trust,23/04/2021,(81255) Medical Surgical Supplies & Equipment,(id:42270) Haematology Cellular Pathology and Supporting Services,NHS SUPPLY CHAIN (MAIDSTONE),id:13946606,   6.72
Department of Health,Guys and St Thomas NHS Foundation Trust,01/04/2021,(50200) Consultants,(id:42267) Haematology Cellular Pathology and Supporting Services,LEWISHAM AND GREENWICH NHS TRUST,id:13910055  , 890.00
Department of Health,Guys and St Thomas NHS Foundation Trust,01/04/2021,(81900) Lab Equipment Purchase,(id:42267) Haematology Cellular Pathology and Supporting Services,VIAPATH ANALYTICS LLP,id:13930134  ,1071.00
Department of Health,Guys and St Thomas NHS Foundation Trust,09/04/2021,(82800) Bedding & Linen,(id:42265) Haematology Cellular Pathology and Supporting Services,NHS SUPPLY CHAIN (MAIDSTONE),id:13845954  ,  88.49
Department of Health,Guys and St Thomas NHS Foundation Trust,23/04/2021,(82800) Bedding & Linen,(id:42265) Haematology Cellular Pathology and Supporting Services,NHS SUPPLY CHAIN (MAIDSTONE),id:13933387  ,  85.56
Department of Health,Guys and St Thomas NHS Foundation Trust,09/04/2021,(81200) Medical Surgical Supplies & Equipment,(id:42265) Haematology Cellular Pathology and Supporting Services,NHS SUPPLY CHAIN (MAIDSTONE),id:13894938,1795.77
Department of Health,Guys and St Thomas NHS Foundation Trust,09/04/2021,(81255) Medical Surgical Supplies & Equipment,(id:42265) Haematology Cellular Pathology and Supporting Services,NHS SUPPLY CHAIN (MAIDSTONE),id:13894938,  96.89
Department of Health,Guys and St Thomas NHS Foundation Trust,01/04/2021,(80205) Drug Costs,(id:42273) Haematology Cellular Pathology and Supporting Services,HEALTHCARE AT HOME LTD,id:13950195   ,    20107.00
Department of Health,Guys and St Thomas NHS Foundation Trust,01/04/2021,(80205) Drug Costs,(id:42273) Haematology Cellular Pathology and Supporting Services,SHIRE PHARMACEUTICALS LTD,id:13941354,4556.00
Department of Health,Guys and St Thomas NHS Foundation Trust,28/04/2021,(80205) Drug Costs,(id:42273) Haematology Cellular Pathology and Supporting Services,HEALTHCARE AT HOME LTD,id:14021614   ,1192.90
Department of Health,Guys and St Thomas NHS Foundation Trust,28/04/2021,(80205) Drug Costs,(id:42273) Haematology Cellular Pathology and Supporting Services,HEALTHCARE AT HOME LTD,id:14021834   ,2247.00
Department of Health,Guys and St Thomas NHS Foundation Trust,28/04/2021,(80205) Drug Costs,(id:42273) Haematology Cellular Pathology and Supporting Services,HEALTHCARE AT HOME LTD,id:14021575   ,2377.00
Department of Health,Guys and St Thomas NHS Foundation Trust,01/04/2021,(80205) Drug Costs,(id:42273) Haematology Cellular Pathology and Supporting Services,HEALTHCARE AT HOME LTD,id:13941556   ,3327.00
Department of Health,Guys and St Thomas NHS Foundation Trust,01/04/2021,(80205) Drug Costs,(id:42273) Haematology Cellular Pathology and Supporting Services,HEALTHCARE AT HOME LTD,id:13941554   ,4927.00
Department of Health,Guys and St Thomas NHS Foundation Trust,01/04/2021,(80205) Drug Costs,(id:42273) Haematology Cellular Pathology and Supporting Services,HEALTHCARE AT HOME LTD,id:13941678   ,6328.60
Department of Health,Guys and St Thomas NHS Foundation Trust,01/04/2021,(80205) Drug Costs,(id:42273) Haematology Cellular Pathology and Supporting Services,HEALTHCARE AT HOME LTD,id:13950161   ,8927.00
Department of Health,Guys and St Thomas NHS Foundation Trust,28/04/2021,(80205) Drug Costs,(id:42273) Haematology Cellular Pathology and Supporting Services,HEALTHCARE AT HOME LTD,id:14021674   ,4497.80
Department of Health,Guys and St Thomas NHS Foundation Trust,28/04/2021,(80205) Drug Costs,(id:42273) Haematology Cellular Pathology and Supporting Services,HEALTHCARE AT HOME LTD,id:14021442   ,4927.00
Department of Health,Guys and St Thomas NHS Foundation Trust,16/04/2021,(54052) Technical Officers,(id:42128) Haematology Cellular Pathology and Supporting Services,TOTAL ASSIST RECRUITMENT LTD,id:13970229    , 990.41
Department of Health,Guys and St Thomas NHS Foundation Trust,16/04/2021,(81700) Lab Equipment Purchase,(id:42128) Haematology Cellular Pathology and Supporting Services,CHEMSOL LIMITED,id:13980514   , 868.82
Department of Health,Guys and St Thomas NHS Foundation Trust,23/04/2021,(81200) Medical Surgical Supplies & Equipment,(id:42258) Oncology Services,NHS SUPPLY CHAIN (MAIDSTONE),id:13946606  , 368.23
Department of Health,Guys and St Thomas NHS Foundation Trust,01/04/2021,(84600) Establishment,(id:42258) Oncology Services,CLARITY TRAVEL MANAGEMENT,id:13402614    , -84.12
Department of Health,Guys and St Thomas NHS Foundation Trust,23/04/2021,(89595) Non-Healthcare from Foundation Trusts,(id:42258) Oncology Services,OXLEAS NHS FOUNDATION TRUST,id:14017935   ,1470.00
Department of Health,Guys and St Thomas NHS Foundation Trust,16/04/2021,(83710) Rates,(id:42258) Oncology Services,LONDON BOROUGH OF BEXLEY,id:13995175   ,   124488.00
Department of Health,Guys and St Thomas NHS Foundation Trust,23/04/2021,(81500) X Ray Equipment Purchase,(id:42258) Oncology Services,NHS SUPPLY CHAIN (MAIDSTONE),id:13946606, 310.80
Department of Health,Guys and St Thomas NHS Foundation Trust,09/04/2021,(81100) Dressings,(id:42258) Oncology Services,NHS SUPPLY CHAIN (MAIDSTONE),id:13763774, 368.90
Department of Health,Guys and St Thomas NHS Foundation Trust,09/04/2021,(81100) Dressings,(id:42258) Oncology Services,NHS SUPPLY CHAIN (MAIDSTONE),id:13894938, 349.09
Department of Health,Guys and St Thomas NHS Foundation Trust,01/04/2021,(81000) Surgical Appliances,(id:42257) Oncology Services,TALAR MADE ORTHOTICS LTD,id:13942454    ,  46.50
Department of Health,Guys and St Thomas NHS Foundation Trust,16/04/2021,(81000) Surgical Appliances,(id:42257) Oncology Services,TALAR MADE ORTHOTICS LTD,id:13996314    ,  17.00
Department of Health,Guys and St Thomas NHS Foundation Trust,16/04/2021,(81000) Surgical Appliances,(id:42257) Oncology Services,TALAR MADE ORTHOTICS LTD,id:13996755    ,  93.00
Department of Health,Guys and St Thomas NHS Foundation Trust,23/04/2021,(81700) Lab Equipment Purchase,(id:42261) Oncology Services,NHS SUPPLY CHAIN (MAIDSTONE),id:13933387  ,  61.67
Department of Health,Guys and St Thomas NHS Foundation Trust,01/04/2021,(81900) Lab Equipment Purchase,(id:42261) Oncology Services,VIAPATH ANALYTICS LLP,id:13930314    ,    18609.00
Department of Health,Guys and St Thomas NHS Foundation Trust,01/04/2021,(84600) Establishment,(id:42261) Oncology Services,CLARITY TRAVEL MANAGEMENT,id:13298334    , -37.00
Department of Health,Guys and St Thomas NHS Foundation Trust,09/04/2021,(81200) Medical Surgical Supplies & Equipment,(id:42260) Oncology Services,NHS SUPPLY CHAIN (MAIDSTONE),id:13845954  ,5555.56
Department of Health,Guys and St Thomas NHS Foundation Trust,23/04/2021,(81200) Medical Surgical Supplies & Equipment,(id:42260) Oncology Services,NHS SUPPLY CHAIN (MAIDSTONE),id:13946606  ,7757.94
Department of Health,Guys and St Thomas NHS Foundation Trust,01/04/2021,(81200) Medical Surgical Supplies & Equipment,(id:42260) Oncology Services,KIMAL PLC,id:13947415 ,4262.28
Department of Health,Guys and St Thomas NHS Foundation Trust,01/04/2021,(81200) Medical Surgical Supplies & Equipment,(id:42260) Oncology Services,KIMAL PLC,id:13940275 ,4238.28
Department of Health,Guys and St Thomas NHS Foundation Trust,09/04/2021,(82800) Bedding & Linen,(id:42260) Oncology Services,NHS SUPPLY CHAIN (MAIDSTONE),id:13894938    , 283.56
Department of Health,Guys and St Thomas NHS Foundation Trust,09/04/2021,(82800) Bedding & Linen,(id:42260) Oncology Services,NHS SUPPLY CHAIN (MAIDSTONE),id:13763774    , 371.90
Department of Health,Guys and St Thomas NHS Foundation Trust,09/04/2021,(82000) Provisions & Kitchens,(id:42260) Oncology Services,NHS SUPPLY CHAIN (MAIDSTONE),id:13894938   ,  20.18
Department of Health,Guys and St Thomas NHS Foundation Trust,23/04/2021,(82000) Provisions & Kitchens,(id:42260) Oncology Services,NHS SUPPLY CHAIN (MAIDSTONE),id:13946606   , 289.77
Department of Health,Guys and St Thomas NHS Foundation Trust,23/04/2021,(82700) Uniforms & Clothing,(id:42260) Oncology Services,NHS SUPPLY CHAIN (MAIDSTONE),id:13946606, 158.90
Department of Health,Guys and St Thomas NHS Foundation Trust,23/04/2021,(82700) Uniforms & Clothing,(id:42259) Oncology Services,NHS SUPPLY CHAIN (MAIDSTONE),id:13946606, 148.01
Department of Health,Guys and St Thomas NHS Foundation Trust,09/04/2021,(82000) Provisions & Kitchens,(id:42259) Oncology Services,NHS SUPPLY CHAIN (MAIDSTONE),id:13894938   ,  71.12
Department of Health,Guys and St Thomas NHS Foundation Trust,09/04/2021,(81100) Dressings,(id:42259) Oncology Services,NHS SUPPLY CHAIN (MAIDSTONE),id:13763774,  57.96
Department of Health,Guys and St Thomas NHS Foundation Trust,09/04/2021,(83400) Office Equipment,(id:42259) Oncology Services,NHS SUPPLY CHAIN (MAIDSTONE),id:13894938   , 130.34
Department of Health,Guys and St Thomas NHS Foundation Trust,09/04/2021,(81700) Lab Equipment Purchase,(id:42259) Oncology Services,NHS SUPPLY CHAIN (MAIDSTONE),id:13763774  ,  25.28
Department of Health,Guys and St Thomas NHS Foundation Trust,09/04/2021,(81700) Lab Equipment Purchase,(id:42259) Oncology Services,NHS SUPPLY CHAIN (MAIDSTONE),id:13894938  ,  51.38
Department of Health,Guys and St Thomas NHS Foundation Trust,23/04/2021,(81255) Medical Surgical Supplies & Equipment,(id:42259) Oncology Services,NHS SUPPLY CHAIN (MAIDSTONE),id:13946606  ,   7.68
Department of Health,Guys and St Thomas NHS Foundation Trust,01/04/2021,(81200) Medical Surgical Supplies & Equipment,(id:42280) Surgical Oncology,ELEMENTAL HEALTHCARE LTD,id:13932376 ,5295.00
Department of Health,Guys and St Thomas NHS Foundation Trust,09/04/2021,(81200) Medical Surgical Supplies & Equipment,(id:42280) Surgical Oncology,NHS SUPPLY CHAIN (MAIDSTONE),id:13894938  ,  54.00
Department of Health,Guys and St Thomas NHS Foundation Trust,09/04/2021,(81200) Medical Surgical Supplies & Equipment,(id:42280) Surgical Oncology,JOHNSON & JOHNSON MEDICAL LTD,id:13894294 ,2999.29
Department of Health,Guys and St Thomas NHS Foundation Trust,23/04/2021,(81700) Lab Equipment Purchase,(id:243406) Surgical Oncology,NHS SUPPLY CHAIN (MAIDSTONE),id:13946606 ,  10.15
Department of Health,Guys and St Thomas NHS Foundation Trust,23/04/2021,(81100) Dressings,(id:243406) Surgical Oncology,NHS SUPPLY CHAIN (MAIDSTONE),id:13933387    , 268.45
Department of Health,Guys and St Thomas NHS Foundation Trust,09/04/2021,(82700) Uniforms & Clothing,(id:243406) Surgical Oncology,NHS SUPPLY CHAIN (MAIDSTONE),id:13763774    ,  31.68
Department of Health,Guys and St Thomas NHS Foundation Trust,23/04/2021,(82800) Bedding & Linen,(id:42474) Surgical Oncology,NHS SUPPLY CHAIN (MAIDSTONE),id:13946606    , 139.47
Department of Health,Guys and St Thomas NHS Foundation Trust,23/04/2021,(81100) Dressings,(id:42474) Surgical Oncology,NHS SUPPLY CHAIN (MAIDSTONE),id:13946606, 288.84
Department of Health,Guys and St Thomas NHS Foundation Trust,09/04/2021,(81200) Medical Surgical Supplies & Equipment,(id:42474) Surgical Oncology,MEDTRONIC LTD,id:13901936  , 219.60
Department of Health,Guys and St Thomas NHS Foundation Trust,09/04/2021,(81200) Medical Surgical Supplies & Equipment,(id:42474) Surgical Oncology,MEDTRONIC LTD,id:13912977  ,1160.40
Department of Health,Guys and St Thomas NHS Foundation Trust,09/04/2021,(81200) Medical Surgical Supplies & Equipment,(id:42474) Surgical Oncology,MEDTRONIC LTD,id:13894251  , 403.20
Department of Health,Guys and St Thomas NHS Foundation Trust,23/04/2021,(81200) Medical Surgical Supplies & Equipment,(id:42474) Surgical Oncology,DELTA SURGICAL LTD,id:13928301  ,1033.20
Department of Health,Guys and St Thomas NHS Foundation Trust,09/04/2021,(81400) Medical Surgical Supplies & Equipment,(id:42474) Surgical Oncology,NHS SUPPLY CHAIN (MAIDSTONE),id:13894938  ,  44.00
Department of Health,Guys and St Thomas NHS Foundation Trust,23/04/2021,(81100) Dressings,(id:42473) Surgical Oncology,NHS SUPPLY CHAIN (MAIDSTONE),id:13946606,  76.60
Department of Health,Guys and St Thomas NHS Foundation Trust,09/04/2021,(81100) Dressings,(id:42473) Surgical Oncology,NHS SUPPLY CHAIN (MAIDSTONE),id:13894938, 189.36
Department of Health,Guys and St Thomas NHS Foundation Trust,09/04/2021,(81100) Dressings,(id:42473) Surgical Oncology,NHS SUPPLY CHAIN (MAIDSTONE),id:13763774,  24.78
Department of Health,Guys and St Thomas NHS Foundation Trust,09/04/2021,(81200) Medical Surgical Supplies & Equipment,(id:42473) Surgical Oncology,DELTA SURGICAL LTD,id:13928267  , 590.40
Department of Health,Guys and St Thomas NHS Foundation Trust,16/04/2021,(81200) Medical Surgical Supplies & Equipment,(id:42473) Surgical Oncology,JOHNSON & JOHNSON MEDICAL LTD,id:13940027 , 401.07
Department of Health,Guys and St Thomas NHS Foundation Trust,16/04/2021,(81200) Medical Surgical Supplies & Equipment,(id:42473) Surgical Oncology,MEDTRONIC LTD,id:13940074  , 619.20
Department of Health,Guys and St Thomas NHS Foundation Trust,01/04/2021,(81200) Medical Surgical Supplies & Equipment,(id:42473) Surgical Oncology,CCMED LTD,id:13931379 , 867.00
Department of Health,Guys and St Thomas NHS Foundation Trust,01/04/2021,(81200) Medical Surgical Supplies & Equipment,(id:42473) Surgical Oncology,JOHNSON & JOHNSON MEDICAL LTD,id:13882466 , 541.55
Department of Health,Guys and St Thomas NHS Foundation Trust,23/04/2021,(81400) Medical Surgical Supplies & Equipment,(id:42473) Surgical Oncology,KARL STORZ ENDOSCOPY UK LTD,id:13978598   , 862.75
Department of Health,Guys and St Thomas NHS Foundation Trust,09/04/2021,(81000) Surgical Appliances,(id:42473) Surgical Oncology,NHS SUPPLY CHAIN (MAIDSTONE),id:13845954, 315.00
Department of Health,Guys and St Thomas NHS Foundation Trust,09/04/2021,(82000) Provisions & Kitchens,(id:42475) Surgical Oncology,NHS SUPPLY CHAIN (MAIDSTONE),id:13845954   ,   7.81
Department of Health,Guys and St Thomas NHS Foundation Trust,23/04/2021,(82000) Provisions & Kitchens,(id:42475) Surgical Oncology,NHS SUPPLY CHAIN (MAIDSTONE),id:13946606   ,  58.73
Department of Health,Guys and St Thomas NHS Foundation Trust,09/04/2021,(81215) Medical Surgical Supplies & Equipment,(id:42475) Surgical Oncology,NHS SUPPLY CHAIN (MAIDSTONE),id:13763774  ,    41447.29
Department of Health,Guys and St Thomas NHS Foundation Trust,09/04/2021,(81215) Medical Surgical Supplies & Equipment,(id:42475) Surgical Oncology,COCHLEAR EUROPE LTD,id:13969095 ,    -7168.80
Department of Health,Guys and St Thomas NHS Foundation Trust,23/04/2021,(81215) Medical Surgical Supplies & Equipment,(id:42475) Surgical Oncology,NHS SUPPLY CHAIN (MAIDSTONE),id:13933387  ,    34356.85
Department of Health,Guys and St Thomas NHS Foundation Trust,23/04/2021,(81215) Medical Surgical Supplies & Equipment,(id:42475) Surgical Oncology,COCHLEAR EUROPE LTD,id:13981415 ,5394.00
Department of Health,Guys and St Thomas NHS Foundation Trust,23/04/2021,(81215) Medical Surgical Supplies & Equipment,(id:42475) Surgical Oncology,COCHLEAR EUROPE LTD,id:13981515 ,    11100.00
Department of Health,Guys and St Thomas NHS Foundation Trust,23/04/2021,(81215) Medical Surgical Supplies & Equipment,(id:42475) Surgical Oncology,COCHLEAR EUROPE LTD,id:13981574 ,    11100.00
Department of Health,Guys and St Thomas NHS Foundation Trust,23/04/2021,(81215) Medical Surgical Supplies & Equipment,(id:42475) Surgical Oncology,COCHLEAR EUROPE LTD,id:13979115 ,    19203.60
Department of Health,Guys and St Thomas NHS Foundation Trust,16/04/2021,(81215) Medical Surgical Supplies & Equipment,(id:42475) Surgical Oncology,ADVANCED BIONICS SARL (AND UK LTD),id:13987274 ,4680.00
Department of Health,Guys and St Thomas NHS Foundation Trust,16/04/2021,(81215) Medical Surgical Supplies & Equipment,(id:42475) Surgical Oncology,ADVANCED BIONICS SARL (AND UK LTD),id:13987374 ,    13992.00
Department of Health,Guys and St Thomas NHS Foundation Trust,01/04/2021,(83500) Furniture & Fittings,(id:42286) Surgical Oncology,WAGSTAFF INTERIORS GROUP,id:13927965   ,1342.80
Department of Health,Guys and St Thomas NHS Foundation Trust,01/04/2021,(81200) Medical Surgical Supplies & Equipment,(id:42286) Surgical Oncology,MEDTRONIC LTD,id:13882220  ,4107.89
Department of Health,Guys and St Thomas NHS Foundation Trust,09/04/2021,(82000) Provisions & Kitchens,(id:42284) Surgical Oncology,NHS SUPPLY CHAIN (MAIDSTONE),id:13845954   , 181.68
Department of Health,Guys and St Thomas NHS Foundation Trust,23/04/2021,(82800) Bedding & Linen,(id:42284) Surgical Oncology,NHS SUPPLY CHAIN (MAIDSTONE),id:13933387    ,  66.86
Department of Health,Guys and St Thomas NHS Foundation Trust,23/04/2021,(81100) Dressings,(id:42284) Surgical Oncology,NHS SUPPLY CHAIN (MAIDSTONE),id:13933387, 884.87
Department of Health,Guys and St Thomas NHS Foundation Trust,09/04/2021,(81100) Dressings,(id:42284) Surgical Oncology,NHS SUPPLY CHAIN (MAIDSTONE),id:13763774, 458.65
Department of Health,Guys and St Thomas NHS Foundation Trust,09/04/2021,(81200) Medical Surgical Supplies & Equipment,(id:42284) Surgical Oncology,NHS SUPPLY CHAIN (MAIDSTONE),id:13763774  , 347.30
Department of Health,Guys and St Thomas NHS Foundation Trust,23/04/2021,(81200) Medical Surgical Supplies & Equipment,(id:42284) Surgical Oncology,NHS SUPPLY CHAIN (MAIDSTONE),id:13933387  ,1636.09
Department of Health,Guys and St Thomas NHS Foundation Trust,09/04/2021,(81700) Lab Equipment Purchase,(id:42284) Surgical Oncology,NHS SUPPLY CHAIN (MAIDSTONE),id:13763774  ,  38.16
Department of Health,Guys and St Thomas NHS Foundation Trust,09/04/2021,(81100) Dressings,(id:42471) Surgical Oncology,JOHNSON & JOHNSON MEDICAL LTD,id:13901966    , 556.60
Department of Health,Guys and St Thomas NHS Foundation Trust,23/04/2021,(81100) Dressings,(id:42470) Surgical Oncology,NHS SUPPLY CHAIN (MAIDSTONE),id:13933387, 421.38
Department of Health,Guys and St Thomas NHS Foundation Trust,28/04/2021,(81200) Medical Surgical Supplies & Equipment,(id:42470) Surgical Oncology,BARD LTD,id:13729053  , 765.00
Department of Health,Guys and St Thomas NHS Foundation Trust,28/04/2021,(50552) Qualified Nursing Staff,(id:42470) Surgical Oncology,CONTINENTAL NURSE LTD,id:14039682   , 659.82
Department of Health,Guys and St Thomas NHS Foundation Trust,09/04/2021,(81255) Medical Surgical Supplies & Equipment,(id:42470) Surgical Oncology,NHS SUPPLY CHAIN (MAIDSTONE),id:13763774  ,  10.92
Department of Health,Guys and St Thomas NHS Foundation Trust,23/04/2021,(81255) Medical Surgical Supplies & Equipment,(id:42470) Surgical Oncology,NHS SUPPLY CHAIN (MAIDSTONE),id:13933387  , 362.88
Department of Health,Guys and St Thomas NHS Foundation Trust,01/04/2021,(81900) Lab Equipment Purchase,(id:4323419) Surgical Oncology,VIAPATH ANALYTICS LLP,id:13948304  ,    69000.00
Department of Health,Guys and St Thomas NHS Foundation Trust,16/04/2021,(81200) Medical Surgical Supplies & Equipment,(id:4605421) Surgical Oncology,JOHNSON & JOHNSON MEDICAL LTD,id:13984099    ,5418.36
Department of Health,Guys and St Thomas NHS Foundation Trust,23/04/2021,(81100) Dressings,(id:42508) Surgical Oncology,NHS SUPPLY CHAIN (MAIDSTONE),id:13946606,  45.22
Department of Health,Guys and St Thomas NHS Foundation Trust,09/04/2021,(83400) Office Equipment,(id:42508) Surgical Oncology,NHS SUPPLY CHAIN (MAIDSTONE),id:13845954   ,  31.30
Department of Health,Guys and St Thomas NHS Foundation Trust,09/04/2021,(81225) Medical Surgical Supplies & Equipment,(id:2182419) Acute & General Medicine,NHS SUPPLY CHAIN (MAIDSTONE),id:13894938   ,  73.99
Department of Health,Guys and St Thomas NHS Foundation Trust,09/04/2021,(82700) Uniforms & Clothing,(id:2182419) Acute & General Medicine,NHS SUPPLY CHAIN (MAIDSTONE),id:13894938 ,  56.26
Department of Health,Guys and St Thomas NHS Foundation Trust,09/04/2021,(81700) Lab Equipment Purchase,(id:2182419) Acute & General Medicine,NHS SUPPLY CHAIN (MAIDSTONE),id:13763774   , 179.59
Department of Health,Guys and St Thomas NHS Foundation Trust,09/04/2021,(82800) Bedding & Linen,(id:2182419) Acute & General Medicine,NHS SUPPLY CHAIN (MAIDSTONE),id:13894938, 541.62
Department of Health,Guys and St Thomas NHS Foundation Trust,28/04/2021,(50552) Qualified Nursing Staff,(id:2182419) Acute & General Medicine,CONTINENTAL NURSE LTD,id:14039890    ,2312.26
Department of Health,Guys and St Thomas NHS Foundation Trust,28/04/2021,(50552) Qualified Nursing Staff,(id:2182419) Acute & General Medicine,GLOBE LOCUMS LTD,id:14039820    , 682.55
Department of Health,Guys and St Thomas NHS Foundation Trust,09/04/2021,(82000) Provisions & Kitchens,(id:2182419) Acute & General Medicine,NHS SUPPLY CHAIN (MAIDSTONE),id:13763774    , 384.27
Department of Health,Guys and St Thomas NHS Foundation Trust,28/04/2021,(81400) Medical Surgical Supplies & Equipment,(id:1307420) Acute & General Medicine,EDAN MEDICAL (UK) LTD,id:14022134,4452.60
Department of Health,Guys and St Thomas NHS Foundation Trust,09/04/2021,(82600) Uniforms & Clothing,(id:41860) Acute & General Medicine,NHS SUPPLY CHAIN (MAIDSTONE),id:13845954   ,  12.42
Department of Health,Guys and St Thomas NHS Foundation Trust,23/04/2021,(82700) Uniforms & Clothing,(id:41860) Acute & General Medicine,NHS SUPPLY CHAIN (MAIDSTONE),id:13946606   ,  78.42
Department of Health,Guys and St Thomas NHS Foundation Trust,09/04/2021,(82000) Provisions & Kitchens,(id:41860) Acute & General Medicine,NHS SUPPLY CHAIN (MAIDSTONE),id:13894938 , 190.51
Department of Health,Guys and St Thomas NHS Foundation Trust,23/04/2021,(81100) Dressings,(id:41860) Acute & General Medicine,NHS SUPPLY CHAIN (MAIDSTONE),id:13933387   , 379.73
Department of Health,Guys and St Thomas NHS Foundation Trust,23/04/2021,(50552) Qualified Nursing Staff,(id:41860) Acute & General Medicine,MSI GROUP LTD,id:14017183    , 319.16
Department of Health,Guys and St Thomas NHS Foundation Trust,23/04/2021,(50552) Qualified Nursing Staff,(id:41860) Acute & General Medicine,CONTINENTAL NURSE LTD,id:14016955 ,2428.81
Department of Health,Guys and St Thomas NHS Foundation Trust,23/04/2021,(50552) Qualified Nursing Staff,(id:41860) Acute & General Medicine,MSI GROUP LTD,id:14017181    , 377.14
Department of Health,Guys and St Thomas NHS Foundation Trust,23/04/2021,(50552) Qualified Nursing Staff,(id:41860) Acute & General Medicine,MSI GROUP LTD,id:14017234    , 810.22
Department of Health,Guys and St Thomas NHS Foundation Trust,28/04/2021,(50552) Qualified Nursing Staff,(id:41860) Acute & General Medicine,GLOBE LOCUMS LTD,id:14039766 ,1352.08
Department of Health,Guys and St Thomas NHS Foundation Trust,28/04/2021,(50552) Qualified Nursing Staff,(id:41860) Acute & General Medicine,MSI GROUP LTD,id:14039627    , 913.56
Department of Health,Guys and St Thomas NHS Foundation Trust,09/04/2021,(81255) Medical Surgical Supplies & Equipment,(id:41860) Acute & General Medicine,NHS SUPPLY CHAIN (MAIDSTONE),id:13894938,   8.61
Department of Health,Guys and St Thomas NHS Foundation Trust,01/04/2021,(50522) Unqualified Nursing Staff,(id:41860) Acute & General Medicine,CARE PROVIDERS HEALTHCARE,id:13946563, 215.90
Department of Health,Guys and St Thomas NHS Foundation Trust,01/04/2021,(50522) Unqualified Nursing Staff,(id:41860) Acute & General Medicine,MSI GROUP LTD,id:13946206  , 262.11
Department of Health,Guys and St Thomas NHS Foundation Trust,01/04/2021,(50522) Unqualified Nursing Staff,(id:41860) Acute & General Medicine,MSI GROUP LTD,id:13946584  , 562.84
Department of Health,Guys and St Thomas NHS Foundation Trust,23/04/2021,(50522) Unqualified Nursing Staff,(id:41860) Acute & General Medicine,MSI GROUP LTD,id:14017082  , 278.76
Department of Health,Guys and St Thomas NHS Foundation Trust,23/04/2021,(50522) Unqualified Nursing Staff,(id:41860) Acute & General Medicine,CARE PROVIDERS HEALTHCARE,id:14017066, 335.52
Department of Health,Guys and St Thomas NHS Foundation Trust,09/04/2021,(81225) Medical Surgical Supplies & Equipment,(id:41860) Acute & General Medicine,NHS SUPPLY CHAIN (MAIDSTONE),id:13763774,   9.70
Department of Health,Guys and St Thomas NHS Foundation Trust,09/04/2021,(82000) Provisions & Kitchens,(id:41859) Acute & General Medicine,NHS SUPPLY CHAIN (MAIDSTONE),id:13845954 ,  55.58
Department of Health,Guys and St Thomas NHS Foundation Trust,09/04/2021,(83400) Office Equipment,(id:41859) Acute & General Medicine,NHS SUPPLY CHAIN (MAIDSTONE),id:13845954 , 193.43
Department of Health,Guys and St Thomas NHS Foundation Trust,23/04/2021,(82800) Bedding & Linen,(id:41859) Acute & General Medicine,NHS SUPPLY CHAIN (MAIDSTONE),id:13946606  , 117.45
Department of Health,Guys and St Thomas NHS Foundation Trust,01/04/2021,(50552) Qualified Nursing Staff,(id:41859) Acute & General Medicine,CARE PROVIDERS HEALTHCARE,id:13946234  , 349.72
Department of Health,Guys and St Thomas NHS Foundation Trust,28/04/2021,(50552) Qualified Nursing Staff,(id:41859) Acute & General Medicine,CARE PROVIDERS HEALTHCARE,id:14039934  , 679.88
Department of Health,Guys and St Thomas NHS Foundation Trust,09/04/2021,(81255) Medical Surgical Supplies & Equipment,(id:41859) Acute & General Medicine,NHS SUPPLY CHAIN (MAIDSTONE),id:13894938,   1.87
Department of Health,Guys and St Thomas NHS Foundation Trust,28/04/2021,(50522) Unqualified Nursing Staff,(id:41859) Acute & General Medicine,GLOBE LOCUMS LTD,id:14039859    , 405.83
Department of Health,Guys and St Thomas NHS Foundation Trust,09/04/2021,(50522) Unqualified Nursing Staff,(id:41859) Acute & General Medicine,CARE PROVIDERS HEALTHCARE,id:13972761, 530.73
Department of Health,Guys and St Thomas NHS Foundation Trust,09/04/2021,(50522) Unqualified Nursing Staff,(id:41859) Acute & General Medicine,HAYS HEALTHCARE LTD,id:13970245 , 557.64
Department of Health,Guys and St Thomas NHS Foundation Trust,09/04/2021,(82000) Provisions & Kitchens,(id:41858) Acute & General Medicine,NHS SUPPLY CHAIN (MAIDSTONE),id:13763774 ,  55.68
Department of Health,Guys and St Thomas NHS Foundation Trust,23/04/2021,(83400) Office Equipment,(id:41858) Acute & General Medicine,NHS SUPPLY CHAIN (MAIDSTONE),id:13946606 , 148.78
Department of Health,Guys and St Thomas NHS Foundation Trust,09/04/2021,(82800) Bedding & Linen,(id:41858) Acute & General Medicine,NHS SUPPLY CHAIN (MAIDSTONE),id:13763774  ,  81.75
Department of Health,Guys and St Thomas NHS Foundation Trust,23/04/2021,(82800) Bedding & Linen,(id:41858) Acute & General Medicine,NHS SUPPLY CHAIN (MAIDSTONE),id:13946606  , 136.49
Department of Health,Guys and St Thomas NHS Foundation Trust,09/04/2021,(81100) Dressings,(id:41858) Acute & General Medicine,NHS SUPPLY CHAIN (MAIDSTONE),id:13894938   ,4112.72
Department of Health,Guys and St Thomas NHS Foundation Trust,09/04/2021,(81200) Medical Surgical Supplies & Equipment,(id:41858) Acute & General Medicine,SCC PLC)SPECIALIST COMPUTER CENTRES,id:13929453   , 270.00
Department of Health,Guys and St Thomas NHS Foundation Trust,16/04/2021,(50203) Consultants,(id:41855) Acute & General Medicine,KINGS COLLEGE LONDON:03529700,id:13932534,    20098.48
Department of Health,Guys and St Thomas NHS Foundation Trust,28/04/2021,(50522) Unqualified Nursing Staff,(id:41872) Acute & General Medicine,MSI GROUP LTD,id:14039862  , 259.50
Department of Health,Guys and St Thomas NHS Foundation Trust,23/04/2021,(82000) Provisions & Kitchens,(id:41869) Acute & General Medicine,NHS SUPPLY CHAIN (MAIDSTONE),id:13946606 ,  38.91
Department of Health,Guys and St Thomas NHS Foundation Trust,09/04/2021,(84500) Establishment,(id:41869) Acute & General Medicine,CDP  PRINT MANAGEMENT,id:13957736 , 619.49
Department of Health,Guys and St Thomas NHS Foundation Trust,09/04/2021,(84500) Establishment,(id:41869) Acute & General Medicine,AGILE MEDICAL,id:13943403    , 864.00
Department of Health,Guys and St Thomas NHS Foundation Trust,23/04/2021,(83400) Office Equipment,(id:41869) Acute & General Medicine,NHS SUPPLY CHAIN (MAIDSTONE),id:13946606 , 313.09
Department of Health,Guys and St Thomas NHS Foundation Trust,09/04/2021,(83500) Furniture & Fittings,(id:41869) Acute & General Medicine,PINEAPPLE CONTRACTS,id:13950155 ,2958.00
Department of Health,Guys and St Thomas NHS Foundation Trust,09/04/2021,(81200) Medical Surgical Supplies & Equipment,(id:41869) Acute & General Medicine,NHS SUPPLY CHAIN (MAIDSTONE),id:13894938,2940.37
Department of Health,Guys and St Thomas NHS Foundation Trust,09/04/2021,(81100) Dressings,(id:41869) Acute & General Medicine,NHS SUPPLY CHAIN (MAIDSTONE),id:13845954   , 969.50
Department of Health,Guys and St Thomas NHS Foundation Trust,09/04/2021,(81100) Dressings,(id:41869) Acute & General Medicine,NHS SUPPLY CHAIN (MAIDSTONE),id:13894938   , 378.85
Department of Health,Guys and St Thomas NHS Foundation Trust,09/04/2021,(81225) Medical Surgical Supplies & Equipment,(id:41869) Acute & General Medicine,NHS SUPPLY CHAIN (MAIDSTONE),id:13763774, 655.56
Department of Health,Guys and St Thomas NHS Foundation Trust,09/04/2021,(81225) Medical Surgical Supplies & Equipment,(id:41869) Acute & General Medicine,NHS SUPPLY CHAIN (MAIDSTONE),id:13845954, 143.76
Department of Health,Guys and St Thomas NHS Foundation Trust,23/04/2021,(82800) Bedding & Linen,(id:41868) Acute & General Medicine,NHS SUPPLY CHAIN (MAIDSTONE),id:13946606  ,  88.26
Department of Health,Guys and St Thomas NHS Foundation Trust,23/04/2021,(83400) Office Equipment,(id:41868) Acute & General Medicine,NHS SUPPLY CHAIN (MAIDSTONE),id:13946606 ,  13.95
Department of Health,Guys and St Thomas NHS Foundation Trust,23/04/2021,(81700) Lab Equipment Purchase,(id:41868) Acute & General Medicine,NHS SUPPLY CHAIN (MAIDSTONE),id:13946606,  34.68
Department of Health,Guys and St Thomas NHS Foundation Trust,23/04/2021,(81700) Lab Equipment Purchase,(id:41868) Acute & General Medicine,NHS SUPPLY CHAIN (MAIDSTONE),id:13933387,  94.09
Department of Health,Guys and St Thomas NHS Foundation Trust,09/04/2021,(83400) Office Equipment,(id:41882) Acute & General Medicine,NHS SUPPLY CHAIN (MAIDSTONE),id:13894938 ,   9.22
Department of Health,Guys and St Thomas NHS Foundation Trust,23/04/2021,(83400) Office Equipment,(id:41882) Acute & General Medicine,NHS SUPPLY CHAIN (MAIDSTONE),id:13933387 ,  24.26
Department of Health,Guys and St Thomas NHS Foundation Trust,09/04/2021,(81100) Dressings,(id:41882) Acute & General Medicine,NHS SUPPLY CHAIN (MAIDSTONE),id:13894938   ,   2.52
Department of Health,Guys and St Thomas NHS Foundation Trust,09/04/2021,(82800) Bedding & Linen,(id:41880) Acute & General Medicine,NHS SUPPLY CHAIN (MAIDSTONE),id:13845954  , 211.18
Department of Health,Guys and St Thomas NHS Foundation Trust,28/04/2021,(50552) Qualified Nursing Staff,(id:41880) Acute & General Medicine,GLOBE LOCUMS LTD,id:14039632 , 367.60
Department of Health,Guys and St Thomas NHS Foundation Trust,09/04/2021,(81225) Medical Surgical Supplies & Equipment,(id:41880) Acute & General Medicine,NHS SUPPLY CHAIN (MAIDSTONE),id:13894938,   3.12
Department of Health,Guys and St Thomas NHS Foundation Trust,01/04/2021,(50522) Unqualified Nursing Staff,(id:41880) Acute & General Medicine,MEDICSPRO LTD,id:13946198  , 584.21
Department of Health,Guys and St Thomas NHS Foundation Trust,28/04/2021,(50522) Unqualified Nursing Staff,(id:41880) Acute & General Medicine,GLOBE LOCUMS LTD,id:14039859    , 202.91
Department of Health,Guys and St Thomas NHS Foundation Trust,23/04/2021,(83400) Office Equipment,(id:41879) Acute & General Medicine,NHS SUPPLY CHAIN (MAIDSTONE),id:13933387 ,  79.30
Department of Health,Guys and St Thomas NHS Foundation Trust,09/04/2021,(81100) Dressings,(id:41879) Acute & General Medicine,NHS SUPPLY CHAIN (MAIDSTONE),id:13894938   , 125.42
Department of Health,Guys and St Thomas NHS Foundation Trust,01/04/2021,(50522) Unqualified Nursing Staff,(id:41879) Acute & General Medicine,MSI GROUP LTD,id:13946203  ,1093.84
Department of Health,Guys and St Thomas NHS Foundation Trust,23/04/2021,(50522) Unqualified Nursing Staff,(id:41879) Acute & General Medicine,MSI GROUP LTD,id:14017204  ,1058.32
Department of Health,Guys and St Thomas NHS Foundation Trust,23/04/2021,(50522) Unqualified Nursing Staff,(id:41879) Acute & General Medicine,CARE PROVIDERS HEALTHCARE,id:14020599, 918.05
Department of Health,Guys and St Thomas NHS Foundation Trust,23/04/2021,(50522) Unqualified Nursing Staff,(id:41879) Acute & General Medicine,MSI GROUP LTD,id:14017059  ,1151.09
Department of Health,Guys and St Thomas NHS Foundation Trust,16/04/2021,(50522) Unqualified Nursing Staff,(id:41879) Acute & General Medicine,CARE PROVIDERS HEALTHCARE,id:13993004, 238.47
Department of Health,Guys and St Thomas NHS Foundation Trust,23/04/2021,(50552) Qualified Nursing Staff,(id:41879) Acute & General Medicine,CARE PROVIDERS HEALTHCARE,id:14020606  , 306.71
Department of Health,Guys and St Thomas NHS Foundation Trust,09/04/2021,(82800) Bedding & Linen,(id:41878) Acute & General Medicine,NHS SUPPLY CHAIN (MAIDSTONE),id:13763774  , 215.72
Department of Health,Guys and St Thomas NHS Foundation Trust,09/04/2021,(81100) Dressings,(id:41878) Acute & General Medicine,NHS SUPPLY CHAIN (MAIDSTONE),id:13894938   , 195.83
Department of Health,Guys and St Thomas NHS Foundation Trust,23/04/2021,(81200) Medical Surgical Supplies & Equipment,(id:41878) Acute & General Medicine,NHS SUPPLY CHAIN (MAIDSTONE),id:13946606, 549.57
Department of Health,Guys and St Thomas NHS Foundation Trust,23/04/2021,(81200) Medical Surgical Supplies & Equipment,(id:41878) Acute & General Medicine,NHS SUPPLY CHAIN (MAIDSTONE),id:13933387, 723.87
Department of Health,Guys and St Thomas NHS Foundation Trust,09/04/2021,(81255) Medical Surgical Supplies & Equipment,(id:41878) Acute & General Medicine,NHS SUPPLY CHAIN (MAIDSTONE),id:13763774,   1.56
Department of Health,Guys and St Thomas NHS Foundation Trust,16/04/2021,(81000) Surgical Appliances,(id:41876) Acute & General Medicine,MEDI UK LTD,id:13979938, 115.48
Department of Health,Guys and St Thomas NHS Foundation Trust,09/04/2021,(82700) Uniforms & Clothing,(id:41881) Acute & General Medicine,NHS SUPPLY CHAIN (MAIDSTONE),id:13763774   ,  80.83
Department of Health,Guys and St Thomas NHS Foundation Trust,09/04/2021,(82800) Bedding & Linen,(id:41881) Acute & General Medicine,NHS SUPPLY CHAIN (MAIDSTONE),id:13894938  , 120.25
Department of Health,Guys and St Thomas NHS Foundation Trust,01/04/2021,(50522) Unqualified Nursing Staff,(id:41881) Acute & General Medicine,MSI GROUP LTD,id:13946586  , 257.28
Department of Health,Guys and St Thomas NHS Foundation Trust,09/04/2021,(50522) Unqualified Nursing Staff,(id:41881) Acute & General Medicine,MEDICSPRO LTD,id:13970021  , 524.98
Department of Health,Guys and St Thomas NHS Foundation Trust,09/04/2021,(81200) Medical Surgical Supplies & Equipment,(id:41881) Acute & General Medicine,NHS SUPPLY CHAIN (MAIDSTONE),id:13845954, 363.84
Department of Health,Guys and St Thomas NHS Foundation Trust,23/04/2021,(81225) Medical Surgical Supplies & Equipment,(id:41881) Acute & General Medicine,NHS SUPPLY CHAIN (MAIDSTONE),id:13946606,  14.78
Department of Health,Guys and St Thomas NHS Foundation Trust,28/04/2021,(83610) IT Costs,(id:1435419) Acute & General Medicine,PROBRAND LIMITED,id:14029198    ,    -1260.00
Department of Health,Guys and St Thomas NHS Foundation Trust,01/04/2021,(84600) Establishment,(id:1435419) Acute & General Medicine,CLARITY TRAVEL MANAGEMENT,id:13298536, 376.12
Department of Health,Guys and St Thomas NHS Foundation Trust,01/04/2021,(84600) Establishment,(id:1435419) Acute & General Medicine,CLARITY TRAVEL MANAGEMENT,id:13940775, 269.02
Department of Health,Guys and St Thomas NHS Foundation Trust,16/04/2021,(84600) Establishment,(id:1435419) Acute & General Medicine,POLICY REVIEW PROJECTS LTD (T/A NEIL STEWART ASSOCIATES),id:13981854    ,1068.00
Department of Health,Guys and St Thomas NHS Foundation Trust,01/04/2021,(81200) Medical Surgical Supplies & Equipment,(id:42025) Dental Services,HENRY SCHEIN,id:13897075, 536.98
Department of Health,Guys and St Thomas NHS Foundation Trust,09/04/2021,(81200) Medical Surgical Supplies & Equipment,(id:42025) Dental Services,NHS SUPPLY CHAIN (MAIDSTONE),id:13894938    , 437.78
Department of Health,Guys and St Thomas NHS Foundation Trust,01/04/2021,(81200) Medical Surgical Supplies & Equipment,(id:42037) Dental Services,HENRY SCHEIN,id:13927776, 742.48
Department of Health,Guys and St Thomas NHS Foundation Trust,09/04/2021,(81200) Medical Surgical Supplies & Equipment,(id:42007) Dental Services,NHS SUPPLY CHAIN (MAIDSTONE),id:13763774    ,3546.07
Department of Health,Guys and St Thomas NHS Foundation Trust,23/04/2021,(81200) Medical Surgical Supplies & Equipment,(id:42015) Dental Services,NHS SUPPLY CHAIN (MAIDSTONE),id:13946606    , 586.92
Department of Health,Guys and St Thomas NHS Foundation Trust,16/04/2021,(50470) Medical Training Grades,(id:42033) Dental Services,EAST KENT HOSPITALS UNIVERSITY NHS FOUNDATION TRUST,id:13933776,3082.10
Department of Health,Guys and St Thomas NHS Foundation Trust,09/04/2021,(81100) Dressings,(id:42027) Dental Services,NHS SUPPLY CHAIN (MAIDSTONE),id:13894938  ,   8.48
Department of Health,Guys and St Thomas NHS Foundation Trust,09/04/2021,(82800) Bedding & Linen,(id:42027) Dental Services,NHS SUPPLY CHAIN (MAIDSTONE),id:13845954 ,  93.65
Department of Health,Guys and St Thomas NHS Foundation Trust,09/04/2021,(82800) Bedding & Linen,(id:42028) Dental Services,NHS SUPPLY CHAIN (MAIDSTONE),id:13894938 ,  46.82
Department of Health,Guys and St Thomas NHS Foundation Trust,09/04/2021,(81200) Medical Surgical Supplies & Equipment,(id:42016) Dental Services,DENTSPLY IH LTD,id:13928493  , 810.68
Department of Health,Guys and St Thomas NHS Foundation Trust,09/04/2021,(81200) Medical Surgical Supplies & Equipment,(id:42016) Dental Services,DENTSPLY IH LTD,id:13939277  , 640.54
Department of Health,Guys and St Thomas NHS Foundation Trust,28/04/2021,(81200) Medical Surgical Supplies & Equipment,(id:42016) Dental Services,DENTSPLY IH LTD,id:14029020  , 604.39
Department of Health,Guys and St Thomas NHS Foundation Trust,16/04/2021,(81400) Medical Surgical Supplies & Equipment,(id:42014) Dental Services,SIDENT LTD,id:13978720  , 600.00
Department of Health,Guys and St Thomas NHS Foundation Trust,09/04/2021,(83400) Office Equipment,(id:42014) Dental Services,NHS SUPPLY CHAIN (MAIDSTONE),id:13845954,  95.17
Department of Health,Guys and St Thomas NHS Foundation Trust,09/04/2021,(81700) Lab Equipment Purchase,(id:42014) Dental Services,NHS SUPPLY CHAIN (MAIDSTONE),id:13845954    ,  25.72
Department of Health,Guys and St Thomas NHS Foundation Trust,16/04/2021,(81500) X Ray Equipment Purchase,(id:42014) Dental Services,PARITY MEDICAL,id:13951636 ,3603.60
Department of Health,Guys and St Thomas NHS Foundation Trust,28/04/2021,(81200) Medical Surgical Supplies & Equipment,(id:41994) Dental Services,HENRY SCHEIN,id:14031956,3024.00
Department of Health,Guys and St Thomas NHS Foundation Trust,09/04/2021,(81200) Medical Surgical Supplies & Equipment,(id:4622420) Dental Services,NHS SUPPLY CHAIN (MAIDSTONE),id:13763774  , 159.29
Department of Health,Guys and St Thomas NHS Foundation Trust,09/04/2021,(81200) Medical Surgical Supplies & Equipment,(id:4622420) Dental Services,NHS SUPPLY CHAIN (MAIDSTONE),id:13845954  , 594.00
Department of Health,Guys and St Thomas NHS Foundation Trust,09/04/2021,(81200) Medical Surgical Supplies & Equipment,(id:1634433) Dental Services,NHS SUPPLY CHAIN (MAIDSTONE),id:13845954  , 220.27
Department of Health,Guys and St Thomas NHS Foundation Trust,23/04/2021,(81200) Medical Surgical Supplies & Equipment,(id:1634433) Dental Services,HENRY SCHEIN,id:13993635   , 764.33
Department of Health,Guys and St Thomas NHS Foundation Trust,23/04/2021,(82800) Bedding & Linen,(id:1634432) Dental Services,NHS SUPPLY CHAIN (MAIDSTONE),id:13933387    ,  93.65
Department of Health,Guys and St Thomas NHS Foundation Trust,16/04/2021,(81200) Medical Surgical Supplies & Equipment,(id:1634432) Dental Services,HENRY SCHEIN,id:13939549   , 767.04
Department of Health,Guys and St Thomas NHS Foundation Trust,09/04/2021,(81200) Medical Surgical Supplies & Equipment,(id:1634432) Dental Services,NHS SUPPLY CHAIN (MAIDSTONE),id:13763774  ,  86.34
Department of Health,Guys and St Thomas NHS Foundation Trust,09/04/2021,(81200) Medical Surgical Supplies & Equipment,(id:1634432) Dental Services,QED - QUALITY ENDODONTIC DISTRIBUTORS LTD,id:13942355    ,1739.10
Department of Health,Guys and St Thomas NHS Foundation Trust,01/04/2021,(81200) Medical Surgical Supplies & Equipment,(id:1634429) Dental Services,HENRY SCHEIN,id:13901334   , 808.86
Department of Health,Guys and St Thomas NHS Foundation Trust,28/04/2021,(81200) Medical Surgical Supplies & Equipment,(id:1634429) Dental Services,GEISTLICH SONS LTD,id:14037694  , 779.13
Department of Health,Guys and St Thomas NHS Foundation Trust,09/04/2021,(81200) Medical Surgical Supplies & Equipment,(id:1634429) Dental Services,HENRY SCHEIN,id:13933737   , 607.79
Department of Health,Guys and St Thomas NHS Foundation Trust,09/04/2021,(81200) Medical Surgical Supplies & Equipment,(id:1634429) Dental Services,NHS SUPPLY CHAIN (MAIDSTONE),id:13894938  ,1563.50
Department of Health,Guys and St Thomas NHS Foundation Trust,09/04/2021,(81200) Medical Surgical Supplies & Equipment,(id:1634429) Dental Services,QED - QUALITY ENDODONTIC DISTRIBUTORS LTD,id:13942336    ,1739.10
Department of Health,Guys and St Thomas NHS Foundation Trust,09/04/2021,(81200) Medical Surgical Supplies & Equipment,(id:1634429) Dental Services,QED - QUALITY ENDODONTIC DISTRIBUTORS LTD,id:13942296    ,1739.10
Department of Health,Guys and St Thomas NHS Foundation Trust,28/04/2021,(81200) Medical Surgical Supplies & Equipment,(id:1650421) Dental Services,BRACON LIMITED,id:14038875 ,1692.00
Department of Health,Guys and St Thomas NHS Foundation Trust,23/04/2021,(83500) Furniture & Fittings,(id:1650420) Dental Services,NHS SUPPLY CHAIN (MAIDSTONE),id:13946606    ,  81.60
Department of Health,Guys and St Thomas NHS Foundation Trust,16/04/2021,(50200) Consultants,(id:379409) Specialist Ambulatory Services,KINGS COLLEGE LONDON:03529700,id:13932014   ,    11417.80
Department of Health,Guys and St Thomas NHS Foundation Trust,16/04/2021,(89440) Research and Development,(id:42358) Specialist Ambulatory Services,THE INSTITUTE OF CANCER RESEARCH,id:13948914   ,3857.93
Department of Health,Guys and St Thomas NHS Foundation Trust,23/04/2021,(81200) Medical Surgical Supplies & Equipment,(id:42354) Specialist Ambulatory Services,UNIVERSITY COLLEGE LONDON,id:13363605  , 700.00
Department of Health,Guys and St Thomas NHS Foundation Trust,23/04/2021,(81100) Dressings,(id:3608419) Specialist Ambulatory Services,NHS SUPPLY CHAIN (MAIDSTONE),id:13946606,  85.87
Department of Health,Guys and St Thomas NHS Foundation Trust,09/04/2021,(82800) Bedding & Linen,(id:3607419) Specialist Ambulatory Services,NHS SUPPLY CHAIN (MAIDSTONE),id:13845954    ,  54.60
Department of Health,Guys and St Thomas NHS Foundation Trust,09/04/2021,(83400) Office Equipment,(id:3607419) Specialist Ambulatory Services,NHS SUPPLY CHAIN (MAIDSTONE),id:13763774   ,  45.84
Department of Health,Guys and St Thomas NHS Foundation Trust,09/04/2021,(81200) Medical Surgical Supplies & Equipment,(id:255405) Specialist Ambulatory Services,NHS SUPPLY CHAIN (MAIDSTONE),id:13763774   , 106.56
Department of Health,Guys and St Thomas NHS Foundation Trust,16/04/2021,(50203) Consultants,(id:42099) Specialist Ambulatory Services,KINGS COLLEGE LONDON:03529700,id:13932754    ,9417.00
Department of Health,Guys and St Thomas NHS Foundation Trust,09/04/2021,(83400) Office Equipment,(id:42091) Specialist Ambulatory Services,NHS SUPPLY CHAIN (MAIDSTONE),id:13845954,  12.49
Department of Health,Guys and St Thomas NHS Foundation Trust,23/04/2021,(81100) Dressings,(id:42091) Specialist Ambulatory Services,NHS SUPPLY CHAIN (MAIDSTONE),id:13933387  , 670.76
Department of Health,Guys and St Thomas NHS Foundation Trust,09/04/2021,(81275) Medical Surgical Supplies & Equipment,(id:42088) Specialist Ambulatory Services,CANUTE PHARMA LTD,id:13933385, 548.40
Department of Health,Guys and St Thomas NHS Foundation Trust,23/04/2021,(83400) Office Equipment,(id:42097) Specialist Ambulatory Services,NHS SUPPLY CHAIN (MAIDSTONE),id:13946606,  31.68
Department of Health,Guys and St Thomas NHS Foundation Trust,09/04/2021,(83400) Office Equipment,(id:42097) Specialist Ambulatory Services,NHS SUPPLY CHAIN (MAIDSTONE),id:13894938,  11.69
Department of Health,Guys and St Thomas NHS Foundation Trust,09/04/2021,(81200) Medical Surgical Supplies & Equipment,(id:42097) Specialist Ambulatory Services,NHS SUPPLY CHAIN (MAIDSTONE),id:13845954    , 113.03
Department of Health,Guys and St Thomas NHS Foundation Trust,23/04/2021,(81200) Medical Surgical Supplies & Equipment,(id:42079) Specialist Ambulatory Services,NHS SUPPLY CHAIN (MAIDSTONE),id:13933387    , 730.70
Department of Health,Guys and St Thomas NHS Foundation Trust,09/04/2021,(81200) Medical Surgical Supplies & Equipment,(id:42079) Specialist Ambulatory Services,NHS SUPPLY CHAIN (MAIDSTONE),id:13763774    , 248.47
Department of Health,Guys and St Thomas NHS Foundation Trust,09/04/2021,(81275) Medical Surgical Supplies & Equipment,(id:42079) Specialist Ambulatory Services,THERAKOS (UK) LIMITED,id:13956214 ,-760.80
Department of Health,Guys and St Thomas NHS Foundation Trust,09/04/2021,(83400) Office Equipment,(id:42079) Specialist Ambulatory Services,NHS SUPPLY CHAIN (MAIDSTONE),id:13763774,  14.25
Department of Health,Guys and St Thomas NHS Foundation Trust,23/04/2021,(81200) Medical Surgical Supplies & Equipment,(id:42066) Specialist Ambulatory Services,NHS SUPPLY CHAIN (MAIDSTONE),id:13933387    , 690.96
Department of Health,Guys and St Thomas NHS Foundation Trust,23/04/2021,(81700) Lab Equipment Purchase,(id:42066) Specialist Ambulatory Services,NHS SUPPLY CHAIN (MAIDSTONE),id:13946606    , 297.07
Department of Health,Guys and St Thomas NHS Foundation Trust,23/04/2021,(83400) Office Equipment,(id:42064) Specialist Ambulatory Services,NHS SUPPLY CHAIN (MAIDSTONE),id:13946606,  47.22
Department of Health,Guys and St Thomas NHS Foundation Trust,09/04/2021,(81700) Lab Equipment Purchase,(id:42064) Specialist Ambulatory Services,NHS SUPPLY CHAIN (MAIDSTONE),id:13763774    ,  31.44
Department of Health,Guys and St Thomas NHS Foundation Trust,16/04/2021,(50200) Consultants,(id:42057) Specialist Ambulatory Services,KINGS COLLEGE LONDON:03529700,id:13932234    ,5627.84
Department of Health,Guys and St Thomas NHS Foundation Trust,09/04/2021,(81200) Medical Surgical Supplies & Equipment,(id:42057) Specialist Ambulatory Services,NHS SUPPLY CHAIN (MAIDSTONE),id:13845954    ,  10.44
Department of Health,Guys and St Thomas NHS Foundation Trust,09/04/2021,(82000) Provisions & Kitchens,(id:42057) Specialist Ambulatory Services,NHS SUPPLY CHAIN (MAIDSTONE),id:13845954,   9.08
Department of Health,Guys and St Thomas NHS Foundation Trust,09/04/2021,(81200) Medical Surgical Supplies & Equipment,(id:42055) Specialist Ambulatory Services,NHS SUPPLY CHAIN (MAIDSTONE),id:13763774    ,   2.93
Department of Health,Guys and St Thomas NHS Foundation Trust,01/04/2021,(84600) Establishment,(id:818419) Pharmacy,CLARITY TRAVEL MANAGEMENT,id:13663837  , 841.25
Department of Health,Guys and St Thomas NHS Foundation Trust,28/04/2021,(53682) Pharmacists,(id:42165) Pharmacy,PRICEWATERHOUSECOOPERS LLP,id:14036654    ,3634.16
Department of Health,Guys and St Thomas NHS Foundation Trust,28/04/2021,(83400) Office Equipment,(id:42152) Pharmacy,COACS LTD,id:12928201 , 780.00
Department of Health,Guys and St Thomas NHS Foundation Trust,09/04/2021,(81200) Medical Surgical Supplies & Equipment,(id:581409) Pharmacy,NHS SUPPLY CHAIN (MAIDSTONE),id:13894938, 656.97
Department of Health,Guys and St Thomas NHS Foundation Trust,28/04/2021,(81200) Medical Surgical Supplies & Equipment,(id:581409) Pharmacy,RIVERSIDE MEDICAL PACKAGING CO LTD,id:13982754    , 692.69
Department of Health,Guys and St Thomas NHS Foundation Trust,28/04/2021,(53672) Pharmacists,(id:42159) Pharmacy,PRICEWATERHOUSECOOPERS LLP,id:14036654    ,1411.91
Department of Health,Guys and St Thomas NHS Foundation Trust,20/04/2021,(53672) Pharmacists,(id:42159) Pharmacy,PRICEWATERHOUSECOOPERS LLP,id:14005116    ,2560.78
Department of Health,Guys and St Thomas NHS Foundation Trust,09/04/2021,(81200) Medical Surgical Supplies & Equipment,(id:42159) Pharmacy,NHS SUPPLY CHAIN (MAIDSTONE),id:13845954 ,  45.27
Department of Health,Guys and St Thomas NHS Foundation Trust,01/04/2021,(81200) Medical Surgical Supplies & Equipment,(id:42159) Pharmacy,WICKHAM LABORATORIES LTD,id:13912836, 606.00
Department of Health,Guys and St Thomas NHS Foundation Trust,01/04/2021,(81200) Medical Surgical Supplies & Equipment,(id:42159) Pharmacy,WICKHAM LABORATORIES LTD,id:13912838,    11231.00
Department of Health,Guys and St Thomas NHS Foundation Trust,28/04/2021,(81400) Medical Surgical Supplies & Equipment,(id:42159) Pharmacy,MEDICAL PIPELINE SERVICES LTD,id:14006574,3116.00
Department of Health,Guys and St Thomas NHS Foundation Trust,23/04/2021,(84400) Transport,(id:42159) Pharmacy,POLAR SPEED DISTRIBUTION LTD,id:13939697    , 847.60
Department of Health,Guys and St Thomas NHS Foundation Trust,23/04/2021,(84400) Transport,(id:42159) Pharmacy,POLAR SPEED DISTRIBUTION LTD,id:13939696    ,1198.64
Department of Health,Guys and St Thomas NHS Foundation Trust,01/04/2021,(89000) Other - Training courses and conferences,(id:42159) Pharmacy,NSF HEALTH SCIENCES LIMITED,id:13935395    ,1480.00
Department of Health,Guys and St Thomas NHS Foundation Trust,09/04/2021,(89000) Other - Training courses and conferences,(id:42159) Pharmacy,NSF HEALTH SCIENCES LIMITED,id:10773471    ,1650.00
Department of Health,Guys and St Thomas NHS Foundation Trust,09/04/2021,(81100) Dressings,(id:42159) Pharmacy,NHS SUPPLY CHAIN (MAIDSTONE),id:13845954    ,  11.47
Department of Health,Guys and St Thomas NHS Foundation Trust,20/04/2021,(53672) Pharmacists,(id:42160) Pharmacy,PRICEWATERHOUSECOOPERS LLP,id:14005116    ,1399.53
Department of Health,Guys and St Thomas NHS Foundation Trust,20/04/2021,(54052) Technical Officers,(id:42160) Pharmacy,PRICEWATERHOUSECOOPERS LLP,id:14004675  , 771.27
Department of Health,Guys and St Thomas NHS Foundation Trust,20/04/2021,(54052) Technical Officers,(id:42160) Pharmacy,PRICEWATERHOUSECOOPERS LLP,id:14005116  , 917.09
Department of Health,Guys and St Thomas NHS Foundation Trust,20/04/2021,(53632) Pharmacists,(id:42160) Pharmacy,PRICEWATERHOUSECOOPERS LLP,id:14005116    , 864.26
Department of Health,Guys and St Thomas NHS Foundation Trust,28/04/2021,(80100) Drug Costs,(id:42154) Pharmacy,BOC LTD :02107500,id:14041955    ,    35983.40
Department of Health,Guys and St Thomas NHS Foundation Trust,28/04/2021,(53672) Pharmacists,(id:42164) Pharmacy,PRICEWATERHOUSECOOPERS LLP,id:14036654    ,4244.63
Department of Health,Guys and St Thomas NHS Foundation Trust,01/04/2021,(84655) Establishment,(id:42178) Medical Specialties,LANGUAGE CONNECT,id:13948374 ,2351.86
Department of Health,Guys and St Thomas NHS Foundation Trust,23/04/2021,(84655) Establishment,(id:42178) Medical Specialties,CLARION INTERPRETING LIMITED,id:14014039    ,2250.00
Department of Health,Guys and St Thomas NHS Foundation Trust,16/04/2021,(81000) Surgical Appliances,(id:42171) Medical Specialties,TALAR MADE ORTHOTICS LTD,id:13996375  ,   8.50
Department of Health,Guys and St Thomas NHS Foundation Trust,16/04/2021,(81000) Surgical Appliances,(id:42171) Medical Specialties,TALAR MADE ORTHOTICS LTD,id:13993936  ,  46.50
Department of Health,Guys and St Thomas NHS Foundation Trust,16/04/2021,(81000) Surgical Appliances,(id:42171) Medical Specialties,TALAR MADE ORTHOTICS LTD,id:13996835  , 534.00
Department of Health,Guys and St Thomas NHS Foundation Trust,09/04/2021,(82800) Bedding & Linen,(id:42217) Medical Specialties,NHS SUPPLY CHAIN (MAIDSTONE),id:13845954  ,  93.65
Department of Health,Guys and St Thomas NHS Foundation Trust,23/04/2021,(82000) Provisions & Kitchens,(id:42251) Medical Specialties,NHS SUPPLY CHAIN (MAIDSTONE),id:13946606 ,  16.08
Department of Health,Guys and St Thomas NHS Foundation Trust,20/04/2021,(51272) Dieticians,(id:42251) Medical Specialties,PRICEWATERHOUSECOOPERS LLP,id:14004675    ,1127.83
Department of Health,Guys and St Thomas NHS Foundation Trust,09/04/2021,(81200) Medical Surgical Supplies & Equipment,(id:42223) Medical Specialties,CARLETON OPTICAL EQUIPMENT LTD,id:13933380   ,3260.83
Department of Health,Guys and St Thomas NHS Foundation Trust,28/04/2021,(81200) Medical Surgical Supplies & Equipment,(id:42223) Medical Specialties,CARL ZEISS LTD,id:14036357    , 688.54
Department of Health,Guys and St Thomas NHS Foundation Trust,23/04/2021,(81200) Medical Surgical Supplies & Equipment,(id:42223) Medical Specialties,NHS SUPPLY CHAIN (MAIDSTONE),id:13946606, 868.61
Department of Health,Guys and St Thomas NHS Foundation Trust,23/04/2021,(81200) Medical Surgical Supplies & Equipment,(id:42223) Medical Specialties,NHS SUPPLY CHAIN (MAIDSTONE),id:13933387,1877.15
Department of Health,Guys and St Thomas NHS Foundation Trust,28/04/2021,(81200) Medical Surgical Supplies & Equipment,(id:42223) Medical Specialties,SANTEN UK LTD,id:14039334,    44280.00
Department of Health,Guys and St Thomas NHS Foundation Trust,09/04/2021,(83400) Office Equipment,(id:42223) Medical Specialties,NHS SUPPLY CHAIN (MAIDSTONE),id:13763774 , 163.53
Department of Health,Guys and St Thomas NHS Foundation Trust,16/04/2021,(81200) Medical Surgical Supplies & Equipment,(id:42222) Medical Specialties,BEAVER-VISITEC INTERNATIONAL (SALES) LTD,id:13954534   ,5040.00
Department of Health,Guys and St Thomas NHS Foundation Trust,23/04/2021,(81700) Lab Equipment Purchase,(id:590478) Medical Specialties,NHS SUPPLY CHAIN (MAIDSTONE),id:13933387    ,  72.00
Department of Health,Guys and St Thomas NHS Foundation Trust,09/04/2021,(81200) Medical Surgical Supplies & Equipment,(id:42213) Medical Specialties,NHS SUPPLY CHAIN (MAIDSTONE),id:13845954, 958.29
Department of Health,Guys and St Thomas NHS Foundation Trust,09/04/2021,(81100) Dressings,(id:42213) Medical Specialties,NHS SUPPLY CHAIN (MAIDSTONE),id:13763774   , 214.69
Department of Health,Guys and St Thomas NHS Foundation Trust,23/04/2021,(50202) Consultants,(id:42213) Medical Specialties,DRS A BRADFORD A ABRAHAM & G STEELE,id:13955037    ,6750.00
Department of Health,Guys and St Thomas NHS Foundation Trust,01/04/2021,(81000) Surgical Appliances,(id:42213) Medical Specialties,TALAR MADE ORTHOTICS LTD,id:13942834  , 285.60
Department of Health,Guys and St Thomas NHS Foundation Trust,06/04/2021,(50200) Consultants,(id:42213) Medical Specialties,NHS SOUTH EAST LONDON CCG,id:13933782    ,3214.30
Department of Health,Guys and St Thomas NHS Foundation Trust,01/04/2021,(81000) Surgical Appliances,(id:42209) Medical Specialties,TALAR MADE ORTHOTICS LTD,id:13942534  ,  14.40
Department of Health,Guys and St Thomas NHS Foundation Trust,09/04/2021,(82000) Provisions & Kitchens,(id:42208) Medical Specialties,NHS SUPPLY CHAIN (MAIDSTONE),id:13763774 , 136.80
Department of Health,Guys and St Thomas NHS Foundation Trust,09/04/2021,(81200) Medical Surgical Supplies & Equipment,(id:42208) Medical Specialties,NHS SUPPLY CHAIN (MAIDSTONE),id:13763774, 426.57
Department of Health,Guys and St Thomas NHS Foundation Trust,09/04/2021,(81200) Medical Surgical Supplies & Equipment,(id:42208) Medical Specialties,NHS SUPPLY CHAIN (MAIDSTONE),id:13894938, 181.92
Department of Health,Guys and St Thomas NHS Foundation Trust,16/04/2021,(81200) Medical Surgical Supplies & Equipment,(id:42208) Medical Specialties,INSULET INTERNATIONAL LTD,id:13904616   , 712.08
Department of Health,Guys and St Thomas NHS Foundation Trust,16/04/2021,(81200) Medical Surgical Supplies & Equipment,(id:42208) Medical Specialties,INSULET INTERNATIONAL LTD,id:13947014   , 712.08
Department of Health,Guys and St Thomas NHS Foundation Trust,16/04/2021,(81200) Medical Surgical Supplies & Equipment,(id:42208) Medical Specialties,DEXCOM INTERNATIONAL LTD,id:13952856    , 793.50
Department of Health,Guys and St Thomas NHS Foundation Trust,16/04/2021,(81200) Medical Surgical Supplies & Equipment,(id:42208) Medical Specialties,DEXCOM INTERNATIONAL LTD,id:13952814    , 793.50
Department of Health,Guys and St Thomas NHS Foundation Trust,16/04/2021,(81200) Medical Surgical Supplies & Equipment,(id:42208) Medical Specialties,MEDTRONIC LTD,id:13954422, 571.97
Department of Health,Guys and St Thomas NHS Foundation Trust,16/04/2021,(81200) Medical Surgical Supplies & Equipment,(id:42208) Medical Specialties,DEXCOM INTERNATIONAL LTD,id:13955874    , 600.00
Department of Health,Guys and St Thomas NHS Foundation Trust,16/04/2021,(81200) Medical Surgical Supplies & Equipment,(id:42208) Medical Specialties,DEXCOM INTERNATIONAL LTD,id:13955834    , 600.00
Department of Health,Guys and St Thomas NHS Foundation Trust,16/04/2021,(81200) Medical Surgical Supplies & Equipment,(id:42208) Medical Specialties,INSULET INTERNATIONAL LTD,id:13931278   , 706.32
Department of Health,Guys and St Thomas NHS Foundation Trust,16/04/2021,(81200) Medical Surgical Supplies & Equipment,(id:42208) Medical Specialties,INSULET INTERNATIONAL LTD,id:13931234   , 712.08
Department of Health,Guys and St Thomas NHS Foundation Trust,01/04/2021,(81200) Medical Surgical Supplies & Equipment,(id:42208) Medical Specialties,MEDTRONIC LTD,id:13870196, 506.90
Department of Health,Guys and St Thomas NHS Foundation Trust,09/04/2021,(81200) Medical Surgical Supplies & Equipment,(id:42208) Medical Specialties,ROCHE DIABETES CARE LIMITED,id:13938837 ,2994.00
Department of Health,Guys and St Thomas NHS Foundation Trust,23/04/2021,(81200) Medical Surgical Supplies & Equipment,(id:42208) Medical Specialties,DEXCOM INTERNATIONAL LTD,id:13999936    , 793.50
Department of Health,Guys and St Thomas NHS Foundation Trust,16/04/2021,(80010) Drug Costs,(id:42204) Medical Specialties,INHEALTH LTD/ECHOTECH LTD/REPORTING,id:13923641,1000.00
Department of Health,Guys and St Thomas NHS Foundation Trust,28/04/2021,(89595) Non-Healthcare from Foundation Trusts,(id:302405) Medical Specialties,KING'S COLLEGE HOSPITAL NHS FOUNDATION TRUST,id:14024454   ,    16614.00
Department of Health,Guys and St Thomas NHS Foundation Trust,23/04/2021,(83400) Office Equipment,(id:41937) Medical Specialties,NHS SUPPLY CHAIN (MAIDSTONE),id:13946606 , 193.94
Department of Health,Guys and St Thomas NHS Foundation Trust,09/04/2021,(83400) Office Equipment,(id:41937) Medical Specialties,NHS SUPPLY CHAIN (MAIDSTONE),id:13845954 , 197.71
Department of Health,Guys and St Thomas NHS Foundation Trust,09/04/2021,(81200) Medical Surgical Supplies & Equipment,(id:41937) Medical Specialties,JOHNSON & JOHNSON MEDICAL LTD,id:13894280    ,  19.40
Department of Health,Guys and St Thomas NHS Foundation Trust,09/04/2021,(81200) Medical Surgical Supplies & Equipment,(id:41937) Medical Specialties,BXTACCELYON LIMITED,id:13928686    ,1254.00
Department of Health,Guys and St Thomas NHS Foundation Trust,09/04/2021,(82800) Bedding & Linen,(id:41937) Medical Specialties,NHS SUPPLY CHAIN (MAIDSTONE),id:13845954  , 103.27
Department of Health,Guys and St Thomas NHS Foundation Trust,23/04/2021,(81225) Medical Surgical Supplies & Equipment,(id:41937) Medical Specialties,NHS SUPPLY CHAIN (MAIDSTONE),id:13933387, 209.52
Department of Health,Guys and St Thomas NHS Foundation Trust,23/04/2021,(81700) Lab Equipment Purchase,(id:41937) Medical Specialties,NHS SUPPLY CHAIN (MAIDSTONE),id:13933387,   6.10
Department of Health,Guys and St Thomas NHS Foundation Trust,20/04/2021,(51862) Physiotherapists,(id:42230) Therapies and Rehabilitation,PRICEWATERHOUSECOOPERS LLP,id:14004675    ,4464.33
Department of Health,Guys and St Thomas NHS Foundation Trust,09/04/2021,(82800) Bedding & Linen,(id:42230) Therapies and Rehabilitation,NHS SUPPLY CHAIN (MAIDSTONE),id:13894938   ,  70.24
Department of Health,Guys and St Thomas NHS Foundation Trust,28/04/2021,(81200) Medical Surgical Supplies & Equipment,(id:42230) Therapies and Rehabilitation,ROBLETT ELECTRICAL CONTRACTORS LTD,id:14032434, 975.21
Department of Health,Guys and St Thomas NHS Foundation Trust,01/04/2021,(83610) IT Costs,(id:42230) Therapies and Rehabilitation,CCS MEDIA LTD,id:13931336,1108.80
Department of Health,Guys and St Thomas NHS Foundation Trust,20/04/2021,(51472) Occupational Therapists,(id:42240) Therapies and Rehabilitation,PRICEWATERHOUSECOOPERS LLP,id:14004675  ,3401.98
Department of Health,Guys and St Thomas NHS Foundation Trust,23/04/2021,(81100) Dressings,(id:42239) Therapies and Rehabilitation,NHS SUPPLY CHAIN (MAIDSTONE),id:13933387    , 494.62
Department of Health,Guys and St Thomas NHS Foundation Trust,09/04/2021,(81100) Dressings,(id:42239) Therapies and Rehabilitation,NHS SUPPLY CHAIN (MAIDSTONE),id:13845954    , 448.90
Department of Health,Guys and St Thomas NHS Foundation Trust,09/04/2021,(81225) Medical Surgical Supplies & Equipment,(id:42239) Therapies and Rehabilitation,NHS SUPPLY CHAIN (MAIDSTONE),id:13763774 , 161.40
Department of Health,Guys and St Thomas NHS Foundation Trust,09/04/2021,(83400) Office Equipment,(id:42243) Therapies and Rehabilitation,NHS SUPPLY CHAIN (MAIDSTONE),id:13845954  ,  94.39
Department of Health,Guys and St Thomas NHS Foundation Trust,01/04/2021,(83610) IT Costs,(id:590500) Therapies and Rehabilitation,DAD IN A SHED LIMITED,id:13950176 ,4463.93
Department of Health,Guys and St Thomas NHS Foundation Trust,16/04/2021,(55052) Admin & Clerical,(id:590500) Therapies and Rehabilitation,VENN GROUP LTD,id:13993128,3688.27
Department of Health,Guys and St Thomas NHS Foundation Trust,16/04/2021,(81225) Medical Surgical Supplies & Equipment,(id:590499) Therapies and Rehabilitation,SUNRISE MEDICAL LIMITED,id:13878956, 535.68
Department of Health,Guys and St Thomas NHS Foundation Trust,09/04/2021,(81200) Medical Surgical Supplies & Equipment,(id:590498) Therapies and Rehabilitation,NHS SUPPLY CHAIN (MAIDSTONE),id:13845954,  18.00
Department of Health,Guys and St Thomas NHS Foundation Trust,28/04/2021,(81225) Medical Surgical Supplies & Equipment,(id:590498) Therapies and Rehabilitation,JANE SAUNDERS & MANNING LTD,id:14027074 , 684.43
Department of Health,Guys and St Thomas NHS Foundation Trust,01/04/2021,(89595) Non-Healthcare from Foundation Trusts,(id:590498) Therapies and Rehabilitation,KENT COMMUNITY HEALTH NHS FOUNDATION TRUST,id:13810321 ,2591.36
Department of Health,Guys and St Thomas NHS Foundation Trust,09/04/2021,(82600) Uniforms & Clothing,(id:590498) Therapies and Rehabilitation,NHS SUPPLY CHAIN (MAIDSTONE),id:13845954   ,   7.38
Department of Health,Guys and St Thomas NHS Foundation Trust,23/04/2021,(81200) Medical Surgical Supplies & Equipment,(id:1042419) Therapies and Rehabilitation,NHS SUPPLY CHAIN (MAIDSTONE),id:13946606    , 199.55
Department of Health,Guys and St Thomas NHS Foundation Trust,28/04/2021,(81200) Medical Surgical Supplies & Equipment,(id:1042419) Therapies and Rehabilitation,INVACARE LTD,id:14025154, 601.20
Department of Health,Guys and St Thomas NHS Foundation Trust,16/04/2021,(50203) Consultants,(id:42368) Clinical Imaging & Med Physics,KINGS COLLEGE LONDON:03529700,id:13932615    ,    23464.18
Department of Health,Guys and St Thomas NHS Foundation Trust,20/04/2021,(50202) Consultants,(id:42368) Clinical Imaging & Med Physics,PRICEWATERHOUSECOOPERS LLP,id:14004894  ,1771.35
Department of Health,Guys and St Thomas NHS Foundation Trust,09/04/2021,(82600) Uniforms & Clothing,(id:42367) Clinical Imaging & Med Physics,NHS SUPPLY CHAIN (MAIDSTONE),id:13845954  , 212.33
Department of Health,Guys and St Thomas NHS Foundation Trust,09/04/2021,(83400) Office Equipment,(id:42367) Clinical Imaging & Med Physics,NHS SUPPLY CHAIN (MAIDSTONE),id:13845954,1451.19
Department of Health,Guys and St Thomas NHS Foundation Trust,09/04/2021,(82800) Bedding & Linen,(id:42367) Clinical Imaging & Med Physics,NHS SUPPLY CHAIN (MAIDSTONE),id:13845954 , 617.97
Department of Health,Guys and St Thomas NHS Foundation Trust,09/04/2021,(81100) Dressings,(id:42367) Clinical Imaging & Med Physics,NHS SUPPLY CHAIN (MAIDSTONE),id:13894938  , 206.97
Department of Health,Guys and St Thomas NHS Foundation Trust,28/04/2021,(81400) Medical Surgical Supplies & Equipment,(id:42367) Clinical Imaging & Med Physics,H & C CONTRACTS LIMITED CIS5,id:14035335    ,3286.00
Department of Health,Guys and St Thomas NHS Foundation Trust,28/04/2021,(81400) Medical Surgical Supplies & Equipment,(id:42367) Clinical Imaging & Med Physics,BAYER PLC,id:14024669   ,3358.00
Department of Health,Guys and St Thomas NHS Foundation Trust,28/04/2021,(81400) Medical Surgical Supplies & Equipment,(id:42367) Clinical Imaging & Med Physics,BAYER PLC,id:14024683   ,3793.00
Department of Health,Guys and St Thomas NHS Foundation Trust,23/04/2021,(81200) Medical Surgical Supplies & Equipment,(id:42367) Clinical Imaging & Med Physics,COOK UK LTD,id:13894327 , 792.00
Department of Health,Guys and St Thomas NHS Foundation Trust,23/04/2021,(81200) Medical Surgical Supplies & Equipment,(id:42367) Clinical Imaging & Med Physics,BARD LTD,id:13965131    , 604.80
Department of Health,Guys and St Thomas NHS Foundation Trust,23/04/2021,(81200) Medical Surgical Supplies & Equipment,(id:42367) Clinical Imaging & Med Physics,BARD LTD,id:13965130    , 604.80
Department of Health,Guys and St Thomas NHS Foundation Trust,28/04/2021,(81200) Medical Surgical Supplies & Equipment,(id:42367) Clinical Imaging & Med Physics,APRIOMED AB,id:13654395 , 720.00
Department of Health,Guys and St Thomas NHS Foundation Trust,09/04/2021,(81200) Medical Surgical Supplies & Equipment,(id:42367) Clinical Imaging & Med Physics,BOSTON SCIENTIFIC LTD,id:13917680 ,1404.00
Department of Health,Guys and St Thomas NHS Foundation Trust,09/04/2021,(81200) Medical Surgical Supplies & Equipment,(id:42367) Clinical Imaging & Med Physics,BOSTON SCIENTIFIC LTD,id:13917683 ,1032.00
Department of Health,Guys and St Thomas NHS Foundation Trust,09/04/2021,(81200) Medical Surgical Supplies & Equipment,(id:42367) Clinical Imaging & Med Physics,MEDTRONIC LTD,id:13887674    ,2160.00
Department of Health,Guys and St Thomas NHS Foundation Trust,09/04/2021,(81200) Medical Surgical Supplies & Equipment,(id:42367) Clinical Imaging & Med Physics,ABBOTT MEDICAL UK LTD,id:13953663 ,7560.00
Department of Health,Guys and St Thomas NHS Foundation Trust,28/04/2021,(81200) Medical Surgical Supplies & Equipment,(id:42367) Clinical Imaging & Med Physics,COOK UK LTD,id:13975944 , 501.60
Department of Health,Guys and St Thomas NHS Foundation Trust,01/04/2021,(81200) Medical Surgical Supplies & Equipment,(id:42367) Clinical Imaging & Med Physics,COOK UK LTD,id:13870780 , 225.60
Department of Health,Guys and St Thomas NHS Foundation Trust,28/04/2021,(81200) Medical Surgical Supplies & Equipment,(id:42367) Clinical Imaging & Med Physics,ABBOTT MEDICAL UK LTD,id:14033057 ,1080.00
Department of Health,Guys and St Thomas NHS Foundation Trust,28/04/2021,(81200) Medical Surgical Supplies & Equipment,(id:42367) Clinical Imaging & Med Physics,VOLCANO EUROPE BVBA/SPRL,id:14029736   , 834.00
Department of Health,Guys and St Thomas NHS Foundation Trust,16/04/2021,(81235) Medical Surgical Supplies & Equipment,(id:42367) Clinical Imaging & Med Physics,BOSTON SCIENTIFIC LTD,id:13923777 , 762.00
Department of Health,Guys and St Thomas NHS Foundation Trust,01/04/2021,(81230) Medical Surgical Supplies & Equipment,(id:42367) Clinical Imaging & Med Physics,COOK UK LTD,id:13870779 , 132.00
Department of Health,Guys and St Thomas NHS Foundation Trust,16/04/2021,(81230) Medical Surgical Supplies & Equipment,(id:42367) Clinical Imaging & Med Physics,CARDINAL HEALTH UK 432 LIMITED,id:13923780  , 118.80
Department of Health,Guys and St Thomas NHS Foundation Trust,16/04/2021,(81230) Medical Surgical Supplies & Equipment,(id:42367) Clinical Imaging & Med Physics,MEDTRONIC LTD,id:13928546    ,1140.00
Department of Health,Guys and St Thomas NHS Foundation Trust,28/04/2021,(81230) Medical Surgical Supplies & Equipment,(id:42367) Clinical Imaging & Med Physics,COOK UK LTD,id:13940136 , 650.40
Department of Health,Guys and St Thomas NHS Foundation Trust,09/04/2021,(81250) Medical Surgical Supplies & Equipment,(id:42367) Clinical Imaging & Med Physics,GETINGE LTD,id:13970581 ,1212.00
Department of Health,Guys and St Thomas NHS Foundation Trust,23/04/2021,(81225) Medical Surgical Supplies & Equipment,(id:42367) Clinical Imaging & Med Physics,NHS SUPPLY CHAIN (MAIDSTONE),id:13933387    ,  87.27
Department of Health,Guys and St Thomas NHS Foundation Trust,23/04/2021,(82800) Bedding & Linen,(id:42366) Clinical Imaging & Med Physics,NHS SUPPLY CHAIN (MAIDSTONE),id:13933387 , 170.93
Department of Health,Guys and St Thomas NHS Foundation Trust,16/04/2021,(83610) IT Costs,(id:42366) Clinical Imaging & Med Physics,SCC PLC)SPECIALIST COMPUTER CENTRES,id:13975634 ,    15065.59
Department of Health,Guys and St Thomas NHS Foundation Trust,16/04/2021,(83610) IT Costs,(id:42366) Clinical Imaging & Med Physics,SCC PLC)SPECIALIST COMPUTER CENTRES,id:13924290 ,2938.63
Department of Health,Guys and St Thomas NHS Foundation Trust,09/04/2021,(81400) Medical Surgical Supplies & Equipment,(id:42366) Clinical Imaging & Med Physics,SAFETEC DIRECT LTD,id:13941676    , 489.50
Department of Health,Guys and St Thomas NHS Foundation Trust,28/04/2021,(81500) X Ray Equipment Purchase,(id:42366) Clinical Imaging & Med Physics,BAYER PLC,id:14039456 ,1420.80
Department of Health,Guys and St Thomas NHS Foundation Trust,09/04/2021,(81500) X Ray Equipment Purchase,(id:42366) Clinical Imaging & Med Physics,NHS SUPPLY CHAIN (MAIDSTONE),id:13845954  ,3758.69
Department of Health,Guys and St Thomas NHS Foundation Trust,09/04/2021,(81255) Medical Surgical Supplies & Equipment,(id:42366) Clinical Imaging & Med Physics,NHS SUPPLY CHAIN (MAIDSTONE),id:13894938    ,  13.80
Department of Health,Guys and St Thomas NHS Foundation Trust,23/04/2021,(81500) X Ray Equipment Purchase,(id:4187419) Clinical Imaging & Med Physics,CURIUM PHARMA UK LTD,id:13935334   ,    21552.00
Department of Health,Guys and St Thomas NHS Foundation Trust,23/04/2021,(81500) X Ray Equipment Purchase,(id:4187419) Clinical Imaging & Med Physics,CURIUM PHARMA UK LTD,id:13935314   ,    21552.00
Department of Health,Guys and St Thomas NHS Foundation Trust,09/04/2021,(82000) Provisions & Kitchens,(id:42372) Clinical Imaging & Med Physics,NHS SUPPLY CHAIN (MAIDSTONE),id:13894938,  29.37
Department of Health,Guys and St Thomas NHS Foundation Trust,01/04/2021,(83400) Office Equipment,(id:42372) Clinical Imaging & Med Physics,BAYER PLC,id:13932355    ,2112.00
Department of Health,Guys and St Thomas NHS Foundation Trust,28/04/2021,(52062) Radiographers,(id:42372) Clinical Imaging & Med Physics,PRICEWATERHOUSECOOPERS LLP,id:14036654,2551.52
Department of Health,Guys and St Thomas NHS Foundation Trust,23/04/2021,(81200) Medical Surgical Supplies & Equipment,(id:42372) Clinical Imaging & Med Physics,NHS SUPPLY CHAIN (MAIDSTONE),id:13946606    , 740.77
Department of Health,Guys and St Thomas NHS Foundation Trust,01/04/2021,(81275) Medical Surgical Supplies & Equipment,(id:42372) Clinical Imaging & Med Physics,GE HEALTHCARE UK LTD:00475800,id:13931976   ,1890.00
Department of Health,Guys and St Thomas NHS Foundation Trust,09/04/2021,(81275) Medical Surgical Supplies & Equipment,(id:42372) Clinical Imaging & Med Physics,GE HEALTHCARE (50652318),id:13935396   ,4770.00
Department of Health,Guys and St Thomas NHS Foundation Trust,09/04/2021,(81275) Medical Surgical Supplies & Equipment,(id:42372) Clinical Imaging & Med Physics,GE HEALTHCARE UK LTD:00475800,id:13929240   , 630.00
Department of Health,Guys and St Thomas NHS Foundation Trust,16/04/2021,(81500) X Ray Equipment Purchase,(id:42372) Clinical Imaging & Med Physics,COURIER NETWORK SYSTEMS (CNS),id:13979736 ,8022.94
Department of Health,Guys and St Thomas NHS Foundation Trust,01/04/2021,(81500) X Ray Equipment Purchase,(id:42372) Clinical Imaging & Med Physics,ADVANCED ACCELERATOR APPLICATIONS (UK & IRELAND) LTD,id:13929386   ,    21162.00
Department of Health,Guys and St Thomas NHS Foundation Trust,09/04/2021,(81500) X Ray Equipment Purchase,(id:42372) Clinical Imaging & Med Physics,AMERCARE LTD,id:13939216   ,1401.00
Department of Health,Guys and St Thomas NHS Foundation Trust,23/04/2021,(81500) X Ray Equipment Purchase,(id:42372) Clinical Imaging & Med Physics,CURIUM PHARMA UK LTD,id:13954075,1776.00
Department of Health,Guys and St Thomas NHS Foundation Trust,28/04/2021,(81400) Medical Surgical Supplies & Equipment,(id:42382) Clinical Imaging & Med Physics,GOLD STANDARD PHANTOMS LTD,id:13944240 ,4800.00
Department of Health,Guys and St Thomas NHS Foundation Trust,09/04/2021,(81400) Medical Surgical Supplies & Equipment,(id:42380) Clinical Imaging & Med Physics,ALLWEATHER REFRIGERATION LTD CIS6,id:13967074    ,2675.85
Department of Health,Guys and St Thomas NHS Foundation Trust,22/04/2021,(81500) X Ray Equipment Purchase,(id:42380) Clinical Imaging & Med Physics,HMK TECHNICAL SERVICES LTD,id:13992534    ,3204.24
Department of Health,Guys and St Thomas NHS Foundation Trust,28/04/2021,(81200) Medical Surgical Supplies & Equipment,(id:42379) Clinical Imaging & Med Physics,TURUN UK LTD,id:14008525,4519.13
Department of Health,Guys and St Thomas NHS Foundation Trust,28/04/2021,(81200) Medical Surgical Supplies & Equipment,(id:42379) Clinical Imaging & Med Physics,B.BRAUN MEDICAL LTD,id:14024315   , 584.76
Department of Health,Guys and St Thomas NHS Foundation Trust,01/04/2021,(81200) Medical Surgical Supplies & Equipment,(id:42379) Clinical Imaging & Med Physics,TURUN UK LTD,id:13938978,4522.68
Department of Health,Guys and St Thomas NHS Foundation Trust,01/04/2021,(81200) Medical Surgical Supplies & Equipment,(id:42379) Clinical Imaging & Med Physics,MINDRAY UK LTD,id:13932174   , 540.00
Department of Health,Guys and St Thomas NHS Foundation Trust,23/04/2021,(81200) Medical Surgical Supplies & Equipment,(id:42379) Clinical Imaging & Med Physics,TURUN UK LTD,id:13807958,4522.73
Department of Health,Guys and St Thomas NHS Foundation Trust,01/04/2021,(84600) Establishment,(id:42376) Clinical Imaging & Med Physics,CLARITY TRAVEL MANAGEMENT,id:13940774 ,  15.59
Department of Health,Guys and St Thomas NHS Foundation Trust,01/04/2021,(84600) Establishment,(id:42376) Clinical Imaging & Med Physics,CLARITY TRAVEL MANAGEMENT,id:13298536 ,-172.10
Department of Health,Guys and St Thomas NHS Foundation Trust,01/04/2021,(84600) Establishment,(id:42376) Clinical Imaging & Med Physics,CLARITY TRAVEL MANAGEMENT,id:13298543 ,   7.80
Department of Health,Guys and St Thomas NHS Foundation Trust,01/04/2021,(84600) Establishment,(id:42374) Clinical Imaging & Med Physics,CLARITY TRAVEL MANAGEMENT,id:13402614 ,  21.03
Department of Health,Guys and St Thomas NHS Foundation Trust,01/04/2021,(81250) Medical Surgical Supplies & Equipment,(id:1348419) Clinical Imaging & Med Physics,AQUILANT LTD,id:13923569   ,1080.00
Department of Health,Guys and St Thomas NHS Foundation Trust,09/04/2021,(81250) Medical Surgical Supplies & Equipment,(id:1348419) Clinical Imaging & Med Physics,AQUILANT LTD,id:13938895   , 924.00
Department of Health,Guys and St Thomas NHS Foundation Trust,28/04/2021,(81200) Medical Surgical Supplies & Equipment,(id:1348419) Clinical Imaging & Med Physics,APRIOMED AB,id:13872834    , 530.00
Department of Health,Guys and St Thomas NHS Foundation Trust,23/04/2021,(86305) Healthcare from non-NHS bodies,(id:4918419) Integrated Local Services,SOUTHWARK COUNCIL,id:13916734,    35404.00
Department of Health,Guys and St Thomas NHS Foundation Trust,09/04/2021,(83400) Office Equipment,(id:4631420) Integrated Local Services,TARA SIGNS LTD,id:13937658  ,4044.85
Department of Health,Guys and St Thomas NHS Foundation Trust,09/04/2021,(83400) Office Equipment,(id:590601) Integrated Local Services,NHS SUPPLY CHAIN (MAIDSTONE),id:13845954    ,  28.14
Department of Health,Guys and St Thomas NHS Foundation Trust,09/04/2021,(81200) Medical Surgical Supplies & Equipment,(id:590579) Integrated Local Services,NHS SUPPLY CHAIN (MAIDSTONE),id:13763774   ,  25.40
Department of Health,Guys and St Thomas NHS Foundation Trust,09/04/2021,(81100) Dressings,(id:590563) Integrated Local Services,NHS SUPPLY CHAIN (MAIDSTONE),id:13763774 , 315.53
Department of Health,Guys and St Thomas NHS Foundation Trust,01/04/2021,(86300) Healthcare from non-NHS bodies,(id:590563) Integrated Local Services,MONTE FIELDS,id:13928711 , 748.00
Department of Health,Guys and St Thomas NHS Foundation Trust,23/04/2021,(81100) Dressings,(id:1885424) Integrated Local Services,NHS SUPPLY CHAIN (MAIDSTONE),id:13946606, 116.20
Department of Health,Guys and St Thomas NHS Foundation Trust,28/04/2021,(50562) Qualified Nursing Staff,(id:1885424) Integrated Local Services,MSI GROUP LTD,id:14039942 , 732.34
Department of Health,Guys and St Thomas NHS Foundation Trust,01/04/2021,(50562) Qualified Nursing Staff,(id:1885424) Integrated Local Services,MSI GROUP LTD,id:13946475 , 623.14
Department of Health,Guys and St Thomas NHS Foundation Trust,01/04/2021,(50562) Qualified Nursing Staff,(id:1885424) Integrated Local Services,MSI GROUP LTD,id:13946531 ,1098.68
Department of Health,Guys and St Thomas NHS Foundation Trust,01/04/2021,(50562) Qualified Nursing Staff,(id:699422) Integrated Local Services,MSI GROUP LTD,id:13946424  , 956.37
Department of Health,Guys and St Thomas NHS Foundation Trust,20/04/2021,(51832) Physiotherapists,(id:590523) Integrated Local Services,PRICEWATERHOUSECOOPERS LLP,id:14004675 ,1192.84
Department of Health,Guys and St Thomas NHS Foundation Trust,28/04/2021,(50562) Qualified Nursing Staff,(id:590523) Integrated Local Services,MSI GROUP LTD,id:14039628  ,1486.19
Department of Health,Guys and St Thomas NHS Foundation Trust,23/04/2021,(89595) Non-Healthcare from Foundation Trusts,(id:590492) Integrated Local Services,KING'S COLLEGE HOSPITAL NHS FOUNDATION TRUST,id:13328722  ,3776.01
Department of Health,Guys and St Thomas NHS Foundation Trust,23/04/2021,(89595) Non-Healthcare from Foundation Trusts,(id:590492) Integrated Local Services,KING'S COLLEGE HOSPITAL NHS FOUNDATION TRUST,id:13050394  ,3919.35
Department of Health,Guys and St Thomas NHS Foundation Trust,20/04/2021,(51462) Occupational Therapists,(id:1913419) Integrated Local Services,PRICEWATERHOUSECOOPERS LLP,id:14005116   ,4467.17
Department of Health,Guys and St Thomas NHS Foundation Trust,23/04/2021,(82800) Bedding & Linen,(id:1913419) Integrated Local Services,NHS SUPPLY CHAIN (MAIDSTONE),id:13946606    ,  20.74
Department of Health,Guys and St Thomas NHS Foundation Trust,09/04/2021,(81225) Medical Surgical Supplies & Equipment,(id:1913419) Integrated Local Services,NHS SUPPLY CHAIN (MAIDSTONE),id:13763774  ,  93.60
Department of Health,Guys and St Thomas NHS Foundation Trust,20/04/2021,(53072) Speech Therapists,(id:684420) Integrated Local Services,PRICEWATERHOUSECOOPERS LLP,id:14005116,1392.17
Department of Health,Guys and St Thomas NHS Foundation Trust,20/04/2021,(51462) Occupational Therapists,(id:684419) Integrated Local Services,PRICEWATERHOUSECOOPERS LLP,id:14004894    ,2067.35
Department of Health,Guys and St Thomas NHS Foundation Trust,09/04/2021,(81200) Medical Surgical Supplies & Equipment,(id:684419) Integrated Local Services,NHS SUPPLY CHAIN (MAIDSTONE),id:13894938   , 142.50
Department of Health,Guys and St Thomas NHS Foundation Trust,20/04/2021,(51842) Physiotherapists,(id:684419) Integrated Local Services,PRICEWATERHOUSECOOPERS LLP,id:14004675 ,1474.66
Department of Health,Guys and St Thomas NHS Foundation Trust,09/04/2021,(81200) Medical Surgical Supplies & Equipment,(id:590503) Integrated Local Services,NHS SUPPLY CHAIN (MAIDSTONE),id:13845954   , 324.00
Department of Health,Guys and St Thomas NHS Foundation Trust,23/04/2021,(89595) Non-Healthcare from Foundation Trusts,(id:590503) Integrated Local Services,KING'S COLLEGE HOSPITAL NHS FOUNDATION TRUST,id:14004194  ,   -23571.68
Department of Health,Guys and St Thomas NHS Foundation Trust,23/04/2021,(89000) Other - Training courses and conferences,(id:590528) Integrated Local Services,SOUTHWARK COUNCIL,id:13930494 ,    87000.00
Department of Health,Guys and St Thomas NHS Foundation Trust,09/04/2021,(81200) Medical Surgical Supplies & Equipment,(id:590522) Integrated Local Services,NHS SUPPLY CHAIN (MAIDSTONE),id:13845954   ,  79.20
Department of Health,Guys and St Thomas NHS Foundation Trust,23/04/2021,(83400) Office Equipment,(id:590522) Integrated Local Services,NHS SUPPLY CHAIN (MAIDSTONE),id:13946606    ,  11.30
Department of Health,Guys and St Thomas NHS Foundation Trust,23/04/2021,(81100) Dressings,(id:590522) Integrated Local Services,NHS SUPPLY CHAIN (MAIDSTONE),id:13946606 , 250.08
Department of Health,Guys and St Thomas NHS Foundation Trust,16/04/2021,(50552) Qualified Nursing Staff,(id:590522) Integrated Local Services,MSI GROUP LTD,id:13993067  ,1202.42
Department of Health,Guys and St Thomas NHS Foundation Trust,09/04/2021,(50552) Qualified Nursing Staff,(id:590522) Integrated Local Services,NURSING 2000 LTD,id:13972864    , 908.65
Department of Health,Guys and St Thomas NHS Foundation Trust,23/04/2021,(81700) Lab Equipment Purchase,(id:590522) Integrated Local Services,NHS SUPPLY CHAIN (MAIDSTONE),id:13933387   ,   9.80
Department of Health,Guys and St Thomas NHS Foundation Trust,23/04/2021,(82000) Provisions & Kitchens,(id:590522) Integrated Local Services,NHS SUPPLY CHAIN (MAIDSTONE),id:13933387    ,   6.42
Department of Health,Guys and St Thomas NHS Foundation Trust,16/04/2021,(50552) Qualified Nursing Staff,(id:590521) Integrated Local Services,NURSING 2000 LTD,id:13993249    , 654.52
Department of Health,Guys and St Thomas NHS Foundation Trust,09/04/2021,(81100) Dressings,(id:590520) Integrated Local Services,NHS SUPPLY CHAIN (MAIDSTONE),id:13763774 ,  16.32
Department of Health,Guys and St Thomas NHS Foundation Trust,16/04/2021,(84500) Establishment,(id:590520) Integrated Local Services,CDP  PRINT MANAGEMENT,id:13930734    , 679.77
Department of Health,Guys and St Thomas NHS Foundation Trust,01/04/2021,(50552) Qualified Nursing Staff,(id:590520) Integrated Local Services,CARE PROVIDERS HEALTHCARE,id:13946462, 795.00
Department of Health,Guys and St Thomas NHS Foundation Trust,09/04/2021,(50552) Qualified Nursing Staff,(id:590520) Integrated Local Services,CARE PROVIDERS HEALTHCARE,id:13972755, 795.00
Department of Health,Guys and St Thomas NHS Foundation Trust,09/04/2021,(81100) Dressings,(id:590473) Integrated Local Services,NHS SUPPLY CHAIN (MAIDSTONE),id:13894938 , 211.20
Department of Health,Guys and St Thomas NHS Foundation Trust,23/04/2021,(81200) Medical Surgical Supplies & Equipment,(id:590473) Integrated Local Services,NHS SUPPLY CHAIN (MAIDSTONE),id:13933387   , 557.02
Department of Health,Guys and St Thomas NHS Foundation Trust,09/04/2021,(81200) Medical Surgical Supplies & Equipment,(id:590471) Integrated Local Services,NHS SUPPLY CHAIN (MAIDSTONE),id:13763774   ,   9.24
Department of Health,Guys and St Thomas NHS Foundation Trust,09/04/2021,(82800) Bedding & Linen,(id:590470) Integrated Local Services,NHS SUPPLY CHAIN (MAIDSTONE),id:13763774, 106.35
Department of Health,Guys and St Thomas NHS Foundation Trust,23/04/2021,(81200) Medical Surgical Supplies & Equipment,(id:590535) Integrated Local Services,NHS SUPPLY CHAIN (MAIDSTONE),id:13946606   ,  28.34
Department of Health,Guys and St Thomas NHS Foundation Trust,28/04/2021,(81200) Medical Surgical Supplies & Equipment,(id:590481) Integrated Local Services,NHS SUPPLY CHAIN (MAIDSTONE),id:14036632   ,5409.18
Department of Health,Guys and St Thomas NHS Foundation Trust,28/04/2021,(81200) Medical Surgical Supplies & Equipment,(id:590481) Integrated Local Services,NHS SUPPLY CHAIN (MAIDSTONE),id:14036620   ,9372.16
Department of Health,Guys and St Thomas NHS Foundation Trust,28/04/2021,(81200) Medical Surgical Supplies & Equipment,(id:590481) Integrated Local Services,NHS SUPPLY CHAIN (MAIDSTONE),id:14036645   ,    -5330.51
Department of Health,Guys and St Thomas NHS Foundation Trust,16/04/2021,(81200) Medical Surgical Supplies & Equipment,(id:590481) Integrated Local Services,NHS SUPPLY CHAIN (MAIDSTONE),id:13977094   , 783.26
Department of Health,Guys and St Thomas NHS Foundation Trust,16/04/2021,(81200) Medical Surgical Supplies & Equipment,(id:590481) Integrated Local Services,NHS SUPPLY CHAIN (MAIDSTONE),id:13976875   ,2435.97
Department of Health,Guys and St Thomas NHS Foundation Trust,16/04/2021,(81200) Medical Surgical Supplies & Equipment,(id:590481) Integrated Local Services,NHS SUPPLY CHAIN (MAIDSTONE),id:13976954   ,7517.83
Department of Health,Guys and St Thomas NHS Foundation Trust,09/04/2021,(81225) Medical Surgical Supplies & Equipment,(id:590477) Integrated Local Services,NHS SUPPLY CHAIN (MAIDSTONE),id:13845954   ,  18.30
Department of Health,Guys and St Thomas NHS Foundation Trust,28/04/2021,(50562) Qualified Nursing Staff,(id:590463) Integrated Local Services,COYLE PERSONNEL PLC,id:14039815 ,1400.00
Department of Health,Guys and St Thomas NHS Foundation Trust,28/04/2021,(50562) Qualified Nursing Staff,(id:590463) Integrated Local Services,COYLE PERSONNEL PLC,id:14039909 ,1750.00
Department of Health,Guys and St Thomas NHS Foundation Trust,28/04/2021,(50562) Qualified Nursing Staff,(id:590463) Integrated Local Services,COYLE PERSONNEL PLC,id:14039910 , 700.00
Department of Health,Guys and St Thomas NHS Foundation Trust,16/04/2021,(50562) Qualified Nursing Staff,(id:590463) Integrated Local Services,COYLE PERSONNEL PLC,id:13993135 ,1750.00
Department of Health,Guys and St Thomas NHS Foundation Trust,09/04/2021,(82000) Provisions & Kitchens,(id:590527) Integrated Local Services,NHS SUPPLY CHAIN (MAIDSTONE),id:13763774    , 129.96
Department of Health,Guys and St Thomas NHS Foundation Trust,23/04/2021,(81200) Medical Surgical Supplies & Equipment,(id:590527) Integrated Local Services,NHS SUPPLY CHAIN (MAIDSTONE),id:13946606   , 710.78
Department of Health,Guys and St Thomas NHS Foundation Trust,09/04/2021,(81200) Medical Surgical Supplies & Equipment,(id:590527) Integrated Local Services,NHS SUPPLY CHAIN (MAIDSTONE),id:13894938   , 272.34
Department of Health,Guys and St Thomas NHS Foundation Trust,23/04/2021,(81225) Medical Surgical Supplies & Equipment,(id:590527) Integrated Local Services,NHS SUPPLY CHAIN (MAIDSTONE),id:13933387   ,  12.48
Department of Health,Guys and St Thomas NHS Foundation Trust,01/04/2021,(83350) Premises Services,(id:590526) Integrated Local Services,ASSIST SECURITY LIMITED,id:13923615   ,5040.00
Department of Health,Guys and St Thomas NHS Foundation Trust,23/04/2021,(81100) Dressings,(id:903421) Integrated Local Services,NHS SUPPLY CHAIN (MAIDSTONE),id:13933387 , 130.53
Department of Health,Guys and St Thomas NHS Foundation Trust,09/04/2021,(81225) Medical Surgical Supplies & Equipment,(id:903421) Integrated Local Services,NHS SUPPLY CHAIN (MAIDSTONE),id:13894938   , 156.00
Department of Health,Guys and St Thomas NHS Foundation Trust,09/04/2021,(81200) Medical Surgical Supplies & Equipment,(id:903421) Integrated Local Services,NHS SUPPLY CHAIN (MAIDSTONE),id:13845954   , 333.88
Department of Health,Guys and St Thomas NHS Foundation Trust,01/04/2021,(83765) Rent,(id:903421) Integrated Local Services,SELDOC LTD,id:13794279    ,2677.73
Department of Health,Guys and St Thomas NHS Foundation Trust,01/04/2021,(83765) Rent,(id:903421) Integrated Local Services,SELDOC LTD,id:13794277    ,    70383.39
Department of Health,Guys and St Thomas NHS Foundation Trust,01/04/2021,(83765) Rent,(id:903421) Integrated Local Services,SELDOC LTD,id:13794276    ,    23962.00
Department of Health,Guys and St Thomas NHS Foundation Trust,23/04/2021,(50552) Qualified Nursing Staff,(id:4609420) Integrated Local Services,NURSING 2000 LTD,id:13970140   , 617.22
Department of Health,Guys and St Thomas NHS Foundation Trust,16/04/2021,(50552) Qualified Nursing Staff,(id:4263423) Integrated Local Services,NURSING 2000 LTD,id:13993020   , 675.77
Department of Health,Guys and St Thomas NHS Foundation Trust,01/04/2021,(55110) Admin & Clerical,(id:4273419) Integrated Care Management,IMPERIAL COLLEGE HEALTHCARE NHS TRUST,id:13905634   ,3804.63
Department of Health,Guys and St Thomas NHS Foundation Trust,23/04/2021,(82800) Bedding & Linen,(id:42518) Evelina Womens Services,NHS SUPPLY CHAIN (MAIDSTONE),id:13946606   ,  21.86
Department of Health,Guys and St Thomas NHS Foundation Trust,09/04/2021,(82800) Bedding & Linen,(id:42518) Evelina Womens Services,NHS SUPPLY CHAIN (MAIDSTONE),id:13763774   ,  11.23
Department of Health,Guys and St Thomas NHS Foundation Trust,23/04/2021,(81275) Medical Surgical Supplies & Equipment,(id:42518) Evelina Womens Services,NHS SUPPLY CHAIN (MAIDSTONE),id:13946606 ,   5.93
Department of Health,Guys and St Thomas NHS Foundation Trust,09/04/2021,(82800) Bedding & Linen,(id:42517) Evelina Womens Services,NHS SUPPLY CHAIN (MAIDSTONE),id:13845954   , 187.29
Department of Health,Guys and St Thomas NHS Foundation Trust,16/04/2021,(83500) Furniture & Fittings,(id:42517) Evelina Womens Services,OCURA HEALTHCARE FURNITURE,id:13957994,4216.80
Department of Health,Guys and St Thomas NHS Foundation Trust,09/04/2021,(81200) Medical Surgical Supplies & Equipment,(id:42517) Evelina Womens Services,THERMO FISHER SCIENTIFIC,id:13967494, 536.26
Department of Health,Guys and St Thomas NHS Foundation Trust,16/04/2021,(81200) Medical Surgical Supplies & Equipment,(id:42517) Evelina Womens Services,VITROLIFE LTD,id:13990774 ,2376.00
Department of Health,Guys and St Thomas NHS Foundation Trust,01/04/2021,(81200) Medical Surgical Supplies & Equipment,(id:42517) Evelina Womens Services,BRITANNIA MONITORING SYSTEMS LTD,id:13948695  ,9615.00
Department of Health,Guys and St Thomas NHS Foundation Trust,01/04/2021,(81200) Medical Surgical Supplies & Equipment,(id:42517) Evelina Womens Services,IRVINE SCIENTIFIC SALES COMPANY INC,id:13929005    ,1680.00
Department of Health,Guys and St Thomas NHS Foundation Trust,16/04/2021,(81700) Lab Equipment Purchase,(id:42517) Evelina Womens Services,ORIGIO LTD DELTA PARK,id:13950214   ,1134.00
Department of Health,Guys and St Thomas NHS Foundation Trust,16/04/2021,(81700) Lab Equipment Purchase,(id:42517) Evelina Womens Services,ORIGIO LTD DELTA PARK,id:13927454   ,6624.00
Department of Health,Guys and St Thomas NHS Foundation Trust,09/04/2021,(89270) Establishment,(id:42514) Evelina Womens Services,170COMMUNITY PROJECT,id:13965214   ,6929.68
Department of Health,Guys and St Thomas NHS Foundation Trust,09/04/2021,(83400) Office Equipment,(id:42513) Evelina Womens Services,NHS SUPPLY CHAIN (MAIDSTONE),id:13763774  , 100.73
Department of Health,Guys and St Thomas NHS Foundation Trust,09/04/2021,(83400) Office Equipment,(id:42513) Evelina Womens Services,NHS SUPPLY CHAIN (MAIDSTONE),id:13894938  ,  31.96
Department of Health,Guys and St Thomas NHS Foundation Trust,09/04/2021,(81100) Dressings,(id:42513) Evelina Womens Services,NHS SUPPLY CHAIN (MAIDSTONE),id:13845954    , 274.55
Department of Health,Guys and St Thomas NHS Foundation Trust,09/04/2021,(81700) Lab Equipment Purchase,(id:42513) Evelina Womens Services,NHS SUPPLY CHAIN (MAIDSTONE),id:13763774 ,  30.84
Department of Health,Guys and St Thomas NHS Foundation Trust,23/04/2021,(82800) Bedding & Linen,(id:42513) Evelina Womens Services,NHS SUPPLY CHAIN (MAIDSTONE),id:13933387   , 104.69
Department of Health,Guys and St Thomas NHS Foundation Trust,09/04/2021,(82800) Bedding & Linen,(id:42513) Evelina Womens Services,NHS SUPPLY CHAIN (MAIDSTONE),id:13894938   ,   6.94
Department of Health,Guys and St Thomas NHS Foundation Trust,09/04/2021,(82700) Uniforms & Clothing,(id:42513) Evelina Womens Services,NHS SUPPLY CHAIN (MAIDSTONE),id:13845954    ,  31.68
Department of Health,Guys and St Thomas NHS Foundation Trust,23/04/2021,(81225) Medical Surgical Supplies & Equipment,(id:42513) Evelina Womens Services,NHS SUPPLY CHAIN (MAIDSTONE),id:13933387 ,   9.70
Department of Health,Guys and St Thomas NHS Foundation Trust,23/04/2021,(82000) Provisions & Kitchens,(id:42513) Evelina Womens Services,NHS SUPPLY CHAIN (MAIDSTONE),id:13933387  , 265.77
Department of Health,Guys and St Thomas NHS Foundation Trust,09/04/2021,(83400) Office Equipment,(id:42510) Evelina Womens Services,NHS SUPPLY CHAIN (MAIDSTONE),id:13894938  ,  24.75
Department of Health,Guys and St Thomas NHS Foundation Trust,09/04/2021,(83400) Office Equipment,(id:42510) Evelina Womens Services,NHS SUPPLY CHAIN (MAIDSTONE),id:13845954  ,  53.51
Department of Health,Guys and St Thomas NHS Foundation Trust,23/04/2021,(83400) Office Equipment,(id:42510) Evelina Womens Services,NHS SUPPLY CHAIN (MAIDSTONE),id:13946606  ,  40.44
Department of Health,Guys and St Thomas NHS Foundation Trust,23/04/2021,(82800) Bedding & Linen,(id:42510) Evelina Womens Services,NHS SUPPLY CHAIN (MAIDSTONE),id:13933387   ,  29.03
Department of Health,Guys and St Thomas NHS Foundation Trust,09/04/2021,(81200) Medical Surgical Supplies & Equipment,(id:42510) Evelina Womens Services,NHS SUPPLY CHAIN (MAIDSTONE),id:13845954 ,  31.92
Department of Health,Guys and St Thomas NHS Foundation Trust,23/04/2021,(81225) Medical Surgical Supplies & Equipment,(id:42510) Evelina Womens Services,NHS SUPPLY CHAIN (MAIDSTONE),id:13946606 ,   6.73
Department of Health,Guys and St Thomas NHS Foundation Trust,23/04/2021,(82600) Uniforms & Clothing,(id:42509) Evelina Womens Services,BAXTER HEALTHCARE LTD,id:13991658 , 631.14
Department of Health,Guys and St Thomas NHS Foundation Trust,28/04/2021,(81200) Medical Surgical Supplies & Equipment,(id:42509) Evelina Womens Services,KEBOMED UK,id:14030797    , 792.00
Department of Health,Guys and St Thomas NHS Foundation Trust,28/04/2021,(81200) Medical Surgical Supplies & Equipment,(id:42509) Evelina Womens Services,MEDTRONIC LTD,id:13984089 ,2376.00
Department of Health,Guys and St Thomas NHS Foundation Trust,23/04/2021,(81200) Medical Surgical Supplies & Equipment,(id:42509) Evelina Womens Services,JOHNSON & JOHNSON MEDICAL LTD,id:13965068, 686.03
Department of Health,Guys and St Thomas NHS Foundation Trust,09/04/2021,(81200) Medical Surgical Supplies & Equipment,(id:42509) Evelina Womens Services,NHS SUPPLY CHAIN (MAIDSTONE),id:13763774 ,  39.40
Department of Health,Guys and St Thomas NHS Foundation Trust,09/04/2021,(81100) Dressings,(id:42486) Evelina Womens Services,NHS SUPPLY CHAIN (MAIDSTONE),id:13894938    ,  17.93
Department of Health,Guys and St Thomas NHS Foundation Trust,09/04/2021,(81200) Medical Surgical Supplies & Equipment,(id:42486) Evelina Womens Services,NHS SUPPLY CHAIN (MAIDSTONE),id:13894938 ,  81.00
Department of Health,Guys and St Thomas NHS Foundation Trust,09/04/2021,(81200) Medical Surgical Supplies & Equipment,(id:42486) Evelina Womens Services,NHS SUPPLY CHAIN (MAIDSTONE),id:13845954 , 659.04
Department of Health,Guys and St Thomas NHS Foundation Trust,09/04/2021,(83400) Office Equipment,(id:42486) Evelina Womens Services,NHS SUPPLY CHAIN (MAIDSTONE),id:13845954  ,  24.87
Department of Health,Guys and St Thomas NHS Foundation Trust,16/04/2021,(81900) Lab Equipment Purchase,(id:42486) Evelina Womens Services,VIAPATH SERVICES LLP,id:13933114    ,2433.00
Department of Health,Guys and St Thomas NHS Foundation Trust,23/04/2021,(81900) Lab Equipment Purchase,(id:42486) Evelina Womens Services,VIAPATH SERVICES LLP,id:14010276    ,2433.00
Department of Health,Guys and St Thomas NHS Foundation Trust,23/04/2021,(81100) Dressings,(id:42488) Evelina Womens Services,NHS SUPPLY CHAIN (MAIDSTONE),id:13933387    ,   6.52
Department of Health,Guys and St Thomas NHS Foundation Trust,23/04/2021,(81200) Medical Surgical Supplies & Equipment,(id:42488) Evelina Womens Services,NHS SUPPLY CHAIN (MAIDSTONE),id:13933387 , 231.05
Department of Health,Guys and St Thomas NHS Foundation Trust,16/04/2021,(50562) Qualified Nursing Staff,(id:42497) Evelina Womens Services,CARE PROVIDERS HEALTHCARE,id:13993170   ,1722.83
Department of Health,Guys and St Thomas NHS Foundation Trust,23/04/2021,(50562) Qualified Nursing Staff,(id:42497) Evelina Womens Services,MSI GROUP LTD,id:14016919, 469.46
Department of Health,Guys and St Thomas NHS Foundation Trust,23/04/2021,(81700) Lab Equipment Purchase,(id:42497) Evelina Womens Services,NHS SUPPLY CHAIN (MAIDSTONE),id:13946606 ,1563.00
Department of Health,Guys and St Thomas NHS Foundation Trust,09/04/2021,(81200) Medical Surgical Supplies & Equipment,(id:42496) Evelina Womens Services,NHS SUPPLY CHAIN (MAIDSTONE),id:13763774 , 217.11
Department of Health,Guys and St Thomas NHS Foundation Trust,09/04/2021,(81200) Medical Surgical Supplies & Equipment,(id:42496) Evelina Womens Services,NHS SUPPLY CHAIN (MAIDSTONE),id:13845954 ,  83.11
Department of Health,Guys and St Thomas NHS Foundation Trust,09/04/2021,(81700) Lab Equipment Purchase,(id:42496) Evelina Womens Services,NHS SUPPLY CHAIN (MAIDSTONE),id:13763774 ,  93.73
Department of Health,Guys and St Thomas NHS Foundation Trust,23/04/2021,(81700) Lab Equipment Purchase,(id:42496) Evelina Womens Services,NHS SUPPLY CHAIN (MAIDSTONE),id:13946606 ,  52.38
Department of Health,Guys and St Thomas NHS Foundation Trust,23/04/2021,(81100) Dressings,(id:42493) Evelina Womens Services,NHS SUPPLY CHAIN (MAIDSTONE),id:13933387    ,  64.71
Department of Health,Guys and St Thomas NHS Foundation Trust,09/04/2021,(81200) Medical Surgical Supplies & Equipment,(id:42493) Evelina Womens Services,NHS SUPPLY CHAIN (MAIDSTONE),id:13845954 , 454.64
Department of Health,Guys and St Thomas NHS Foundation Trust,23/04/2021,(81275) Medical Surgical Supplies & Equipment,(id:42493) Evelina Womens Services,NHS SUPPLY CHAIN (MAIDSTONE),id:13946606 ,  11.86
Department of Health,Guys and St Thomas NHS Foundation Trust,09/04/2021,(81700) Lab Equipment Purchase,(id:42493) Evelina Womens Services,NHS SUPPLY CHAIN (MAIDSTONE),id:13894938 ,  66.27
Department of Health,Guys and St Thomas NHS Foundation Trust,09/04/2021,(82000) Provisions & Kitchens,(id:42492) Evelina Womens Services,NHS SUPPLY CHAIN (MAIDSTONE),id:13845954  ,  58.55
Department of Health,Guys and St Thomas NHS Foundation Trust,23/04/2021,(82000) Provisions & Kitchens,(id:42492) Evelina Womens Services,NHS SUPPLY CHAIN (MAIDSTONE),id:13933387  ,  11.81
Department of Health,Guys and St Thomas NHS Foundation Trust,09/04/2021,(81100) Dressings,(id:42492) Evelina Womens Services,NHS SUPPLY CHAIN (MAIDSTONE),id:13763774    ,1052.97
Department of Health,Guys and St Thomas NHS Foundation Trust,09/04/2021,(83350) Premises Services,(id:42492) Evelina Womens Services,ASSIST SECURITY LIMITED,id:13941677 ,1800.00
Department of Health,Guys and St Thomas NHS Foundation Trust,09/04/2021,(81200) Medical Surgical Supplies & Equipment,(id:42492) Evelina Womens Services,NHS SUPPLY CHAIN (MAIDSTONE),id:13894938 ,5476.45
Department of Health,Guys and St Thomas NHS Foundation Trust,16/04/2021,(81200) Medical Surgical Supplies & Equipment,(id:42492) Evelina Womens Services,BECTON DICKINSON (CME) UK LTD,id:13944994, 891.60
Department of Health,Guys and St Thomas NHS Foundation Trust,28/04/2021,(50562) Qualified Nursing Staff,(id:42492) Evelina Womens Services,PULSE HEALTHCARE LIMITED,id:14039821    , 421.20
Department of Health,Guys and St Thomas NHS Foundation Trust,09/04/2021,(83400) Office Equipment,(id:42491) Evelina Womens Services,NHS SUPPLY CHAIN (MAIDSTONE),id:13763774  ,  72.00
Department of Health,Guys and St Thomas NHS Foundation Trust,23/04/2021,(82800) Bedding & Linen,(id:42491) Evelina Womens Services,NHS SUPPLY CHAIN (MAIDSTONE),id:13946606   , 121.22
Department of Health,Guys and St Thomas NHS Foundation Trust,09/04/2021,(82800) Bedding & Linen,(id:42491) Evelina Womens Services,NHS SUPPLY CHAIN (MAIDSTONE),id:13894938   , 132.01
Department of Health,Guys and St Thomas NHS Foundation Trust,09/04/2021,(82800) Bedding & Linen,(id:42491) Evelina Womens Services,NHS SUPPLY CHAIN (MAIDSTONE),id:13845954   , 151.03
Department of Health,Guys and St Thomas NHS Foundation Trust,09/04/2021,(81275) Medical Surgical Supplies & Equipment,(id:42491) Evelina Womens Services,NHS SUPPLY CHAIN (MAIDSTONE),id:13763774 , 120.17
Department of Health,Guys and St Thomas NHS Foundation Trust,09/04/2021,(81100) Dressings,(id:42491) Evelina Womens Services,NHS SUPPLY CHAIN (MAIDSTONE),id:13894938    , 115.80
Department of Health,Guys and St Thomas NHS Foundation Trust,09/04/2021,(81200) Medical Surgical Supplies & Equipment,(id:42491) Evelina Womens Services,NHS SUPPLY CHAIN (MAIDSTONE),id:13763774 , 384.74
Department of Health,Guys and St Thomas NHS Foundation Trust,01/04/2021,(89595) Non-Healthcare from Foundation Trusts,(id:42504) Evelina Womens Services,ASHFORD AND ST PETER'S HOSPITALS NHSFT,id:13589299 , 688.00
Department of Health,Guys and St Thomas NHS Foundation Trust,09/04/2021,(81200) Medical Surgical Supplies & Equipment,(id:42348) Evelina Central,NHS SUPPLY CHAIN (MAIDSTONE),id:13763774    ,1054.53
Department of Health,Guys and St Thomas NHS Foundation Trust,16/04/2021,(81200) Medical Surgical Supplies & Equipment,(id:42348) Evelina Central,MEDTRONIC LTD,id:13940028    , 504.00
Department of Health,Guys and St Thomas NHS Foundation Trust,23/04/2021,(81255) Medical Surgical Supplies & Equipment,(id:42348) Evelina Central,NHS SUPPLY CHAIN (MAIDSTONE),id:13946606    ,   2.88
Department of Health,Guys and St Thomas NHS Foundation Trust,23/04/2021,(83400) Office Equipment,(id:42348) Evelina Central,NHS SUPPLY CHAIN (MAIDSTONE),id:13933387, 169.31
Department of Health,Guys and St Thomas NHS Foundation Trust,23/04/2021,(81700) Lab Equipment Purchase,(id:42348) Evelina Central,NHS SUPPLY CHAIN (MAIDSTONE),id:13933387    ,  12.41
Department of Health,Guys and St Thomas NHS Foundation Trust,09/04/2021,(82800) Bedding & Linen,(id:42331) Evelina Central,NHS SUPPLY CHAIN (MAIDSTONE),id:13763774 , 204.74
Department of Health,Guys and St Thomas NHS Foundation Trust,09/04/2021,(81200) Medical Surgical Supplies & Equipment,(id:42331) Evelina Central,NHS SUPPLY CHAIN (MAIDSTONE),id:13894938    ,1172.46
Department of Health,Guys and St Thomas NHS Foundation Trust,23/04/2021,(81225) Medical Surgical Supplies & Equipment,(id:42331) Evelina Central,NHS SUPPLY CHAIN (MAIDSTONE),id:13933387    ,  17.80
Department of Health,Guys and St Thomas NHS Foundation Trust,09/04/2021,(81100) Dressings,(id:42331) Evelina Central,NHS SUPPLY CHAIN (MAIDSTONE),id:13763774  , 518.02
Department of Health,Guys and St Thomas NHS Foundation Trust,09/04/2021,(81100) Dressings,(id:42331) Evelina Central,NHS SUPPLY CHAIN (MAIDSTONE),id:13845954  , 414.79
Department of Health,Guys and St Thomas NHS Foundation Trust,09/04/2021,(81700) Lab Equipment Purchase,(id:42331) Evelina Central,NHS SUPPLY CHAIN (MAIDSTONE),id:13845954    ,  18.96
Department of Health,Guys and St Thomas NHS Foundation Trust,09/04/2021,(81100) Dressings,(id:42325) Evelina Central,NHS SUPPLY CHAIN (MAIDSTONE),id:13763774  ,  61.73
Department of Health,Guys and St Thomas NHS Foundation Trust,23/04/2021,(81700) Lab Equipment Purchase,(id:42325) Evelina Central,NHS SUPPLY CHAIN (MAIDSTONE),id:13933387    ,  58.51
Department of Health,Guys and St Thomas NHS Foundation Trust,23/04/2021,(81200) Medical Surgical Supplies & Equipment,(id:1650419) Evelina Central,NHS SUPPLY CHAIN (MAIDSTONE),id:13946606  , 915.98
Department of Health,Guys and St Thomas NHS Foundation Trust,09/04/2021,(80100) Drug Costs,(id:728419) Evelina Central,BOC LTD :02107500,id:13528776 ,3216.00
Department of Health,Guys and St Thomas NHS Foundation Trust,16/04/2021,(81200) Medical Surgical Supplies & Equipment,(id:2709419) Evelina Central,B.BRAUN MEDICAL LTD,id:13933294 ,1092.06
Department of Health,Guys and St Thomas NHS Foundation Trust,16/04/2021,(83880) Building & Engineering,(id:2709419) Evelina Central,LAZERBEAM FIRE AND SECURITY LTD,id:13675115    , 435.00
Department of Health,Guys and St Thomas NHS Foundation Trust,09/04/2021,(89570) Other – Other Operating Expenditure,(id:2709419) Evelina Central,KORN WALL LTD T/A KWICKSCREEN,id:13954078  ,2108.40
Department of Health,Guys and St Thomas NHS Foundation Trust,23/04/2021,(82000) Provisions & Kitchens,(id:42319) Evelina Central,NHS SUPPLY CHAIN (MAIDSTONE),id:13946606,  18.24
Department of Health,Guys and St Thomas NHS Foundation Trust,16/04/2021,(55092) Admin & Clerical,(id:2927419) Evelina Central,BADENOCH & CLARK,id:13995161,2433.24
Department of Health,Guys and St Thomas NHS Foundation Trust,01/04/2021,(81225) Medical Surgical Supplies & Equipment,(id:590444) Evelina Community Services,ARLINGTON LABORATORIES LTD,id:13869535    ,2039.16
Department of Health,Guys and St Thomas NHS Foundation Trust,09/04/2021,(81225) Medical Surgical Supplies & Equipment,(id:590444) Evelina Community Services,NHS SUPPLY CHAIN (MAIDSTONE),id:13845954  ,  26.32
Department of Health,Guys and St Thomas NHS Foundation Trust,09/04/2021,(82800) Bedding & Linen,(id:4621420) Evelina Community Services,NHS SUPPLY CHAIN (MAIDSTONE),id:13845954   , 161.72
Department of Health,Guys and St Thomas NHS Foundation Trust,01/04/2021,(84655) Establishment,(id:590548) Evelina Community Services,LANGUAGE LINE LTD,id:13929350  ,3435.61
Department of Health,Guys and St Thomas NHS Foundation Trust,01/04/2021,(89200) Other - Patient travel,(id:590452) Evelina Community Services,HOGREFE LTD,id:13931154    ,1117.20
Department of Health,Guys and St Thomas NHS Foundation Trust,23/04/2021,(84657) Establishment,(id:590452) Evelina Community Services,IRON MOUNTAIN (UK) LTD,id:12551565  , 744.96
Department of Health,Guys and St Thomas NHS Foundation Trust,23/04/2021,(84657) Establishment,(id:590452) Evelina Community Services,IRON MOUNTAIN (UK) LTD,id:13013020  , 780.36
Department of Health,Guys and St Thomas NHS Foundation Trust,23/04/2021,(50562) Qualified Nursing Staff,(id:590541) Evelina Community Services,MSI GROUP LTD,id:14016995 ,1751.92
Department of Health,Guys and St Thomas NHS Foundation Trust,01/04/2021,(84500) Establishment,(id:590418) Evelina Community Services,CDP  PRINT MANAGEMENT,id:13930295   , 661.18
Department of Health,Guys and St Thomas NHS Foundation Trust,23/04/2021,(82000) Provisions & Kitchens,(id:590416) Evelina Community Services,NHS SUPPLY CHAIN (MAIDSTONE),id:13933387   , 154.20
Department of Health,Guys and St Thomas NHS Foundation Trust,23/04/2021,(50562) Qualified Nursing Staff,(id:590542) Evelina Community Services,ARTHUR RAI MEDICAL SERVICES LTD,id:14017158   ,1053.60
Department of Health,Guys and St Thomas NHS Foundation Trust,09/04/2021,(50562) Qualified Nursing Staff,(id:590540) Evelina Community Services,ARTHUR RAI MEDICAL SERVICES LTD,id:13970221   , 658.50
Department of Health,Guys and St Thomas NHS Foundation Trust,09/04/2021,(50562) Qualified Nursing Staff,(id:590421) Evelina Community Services,ARTHUR RAI MEDICAL SERVICES LTD,id:13972782   ,1053.60
Department of Health,Guys and St Thomas NHS Foundation Trust,16/04/2021,(50562) Qualified Nursing Staff,(id:590421) Evelina Community Services,ARTHUR RAI MEDICAL SERVICES LTD,id:13996134   ,1317.00
Department of Health,Guys and St Thomas NHS Foundation Trust,09/04/2021,(81200) Medical Surgical Supplies & Equipment,(id:2356419) Evelina Medicine & Neonatology,NHS SUPPLY CHAIN (MAIDSTONE),id:13845954  ,1032.85
Department of Health,Guys and St Thomas NHS Foundation Trust,23/04/2021,(81100) Dressings,(id:2356419) Evelina Medicine & Neonatology,NHS SUPPLY CHAIN (MAIDSTONE),id:13946606,   1.78
Department of Health,Guys and St Thomas NHS Foundation Trust,23/04/2021,(82800) Bedding & Linen,(id:2356419) Evelina Medicine & Neonatology,NHS SUPPLY CHAIN (MAIDSTONE),id:13946606    ,   4.49
Department of Health,Guys and St Thomas NHS Foundation Trust,09/04/2021,(83400) Office Equipment,(id:2356419) Evelina Medicine & Neonatology,NHS SUPPLY CHAIN (MAIDSTONE),id:13894938   ,  51.80
Department of Health,Guys and St Thomas NHS Foundation Trust,23/04/2021,(83400) Office Equipment,(id:2356419) Evelina Medicine & Neonatology,NHS SUPPLY CHAIN (MAIDSTONE),id:13933387   ,  42.88
Department of Health,Guys and St Thomas NHS Foundation Trust,09/04/2021,(81230) Medical Surgical Supplies & Equipment,(id:2356419) Evelina Medicine & Neonatology,NHS SUPPLY CHAIN (MAIDSTONE),id:13763774  , 182.70
Department of Health,Guys and St Thomas NHS Foundation Trust,23/04/2021,(81200) Medical Surgical Supplies & Equipment,(id:1196422) Evelina Medicine & Neonatology,APPLIED MEDICAL UK LTD,id:13942294   ,1670.40
Department of Health,Guys and St Thomas NHS Foundation Trust,28/04/2021,(81200) Medical Surgical Supplies & Equipment,(id:42350) Evelina Medicine & Neonatology,BAXTER HEALTHCARE LTD,id:14036614 , 736.32
Department of Health,Guys and St Thomas NHS Foundation Trust,23/04/2021,(80150) Drug Costs,(id:42350) Evelina Medicine & Neonatology,LINC MEDICAL SYSTEMS  LTD,id:13991814    , 893.40
Department of Health,Guys and St Thomas NHS Foundation Trust,16/04/2021,(81000) Surgical Appliances,(id:42350) Evelina Medicine & Neonatology,TALAR MADE ORTHOTICS LTD,id:13996794 ,  93.00
Department of Health,Guys and St Thomas NHS Foundation Trust,23/04/2021,(81700) Lab Equipment Purchase,(id:42350) Evelina Medicine & Neonatology,NHS SUPPLY CHAIN (MAIDSTONE),id:13933387    ,  97.32
Department of Health,Guys and St Thomas NHS Foundation Trust,09/04/2021,(81200) Medical Surgical Supplies & Equipment,(id:42349) Evelina Medicine & Neonatology,NHS SUPPLY CHAIN (MAIDSTONE),id:13894938    , 552.36
Department of Health,Guys and St Thomas NHS Foundation Trust,09/04/2021,(81230) Medical Surgical Supplies & Equipment,(id:42349) Evelina Medicine & Neonatology,NHS SUPPLY CHAIN (MAIDSTONE),id:13845954    ,   9.66
Department of Health,Guys and St Thomas NHS Foundation Trust,01/04/2021,(84600) Establishment,(id:42349) Evelina Medicine & Neonatology,CLARITY TRAVEL MANAGEMENT,id:13663836 ,  39.73
Department of Health,Guys and St Thomas NHS Foundation Trust,09/04/2021,(81200) Medical Surgical Supplies & Equipment,(id:42336) Evelina Medicine & Neonatology,NHS SUPPLY CHAIN (MAIDSTONE),id:13763774    ,  57.54
Department of Health,Guys and St Thomas NHS Foundation Trust,01/04/2021,(84600) Establishment,(id:42336) Evelina Medicine & Neonatology,CLARITY TRAVEL MANAGEMENT,id:13298334 ,  23.40
Department of Health,Guys and St Thomas NHS Foundation Trust,16/04/2021,(81200) Medical Surgical Supplies & Equipment,(id:817420) Evelina Medicine & Neonatology,LABCOLD LTD,id:13187475, 869.40
Department of Health,Guys and St Thomas NHS Foundation Trust,09/04/2021,(84500) Establishment,(id:42335) Evelina Medicine & Neonatology,PEARSON EDUCATION LTD,id:13970834, 530.40
Department of Health,Guys and St Thomas NHS Foundation Trust,09/04/2021,(84500) Establishment,(id:42335) Evelina Medicine & Neonatology,PEARSON EDUCATION LTD,id:13970835,1243.20
Department of Health,Guys and St Thomas NHS Foundation Trust,28/04/2021,(84500) Establishment,(id:42335) Evelina Medicine & Neonatology,PEARSON EDUCATION LTD,id:13804417, 302.40
Department of Health,Guys and St Thomas NHS Foundation Trust,09/04/2021,(81100) Dressings,(id:42335) Evelina Medicine & Neonatology,NHS SUPPLY CHAIN (MAIDSTONE),id:13845954  ,  48.79
Department of Health,Guys and St Thomas NHS Foundation Trust,09/04/2021,(81100) Dressings,(id:42335) Evelina Medicine & Neonatology,NHS SUPPLY CHAIN (MAIDSTONE),id:13894938  , 117.43
Department of Health,Guys and St Thomas NHS Foundation Trust,23/04/2021,(81100) Dressings,(id:42335) Evelina Medicine & Neonatology,NHS SUPPLY CHAIN (MAIDSTONE),id:13933387  , 410.98
Department of Health,Guys and St Thomas NHS Foundation Trust,23/04/2021,(81100) Dressings,(id:42327) Evelina Medicine & Neonatology,NHS SUPPLY CHAIN (MAIDSTONE),id:13946606  ,1715.39
Department of Health,Guys and St Thomas NHS Foundation Trust,09/04/2021,(81100) Dressings,(id:42327) Evelina Medicine & Neonatology,NHS SUPPLY CHAIN (MAIDSTONE),id:13763774  , 325.48
Department of Health,Guys and St Thomas NHS Foundation Trust,09/04/2021,(81100) Dressings,(id:42327) Evelina Medicine & Neonatology,NHS SUPPLY CHAIN (MAIDSTONE),id:13894938  , 570.86
Department of Health,Guys and St Thomas NHS Foundation Trust,23/04/2021,(81200) Medical Surgical Supplies & Equipment,(id:42327) Evelina Medicine & Neonatology,FISHER & PAYKEL HEALTHCARE LTD,id:12971124  ,    10213.60
Department of Health,Guys and St Thomas NHS Foundation Trust,23/04/2021,(83400) Office Equipment,(id:42327) Evelina Medicine & Neonatology,NHS SUPPLY CHAIN (MAIDSTONE),id:13933387, 415.78
Department of Health,Guys and St Thomas NHS Foundation Trust,01/04/2021,(81230) Medical Surgical Supplies & Equipment,(id:42327) Evelina Medicine & Neonatology,VYGON (UK) LTD,id:13857007   , 579.24
Department of Health,Guys and St Thomas NHS Foundation Trust,09/04/2021,(81700) Lab Equipment Purchase,(id:1196420) Evelina Medicine & Neonatology,NHS SUPPLY CHAIN (MAIDSTONE),id:13763774  , 593.34
Department of Health,Guys and St Thomas NHS Foundation Trust,23/04/2021,(80010) Drug Costs,(id:1196420) Evelina Medicine & Neonatology,DEXCOM INTERNATIONAL LTD,id:13999639   , 793.50
Department of Health,Guys and St Thomas NHS Foundation Trust,23/04/2021,(80010) Drug Costs,(id:1196420) Evelina Medicine & Neonatology,DEXCOM INTERNATIONAL LTD,id:13999534   , 793.50
Department of Health,Guys and St Thomas NHS Foundation Trust,23/04/2021,(80010) Drug Costs,(id:1196420) Evelina Medicine & Neonatology,DEXCOM INTERNATIONAL LTD,id:13976175   , 793.50
Department of Health,Guys and St Thomas NHS Foundation Trust,28/04/2021,(81200) Medical Surgical Supplies & Equipment,(id:2982419) Evelina Medicine & Neonatology,HENLEYS MEDICAL SUPPLIES LTD,id:14023174  , 540.00
Department of Health,Guys and St Thomas NHS Foundation Trust,09/04/2021,(81700) Lab Equipment Purchase,(id:2496419) Evelina Medicine & Neonatology,NHS SUPPLY CHAIN (MAIDSTONE),id:13894938  ,   5.93
Department of Health,Guys and St Thomas NHS Foundation Trust,23/04/2021,(83400) Office Equipment,(id:2496419) Evelina Medicine & Neonatology,NHS SUPPLY CHAIN (MAIDSTONE),id:13933387   ,   9.84
Department of Health,Guys and St Thomas NHS Foundation Trust,09/04/2021,(82000) Provisions & Kitchens,(id:2496419) Evelina Medicine & Neonatology,NHS SUPPLY CHAIN (MAIDSTONE),id:13845954   ,  18.87
Department of Health,Guys and St Thomas NHS Foundation Trust,01/04/2021,(84500) Establishment,(id:2496419) Evelina Medicine & Neonatology,BREAS MEDICAL LTD,id:13929247  ,  14.40
Department of Health,Guys and St Thomas NHS Foundation Trust,23/04/2021,(50552) Qualified Nursing Staff,(id:41874) Evelina Medicine & Neonatology,CONTINENTAL NURSE LTD,id:14017231, 700.81
Department of Health,Guys and St Thomas NHS Foundation Trust,01/04/2021,(50552) Qualified Nursing Staff,(id:41874) Evelina Medicine & Neonatology,MSI GROUP LTD,id:13946412   , 337.23
Department of Health,Guys and St Thomas NHS Foundation Trust,28/04/2021,(50552) Qualified Nursing Staff,(id:41874) Evelina Medicine & Neonatology,CONTINENTAL NURSE LTD,id:14039943,1881.12
Department of Health,Guys and St Thomas NHS Foundation Trust,16/04/2021,(50552) Qualified Nursing Staff,(id:41874) Evelina Medicine & Neonatology,CONTINENTAL NURSE LTD,id:13993350,2734.71
Department of Health,Guys and St Thomas NHS Foundation Trust,23/04/2021,(81200) Medical Surgical Supplies & Equipment,(id:41874) Evelina Medicine & Neonatology,NHS SUPPLY CHAIN (MAIDSTONE),id:13946606    ,  95.32
Department of Health,Guys and St Thomas NHS Foundation Trust,09/04/2021,(81100) Dressings,(id:41874) Evelina Medicine & Neonatology,NHS SUPPLY CHAIN (MAIDSTONE),id:13763774  ,   9.74
Department of Health,Guys and St Thomas NHS Foundation Trust,09/04/2021,(84500) Establishment,(id:41874) Evelina Medicine & Neonatology,CDP  PRINT MANAGEMENT,id:13957694, 750.00
Department of Health,Guys and St Thomas NHS Foundation Trust,09/04/2021,(83400) Office Equipment,(id:42323) Evelina Medicine & Neonatology,NHS SUPPLY CHAIN (MAIDSTONE),id:13763774, 139.59
Department of Health,Guys and St Thomas NHS Foundation Trust,09/04/2021,(82000) Provisions & Kitchens,(id:42323) Evelina Medicine & Neonatology,NHS SUPPLY CHAIN (MAIDSTONE),id:13845954,  18.11
Department of Health,Guys and St Thomas NHS Foundation Trust,23/04/2021,(82000) Provisions & Kitchens,(id:42315) Evelina Medicine & Neonatology,NHS SUPPLY CHAIN (MAIDSTONE),id:13933387,  22.84
Department of Health,Guys and St Thomas NHS Foundation Trust,23/04/2021,(81200) Medical Surgical Supplies & Equipment,(id:42315) Evelina Medicine & Neonatology,NHS SUPPLY CHAIN (MAIDSTONE),id:13933387    , 525.30
Department of Health,Guys and St Thomas NHS Foundation Trust,23/04/2021,(81200) Medical Surgical Supplies & Equipment,(id:42315) Evelina Medicine & Neonatology,NHS SUPPLY CHAIN (MAIDSTONE),id:13946606    ,1079.68
Department of Health,Guys and St Thomas NHS Foundation Trust,09/04/2021,(81200) Medical Surgical Supplies & Equipment,(id:42315) Evelina Medicine & Neonatology,NHS SUPPLY CHAIN (MAIDSTONE),id:13763774    , 874.25
Department of Health,Guys and St Thomas NHS Foundation Trust,23/04/2021,(83400) Office Equipment,(id:42315) Evelina Medicine & Neonatology,NHS SUPPLY CHAIN (MAIDSTONE),id:13946606,  20.75
Department of Health,Guys and St Thomas NHS Foundation Trust,09/04/2021,(81700) Lab Equipment Purchase,(id:42315) Evelina Medicine & Neonatology,NHS SUPPLY CHAIN (MAIDSTONE),id:13894938    ,  28.80
Department of Health,Guys and St Thomas NHS Foundation Trust,09/04/2021,(82700) Uniforms & Clothing,(id:4082419) Evelina Surgery Theatres & PICU,NHS SUPPLY CHAIN (MAIDSTONE),id:13894938    ,  16.59
Department of Health,Guys and St Thomas NHS Foundation Trust,23/04/2021,(83400) Office Equipment,(id:4082419) Evelina Surgery Theatres & PICU,NHS SUPPLY CHAIN (MAIDSTONE),id:13933387  ,  61.37
Department of Health,Guys and St Thomas NHS Foundation Trust,23/04/2021,(82800) Bedding & Linen,(id:4082419) Evelina Surgery Theatres & PICU,NHS SUPPLY CHAIN (MAIDSTONE),id:13946606   ,  63.02
Department of Health,Guys and St Thomas NHS Foundation Trust,09/04/2021,(82800) Bedding & Linen,(id:42312) Evelina Surgery Theatres & PICU,NHS SUPPLY CHAIN (MAIDSTONE),id:13894938, 270.00
Department of Health,Guys and St Thomas NHS Foundation Trust,23/04/2021,(81400) Medical Surgical Supplies & Equipment,(id:42312) Evelina Surgery Theatres & PICU,NHS SUPPLY CHAIN (MAIDSTONE),id:13946606   , 375.00
Department of Health,Guys and St Thomas NHS Foundation Trust,01/04/2021,(84600) Establishment,(id:42312) Evelina Surgery Theatres & PICU,CLARITY TRAVEL MANAGEMENT,id:13940775, 167.60
Department of Health,Guys and St Thomas NHS Foundation Trust,09/04/2021,(81280) Medical Surgical Supplies & Equipment,(id:42312) Evelina Surgery Theatres & PICU,EDWARDS LIFESCIENCES LTD,id:13884654  ,    25530.00
Department of Health,Guys and St Thomas NHS Foundation Trust,28/04/2021,(84656) Establishment,(id:42312) Evelina Surgery Theatres & PICU,DICT8 LIMITED,id:13984694  ,3029.16
Department of Health,Guys and St Thomas NHS Foundation Trust,01/04/2021,(84600) Establishment,(id:42351) Evelina Surgery Theatres & PICU,CLARITY TRAVEL MANAGEMENT,id:13663836,  27.73
Department of Health,Guys and St Thomas NHS Foundation Trust,09/04/2021,(81200) Medical Surgical Supplies & Equipment,(id:41914) Evelina Surgery Theatres & PICU,NHS SUPPLY CHAIN (MAIDSTONE),id:13894938   ,1456.46
Department of Health,Guys and St Thomas NHS Foundation Trust,28/04/2021,(50562) Qualified Nursing Staff,(id:41914) Evelina Surgery Theatres & PICU,PULSE HEALTHCARE LIMITED,id:14039850 , 533.93
Department of Health,Guys and St Thomas NHS Foundation Trust,23/04/2021,(81100) Dressings,(id:41914) Evelina Surgery Theatres & PICU,NHS SUPPLY CHAIN (MAIDSTONE),id:13946606 , 399.26
Department of Health,Guys and St Thomas NHS Foundation Trust,23/04/2021,(81100) Dressings,(id:41914) Evelina Surgery Theatres & PICU,NHS SUPPLY CHAIN (MAIDSTONE),id:13933387 , 378.82
Department of Health,Guys and St Thomas NHS Foundation Trust,09/04/2021,(81100) Dressings,(id:41914) Evelina Surgery Theatres & PICU,NHS SUPPLY CHAIN (MAIDSTONE),id:13894938 , 122.76
Department of Health,Guys and St Thomas NHS Foundation Trust,09/04/2021,(81100) Dressings,(id:41914) Evelina Surgery Theatres & PICU,NHS SUPPLY CHAIN (MAIDSTONE),id:13763774 , 210.12
Department of Health,Guys and St Thomas NHS Foundation Trust,09/04/2021,(81700) Lab Equipment Purchase,(id:41914) Evelina Surgery Theatres & PICU,NHS SUPPLY CHAIN (MAIDSTONE),id:13894938   ,   5.93
Department of Health,Guys and St Thomas NHS Foundation Trust,09/04/2021,(81100) Dressings,(id:41910) Evelina Surgery Theatres & PICU,NHS SUPPLY CHAIN (MAIDSTONE),id:13894938 , 180.32
Department of Health,Guys and St Thomas NHS Foundation Trust,23/04/2021,(81200) Medical Surgical Supplies & Equipment,(id:3722419) Evelina Surgery Theatres & PICU,ORTHOPTIC SUPPLIES:70364400,id:14020756  ,1063.80
Department of Health,Guys and St Thomas NHS Foundation Trust,09/04/2021,(89640) Non-Healthcare from NHS Trusts,(id:1682419) Evelina Surgery Theatres & PICU,EAST AND NORTH HERTFORDSHIRE NHS TRUST,id:13587315   ,1150.00
Department of Health,Guys and St Thomas NHS Foundation Trust,28/04/2021,(81200) Medical Surgical Supplies & Equipment,(id:1196421) Evelina Surgery Theatres & PICU,NUVASIVE UK LTD,id:14035318    ,    12963.73
Department of Health,Guys and St Thomas NHS Foundation Trust,23/04/2021,(81100) Dressings,(id:2498419) Evelina Surgery Theatres & PICU,NHS SUPPLY CHAIN (MAIDSTONE),id:13946606    ,  25.18
Department of Health,Guys and St Thomas NHS Foundation Trust,16/04/2021,(81200) Medical Surgical Supplies & Equipment,(id:431409) Evelina Surgery Theatres & PICU,ORTHOPEDIATRICS EU LIMITED,id:13974414    ,2412.18
Department of Health,Guys and St Thomas NHS Foundation Trust,16/04/2021,(81000) Surgical Appliances,(id:431409) Evelina Surgery Theatres & PICU,TALAR MADE ORTHOTICS LTD,id:13993936    ,  46.49
Department of Health,Guys and St Thomas NHS Foundation Trust,16/04/2021,(81000) Surgical Appliances,(id:431409) Evelina Surgery Theatres & PICU,TALAR MADE ORTHOTICS LTD,id:13994114    ,  93.00
Department of Health,Guys and St Thomas NHS Foundation Trust,16/04/2021,(81000) Surgical Appliances,(id:431409) Evelina Surgery Theatres & PICU,JOHN FLORENCE LTD,id:13982175 ,2882.31
Department of Health,Guys and St Thomas NHS Foundation Trust,09/04/2021,(82800) Bedding & Linen,(id:431409) Evelina Surgery Theatres & PICU,NHS SUPPLY CHAIN (MAIDSTONE),id:13894938    , 258.17
Department of Health,Guys and St Thomas NHS Foundation Trust,09/04/2021,(81200) Medical Surgical Supplies & Equipment,(id:468410) Evelina Surgery Theatres & PICU,NHS SUPPLY CHAIN (MAIDSTONE),id:13763774  ,   9.00
Department of Health,Guys and St Thomas NHS Foundation Trust,09/04/2021,(81100) Dressings,(id:468410) Evelina Surgery Theatres & PICU,NHS SUPPLY CHAIN (MAIDSTONE),id:13763774, 113.15
Department of Health,Guys and St Thomas NHS Foundation Trust,09/04/2021,(81200) Medical Surgical Supplies & Equipment,(id:468409) Evelina Surgery Theatres & PICU,MEDTRONIC LTD,id:13923679  , 434.40
Department of Health,Guys and St Thomas NHS Foundation Trust,09/04/2021,(82800) Bedding & Linen,(id:468409) Evelina Surgery Theatres & PICU,NHS SUPPLY CHAIN (MAIDSTONE),id:13845954    , 144.30
Department of Health,Guys and St Thomas NHS Foundation Trust,23/04/2021,(81550) X Ray Equipment Purchase,(id:468409) Evelina Surgery Theatres & PICU,NHS SUPPLY CHAIN (MAIDSTONE),id:13933387, 232.80
Department of Health,Guys and St Thomas NHS Foundation Trust,23/04/2021,(81200) Medical Surgical Supplies & Equipment,(id:2495421) Evelina Surgery Theatres & PICU,NHS SUPPLY CHAIN (MAIDSTONE),id:13946606 , 413.82
Department of Health,Guys and St Thomas NHS Foundation Trust,16/04/2021,(83610) IT Costs,(id:2495421) Evelina Surgery Theatres & PICU,OFFICE DEPOT UK LTD,id:13923755    , 577.01
Department of Health,Guys and St Thomas NHS Foundation Trust,09/04/2021,(81100) Dressings,(id:42347) Evelina Surgery Theatres & PICU,JOHNSON & JOHNSON MEDICAL LTD,id:13913022, 364.72
Department of Health,Guys and St Thomas NHS Foundation Trust,09/04/2021,(81200) Medical Surgical Supplies & Equipment,(id:42347) Evelina Surgery Theatres & PICU,NHS SUPPLY CHAIN (MAIDSTONE),id:13894938   , 100.47
Department of Health,Guys and St Thomas NHS Foundation Trust,09/04/2021,(81200) Medical Surgical Supplies & Equipment,(id:42347) Evelina Surgery Theatres & PICU,NHS SUPPLY CHAIN (MAIDSTONE),id:13845954   ,2419.89
Department of Health,Guys and St Thomas NHS Foundation Trust,09/04/2021,(81200) Medical Surgical Supplies & Equipment,(id:42347) Evelina Surgery Theatres & PICU,NHS SUPPLY CHAIN (MAIDSTONE),id:13763774   , 147.31
Department of Health,Guys and St Thomas NHS Foundation Trust,16/04/2021,(81400) Medical Surgical Supplies & Equipment,(id:42344) Evelina Surgery Theatres & PICU,B.BRAUN MEDICAL LTD,id:13781714  ,1500.00
Department of Health,Guys and St Thomas NHS Foundation Trust,09/04/2021,(82700) Uniforms & Clothing,(id:42339) Evelina Surgery Theatres & PICU,NHS SUPPLY CHAIN (MAIDSTONE),id:13845954 ,  41.15
Department of Health,Guys and St Thomas NHS Foundation Trust,23/04/2021,(82000) Provisions & Kitchens,(id:42339) Evelina Surgery Theatres & PICU,NHS SUPPLY CHAIN (MAIDSTONE),id:13946606    , 121.04
Department of Health,Guys and St Thomas NHS Foundation Trust,09/04/2021,(82600) Uniforms & Clothing,(id:42339) Evelina Surgery Theatres & PICU,NHS SUPPLY CHAIN (MAIDSTONE),id:13894938 ,  15.12
Department of Health,Guys and St Thomas NHS Foundation Trust,23/04/2021,(82800) Bedding & Linen,(id:42339) Evelina Surgery Theatres & PICU,NHS SUPPLY CHAIN (MAIDSTONE),id:13946606, 229.69
Department of Health,Guys and St Thomas NHS Foundation Trust,09/04/2021,(81100) Dressings,(id:42339) Evelina Surgery Theatres & PICU,NHS SUPPLY CHAIN (MAIDSTONE),id:13845954 ,2395.98
Department of Health,Guys and St Thomas NHS Foundation Trust,23/04/2021,(81200) Medical Surgical Supplies & Equipment,(id:42339) Evelina Surgery Theatres & PICU,ADVANCED STERILIZATION PRODUCTS (UK) LTD,id:13997854 ,1006.20
Department of Health,Guys and St Thomas NHS Foundation Trust,09/04/2021,(81200) Medical Surgical Supplies & Equipment,(id:42339) Evelina Surgery Theatres & PICU,NHS SUPPLY CHAIN (MAIDSTONE),id:13845954   ,3081.78
Department of Health,Guys and St Thomas NHS Foundation Trust,16/04/2021,(81200) Medical Surgical Supplies & Equipment,(id:42339) Evelina Surgery Theatres & PICU,FISHER & PAYKEL HEALTHCARE LTD,id:13938715 , 963.36
Department of Health,Guys and St Thomas NHS Foundation Trust,09/04/2021,(81400) Medical Surgical Supplies & Equipment,(id:42339) Evelina Surgery Theatres & PICU,MET HEALTHCARE UK LTD,id:13718434,    12000.00
Department of Health,Guys and St Thomas NHS Foundation Trust,01/04/2021,(84600) Establishment,(id:42339) Evelina Surgery Theatres & PICU,CLARITY TRAVEL MANAGEMENT,id:13298334, 132.42
Department of Health,Guys and St Thomas NHS Foundation Trust,23/04/2021,(81230) Medical Surgical Supplies & Equipment,(id:42339) Evelina Surgery Theatres & PICU,COOK UK LTD,id:13887731, 516.00
Department of Health,Guys and St Thomas NHS Foundation Trust,09/04/2021,(81700) Lab Equipment Purchase,(id:42339) Evelina Surgery Theatres & PICU,NHS SUPPLY CHAIN (MAIDSTONE),id:13894938   ,  76.88
Department of Health,Guys and St Thomas NHS Foundation Trust,09/04/2021,(81700) Lab Equipment Purchase,(id:1127419) Cardiovascular Services,NHS SUPPLY CHAIN (MAIDSTONE),id:13845954    ,  95.37
Department of Health,Guys and St Thomas NHS Foundation Trust,09/04/2021,(81200) Medical Surgical Supplies & Equipment,(id:780420) Cardiovascular Services,NHS SUPPLY CHAIN (MAIDSTONE),id:13845954,1756.80
Department of Health,Guys and St Thomas NHS Foundation Trust,09/04/2021,(81200) Medical Surgical Supplies & Equipment,(id:780420) Cardiovascular Services,NHS SUPPLY CHAIN (MAIDSTONE),id:13763774,1005.97
Department of Health,Guys and St Thomas NHS Foundation Trust,09/04/2021,(82000) Provisions & Kitchens,(id:780420) Cardiovascular Services,NHS SUPPLY CHAIN (MAIDSTONE),id:13763774 , 175.97
Department of Health,Guys and St Thomas NHS Foundation Trust,09/04/2021,(81255) Medical Surgical Supplies & Equipment,(id:780420) Cardiovascular Services,NHS SUPPLY CHAIN (MAIDSTONE),id:13763774,   7.67
Department of Health,Guys and St Thomas NHS Foundation Trust,01/04/2021,(50552) Qualified Nursing Staff,(id:780420) Cardiovascular Services,CONTINENTAL NURSE LTD,id:13950598 , 361.61
Department of Health,Guys and St Thomas NHS Foundation Trust,23/04/2021,(82800) Bedding & Linen,(id:780420) Cardiovascular Services,NHS SUPPLY CHAIN (MAIDSTONE),id:13933387  , 128.34
Department of Health,Guys and St Thomas NHS Foundation Trust,09/04/2021,(81250) Medical Surgical Supplies & Equipment,(id:639421) Cardiovascular Services,COOK UK LTD,id:13816415  ,    37200.00
Department of Health,Guys and St Thomas NHS Foundation Trust,28/04/2021,(81250) Medical Surgical Supplies & Equipment,(id:639421) Cardiovascular Services,COOK UK LTD,id:13913054  ,    16800.00
Department of Health,Guys and St Thomas NHS Foundation Trust,23/04/2021,(81200) Medical Surgical Supplies & Equipment,(id:639421) Cardiovascular Services,NHS SUPPLY CHAIN (MAIDSTONE),id:13946606,2994.00
Department of Health,Guys and St Thomas NHS Foundation Trust,23/04/2021,(81200) Medical Surgical Supplies & Equipment,(id:639421) Cardiovascular Services,BENTLEY INNOMED GMBH,id:13983854   ,2730.00
Department of Health,Guys and St Thomas NHS Foundation Trust,23/04/2021,(81200) Medical Surgical Supplies & Equipment,(id:639421) Cardiovascular Services,BENTLEY INNOMED GMBH,id:13983837   ,3060.00
Department of Health,Guys and St Thomas NHS Foundation Trust,16/04/2021,(81200) Medical Surgical Supplies & Equipment,(id:639421) Cardiovascular Services,CRYOLIFE EUROPA LTD,id:13923382    ,3600.00
Department of Health,Guys and St Thomas NHS Foundation Trust,09/04/2021,(81200) Medical Surgical Supplies & Equipment,(id:639421) Cardiovascular Services,ABBOTT MEDICAL UK LTD,id:13939663  ,3240.00
Department of Health,Guys and St Thomas NHS Foundation Trust,16/04/2021,(81200) Medical Surgical Supplies & Equipment,(id:639421) Cardiovascular Services,COOK UK LTD,id:13954251  ,1980.00
Department of Health,Guys and St Thomas NHS Foundation Trust,09/04/2021,(81400) Medical Surgical Supplies & Equipment,(id:639421) Cardiovascular Services,NHS SUPPLY CHAIN (MAIDSTONE),id:13845954, 600.00
Department of Health,Guys and St Thomas NHS Foundation Trust,09/04/2021,(81200) Medical Surgical Supplies & Equipment,(id:41952) Cardiovascular Services,LABORIE MEDICAL TECHNOLOGIES UK,id:13971314   , 739.20
Department of Health,Guys and St Thomas NHS Foundation Trust,23/04/2021,(81200) Medical Surgical Supplies & Equipment,(id:41952) Cardiovascular Services,NHS SUPPLY CHAIN (MAIDSTONE),id:13933387 ,  85.14
Department of Health,Guys and St Thomas NHS Foundation Trust,16/04/2021,(81200) Medical Surgical Supplies & Equipment,(id:41950) Cardiovascular Services,FRONTIERE MEDICALE EUROPE,id:13946177    ,1476.00
Department of Health,Guys and St Thomas NHS Foundation Trust,01/04/2021,(81200) Medical Surgical Supplies & Equipment,(id:41950) Cardiovascular Services,ABBOTT MEDICAL UK LTD,id:13929219   , 726.00
Department of Health,Guys and St Thomas NHS Foundation Trust,28/04/2021,(81200) Medical Surgical Supplies & Equipment,(id:41950) Cardiovascular Services,ABBOTT MEDICAL UK LTD,id:14039095   , 960.00
Department of Health,Guys and St Thomas NHS Foundation Trust,23/04/2021,(81230) Medical Surgical Supplies & Equipment,(id:41950) Cardiovascular Services,COOK UK LTD,id:13894307   ,3120.00
Department of Health,Guys and St Thomas NHS Foundation Trust,23/04/2021,(81230) Medical Surgical Supplies & Equipment,(id:41950) Cardiovascular Services,COOK UK LTD,id:13882325   ,3120.00
Department of Health,Guys and St Thomas NHS Foundation Trust,16/04/2021,(81230) Medical Surgical Supplies & Equipment,(id:41950) Cardiovascular Services,FRONTMED TRADING LTD,id:13946634    ,7587.00
Department of Health,Guys and St Thomas NHS Foundation Trust,01/04/2021,(81000) Surgical Appliances,(id:41950) Cardiovascular Services,MEDI UK LTD,id:13943154 , 522.99
Department of Health,Guys and St Thomas NHS Foundation Trust,01/04/2021,(81000) Surgical Appliances,(id:41950) Cardiovascular Services,MEDI UK LTD,id:13944554 , 417.76
Department of Health,Guys and St Thomas NHS Foundation Trust,16/04/2021,(81000) Surgical Appliances,(id:41950) Cardiovascular Services,MEDI UK LTD,id:13979938 , 128.94
Department of Health,Guys and St Thomas NHS Foundation Trust,09/04/2021,(81100) Dressings,(id:41950) Cardiovascular Services,NHS SUPPLY CHAIN (MAIDSTONE),id:13763774    , 127.77
Department of Health,Guys and St Thomas NHS Foundation Trust,09/04/2021,(81100) Dressings,(id:41950) Cardiovascular Services,NHS SUPPLY CHAIN (MAIDSTONE),id:13894938    ,  25.14
Department of Health,Guys and St Thomas NHS Foundation Trust,09/04/2021,(81100) Dressings,(id:41950) Cardiovascular Services,NHS SUPPLY CHAIN (MAIDSTONE),id:13845954    ,  63.08
Department of Health,Guys and St Thomas NHS Foundation Trust,01/04/2021,(81100) Dressings,(id:41948) Cardiovascular Services,JOHNSON & JOHNSON MEDICAL LTD,id:13933917   ,5051.41
Department of Health,Guys and St Thomas NHS Foundation Trust,01/04/2021,(81200) Medical Surgical Supplies & Equipment,(id:41948) Cardiovascular Services,VASCUTEK LTD,id:13878754  , 628.80
Department of Health,Guys and St Thomas NHS Foundation Trust,09/04/2021,(81200) Medical Surgical Supplies & Equipment,(id:41948) Cardiovascular Services,VASCUTEK LTD,id:13929490  , 642.60
Department of Health,Guys and St Thomas NHS Foundation Trust,09/04/2021,(82800) Bedding & Linen,(id:41947) Cardiovascular Services,NHS SUPPLY CHAIN (MAIDSTONE),id:13894938   , 523.92
Department of Health,Guys and St Thomas NHS Foundation Trust,16/04/2021,(80010) Drug Costs,(id:42305) Cardiovascular Services,KINGS COLLEGE LONDON:03529700,id:13909234  ,   206942.76
Department of Health,Guys and St Thomas NHS Foundation Trust,09/04/2021,(82800) Bedding & Linen,(id:42305) Cardiovascular Services,NHS SUPPLY CHAIN (MAIDSTONE),id:13845954   , 140.47
Department of Health,Guys and St Thomas NHS Foundation Trust,01/04/2021,(83640) IT Costs,(id:42305) Cardiovascular Services,TELEOLOGIC LTD,id:13908755    ,3000.00
Department of Health,Guys and St Thomas NHS Foundation Trust,23/04/2021,(81700) Lab Equipment Purchase,(id:3923419) Cardiovascular Services,NHS SUPPLY CHAIN (MAIDSTONE),id:13933387    ,  18.18
Department of Health,Guys and St Thomas NHS Foundation Trust,28/04/2021,(54072) Technical Officers,(id:1243420) Cardiovascular Services,PRICEWATERHOUSECOOPERS LLP,id:14036654,4905.79
Department of Health,Guys and St Thomas NHS Foundation Trust,23/04/2021,(81200) Medical Surgical Supplies & Equipment,(id:1243420) Cardiovascular Services,NHS SUPPLY CHAIN (MAIDSTONE),id:13933387    , 847.20
Department of Health,Guys and St Thomas NHS Foundation Trust,23/04/2021,(82800) Bedding & Linen,(id:1243420) Cardiovascular Services,NHS SUPPLY CHAIN (MAIDSTONE),id:13933387 , 187.29
Department of Health,Guys and St Thomas NHS Foundation Trust,01/04/2021,(82600) Uniforms & Clothing,(id:1243419) Cardiovascular Services,WSR MEDICAL SOLUTIONS T/A ROTHBAND,id:13806215 , 599.64
Department of Health,Guys and St Thomas NHS Foundation Trust,16/04/2021,(89120) Other - Legal fees,(id:42304) Cardiovascular Services,BEACHCROFT LLP OFFICE ACCOUNT,id:13988134    , 637.20
Department of Health,Guys and St Thomas NHS Foundation Trust,28/04/2021,(81200) Medical Surgical Supplies & Equipment,(id:42303) Cardiovascular Services,SPACELABS HEALTHCARE LTD,id:14027754,5014.97
Department of Health,Guys and St Thomas NHS Foundation Trust,01/04/2021,(81200) Medical Surgical Supplies & Equipment,(id:42303) Cardiovascular Services,SPACELABS HEALTHCARE LTD,id:13928962,4829.23
Department of Health,Guys and St Thomas NHS Foundation Trust,01/04/2021,(81200) Medical Surgical Supplies & Equipment,(id:42303) Cardiovascular Services,SPACELABS HEALTHCARE LTD,id:13928961,    13479.00
Department of Health,Guys and St Thomas NHS Foundation Trust,20/04/2021,(54052) Technical Officers,(id:42303) Cardiovascular Services,PRICEWATERHOUSECOOPERS LLP,id:14004894  ,1000.99
Department of Health,Guys and St Thomas NHS Foundation Trust,28/04/2021,(54072) Technical Officers,(id:42303) Cardiovascular Services,PRICEWATERHOUSECOOPERS LLP,id:14036654  ,7754.28
Department of Health,Guys and St Thomas NHS Foundation Trust,20/04/2021,(54072) Technical Officers,(id:42303) Cardiovascular Services,PRICEWATERHOUSECOOPERS LLP,id:14004894  ,6818.07
Department of Health,Guys and St Thomas NHS Foundation Trust,28/04/2021,(51832) Physiotherapists,(id:42303) Cardiovascular Services,PRICEWATERHOUSECOOPERS LLP,id:14036654    ,2178.33
Department of Health,Guys and St Thomas NHS Foundation Trust,23/04/2021,(83400) Office Equipment,(id:42302) Cardiovascular Services,EDWARDS LIFESCIENCES LTD,id:14020035 ,    25530.00
Department of Health,Guys and St Thomas NHS Foundation Trust,23/04/2021,(83400) Office Equipment,(id:42302) Cardiovascular Services,EDWARDS LIFESCIENCES LTD,id:14020158 ,    25530.00
Department of Health,Guys and St Thomas NHS Foundation Trust,23/04/2021,(82800) Bedding & Linen,(id:42302) Cardiovascular Services,NHS SUPPLY CHAIN (MAIDSTONE),id:13946606   , 331.20
Department of Health,Guys and St Thomas NHS Foundation Trust,28/04/2021,(81200) Medical Surgical Supplies & Equipment,(id:42302) Cardiovascular Services,MERIT MEDICAL UK LTD,id:14013614    , 555.12
Department of Health,Guys and St Thomas NHS Foundation Trust,09/04/2021,(81200) Medical Surgical Supplies & Equipment,(id:42302) Cardiovascular Services,NHS SUPPLY CHAIN (MAIDSTONE),id:13763774 ,    14927.28
Department of Health,Guys and St Thomas NHS Foundation Trust,09/04/2021,(81200) Medical Surgical Supplies & Equipment,(id:42302) Cardiovascular Services,VOLCANO EUROPE BVBA/SPRL,id:13971954, 540.00
Department of Health,Guys and St Thomas NHS Foundation Trust,01/04/2021,(81200) Medical Surgical Supplies & Equipment,(id:42302) Cardiovascular Services,ABBOTT MEDICAL UK LTD,id:13929217   ,2220.00
Department of Health,Guys and St Thomas NHS Foundation Trust,09/04/2021,(81200) Medical Surgical Supplies & Equipment,(id:42302) Cardiovascular Services,TERUMO UK LTD,id:13929502 ,1080.00
Department of Health,Guys and St Thomas NHS Foundation Trust,16/04/2021,(81200) Medical Surgical Supplies & Equipment,(id:42302) Cardiovascular Services,BOSTON SCIENTIFIC LTD,id:13954356   ,1008.00
Department of Health,Guys and St Thomas NHS Foundation Trust,23/04/2021,(81200) Medical Surgical Supplies & Equipment,(id:42301) Cardiovascular Services,NHS SUPPLY CHAIN (MAIDSTONE),id:13946606 ,  92.79
Department of Health,Guys and St Thomas NHS Foundation Trust,09/04/2021,(81200) Medical Surgical Supplies & Equipment,(id:42301) Cardiovascular Services,NHS SUPPLY CHAIN (MAIDSTONE),id:13894938 ,  21.11
Department of Health,Guys and St Thomas NHS Foundation Trust,23/04/2021,(81700) Lab Equipment Purchase,(id:42301) Cardiovascular Services,NHS SUPPLY CHAIN (MAIDSTONE),id:13933387 ,  13.76
Department of Health,Guys and St Thomas NHS Foundation Trust,23/04/2021,(82800) Bedding & Linen,(id:42300) Cardiovascular Services,NHS SUPPLY CHAIN (MAIDSTONE),id:13946606   , 115.59
Department of Health,Guys and St Thomas NHS Foundation Trust,23/04/2021,(81225) Medical Surgical Supplies & Equipment,(id:42300) Cardiovascular Services,NHS SUPPLY CHAIN (MAIDSTONE),id:13933387 ,   9.70
Department of Health,Guys and St Thomas NHS Foundation Trust,23/04/2021,(81200) Medical Surgical Supplies & Equipment,(id:42300) Cardiovascular Services,NHS SUPPLY CHAIN (MAIDSTONE),id:13946606 , 570.81
Department of Health,Guys and St Thomas NHS Foundation Trust,23/04/2021,(81200) Medical Surgical Supplies & Equipment,(id:42300) Cardiovascular Services,NHS SUPPLY CHAIN (MAIDSTONE),id:13933387 , 709.50
Department of Health,Guys and St Thomas NHS Foundation Trust,23/04/2021,(81255) Medical Surgical Supplies & Equipment,(id:42300) Cardiovascular Services,NHS SUPPLY CHAIN (MAIDSTONE),id:13933387 ,   7.05
Department of Health,Guys and St Thomas NHS Foundation Trust,23/04/2021,(50522) Unqualified Nursing Staff,(id:42300) Cardiovascular Services,MSI GROUP LTD,id:14017084   , 255.97
Department of Health,Guys and St Thomas NHS Foundation Trust,09/04/2021,(81700) Lab Equipment Purchase,(id:42300) Cardiovascular Services,NHS SUPPLY CHAIN (MAIDSTONE),id:13845954 ,  81.75
Department of Health,Guys and St Thomas NHS Foundation Trust,09/04/2021,(81235) Medical Surgical Supplies & Equipment,(id:42298) Cardiovascular Services,NHS SUPPLY CHAIN (MAIDSTONE),id:13894938 ,  84.00
Department of Health,Guys and St Thomas NHS Foundation Trust,28/04/2021,(81200) Medical Surgical Supplies & Equipment,(id:42298) Cardiovascular Services,JOHNSON & JOHNSON MEDICAL LTD,id:13970992,2447.11
Department of Health,Guys and St Thomas NHS Foundation Trust,28/04/2021,(81200) Medical Surgical Supplies & Equipment,(id:42298) Cardiovascular Services,MEDTRONIC LTD,id:13984086 ,1080.00
Department of Health,Guys and St Thomas NHS Foundation Trust,28/04/2021,(81200) Medical Surgical Supplies & Equipment,(id:42298) Cardiovascular Services,MEDTRONIC LTD,id:13980384 , 960.00
Department of Health,Guys and St Thomas NHS Foundation Trust,16/04/2021,(81200) Medical Surgical Supplies & Equipment,(id:42298) Cardiovascular Services,SPECTRANETICS UK,id:13979654   ,4273.20
Department of Health,Guys and St Thomas NHS Foundation Trust,16/04/2021,(81200) Medical Surgical Supplies & Equipment,(id:42298) Cardiovascular Services,JOHNSON & JOHNSON MEDICAL LTD,id:13965066,2611.09
Department of Health,Guys and St Thomas NHS Foundation Trust,23/04/2021,(81200) Medical Surgical Supplies & Equipment,(id:42298) Cardiovascular Services,NHS SUPPLY CHAIN (MAIDSTONE),id:13946606 ,5994.68
Department of Health,Guys and St Thomas NHS Foundation Trust,23/04/2021,(81200) Medical Surgical Supplies & Equipment,(id:42298) Cardiovascular Services,JOHNSON & JOHNSON MEDICAL LTD,id:13958865,2477.11
Department of Health,Guys and St Thomas NHS Foundation Trust,01/04/2021,(81200) Medical Surgical Supplies & Equipment,(id:42298) Cardiovascular Services,TELEFLEX MEDICAL,id:13876454   ,1500.00
Department of Health,Guys and St Thomas NHS Foundation Trust,23/04/2021,(81100) Dressings,(id:42298) Cardiovascular Services,NHS SUPPLY CHAIN (MAIDSTONE),id:13933387    ,  20.33
Department of Health,Guys and St Thomas NHS Foundation Trust,16/04/2021,(81230) Medical Surgical Supplies & Equipment,(id:42298) Cardiovascular Services,ABBOTT MEDICAL UK LTD,id:13953896   , 648.00
Department of Health,Guys and St Thomas NHS Foundation Trust,16/04/2021,(81230) Medical Surgical Supplies & Equipment,(id:42298) Cardiovascular Services,ABBOTT MEDICAL UK LTD,id:13957914   , 516.00
Department of Health,Guys and St Thomas NHS Foundation Trust,23/04/2021,(82700) Uniforms & Clothing,(id:42298) Cardiovascular Services,NHS SUPPLY CHAIN (MAIDSTONE),id:13946606    ,  55.37
Department of Health,Guys and St Thomas NHS Foundation Trust,23/04/2021,(81700) Lab Equipment Purchase,(id:42298) Cardiovascular Services,NHS SUPPLY CHAIN (MAIDSTONE),id:13946606 ,1944.80
Department of Health,Guys and St Thomas NHS Foundation Trust,23/04/2021,(82600) Uniforms & Clothing,(id:42298) Cardiovascular Services,NHS SUPPLY CHAIN (MAIDSTONE),id:13933387    ,  33.48
Department of Health,Guys and St Thomas NHS Foundation Trust,01/04/2021,(81265) Medical Surgical Supplies & Equipment,(id:42298) Cardiovascular Services,EBR SYSTEMS INC,id:13893623    ,    13000.00
Department of Health,Guys and St Thomas NHS Foundation Trust,09/04/2021,(81265) Medical Surgical Supplies & Equipment,(id:42298) Cardiovascular Services,ABBOTT MEDICAL UK LTD,id:13929222   ,    27213.60
Department of Health,Guys and St Thomas NHS Foundation Trust,16/04/2021,(81240) Medical Surgical Supplies & Equipment,(id:42298) Cardiovascular Services,MEDTRONIC LTD,id:13923715 ,    14580.00
Department of Health,Guys and St Thomas NHS Foundation Trust,16/04/2021,(81240) Medical Surgical Supplies & Equipment,(id:42298) Cardiovascular Services,MEDTRONIC LTD,id:13940145 ,8340.00
Department of Health,Guys and St Thomas NHS Foundation Trust,16/04/2021,(81240) Medical Surgical Supplies & Equipment,(id:42298) Cardiovascular Services,MEDTRONIC LTD,id:13906113 ,5760.00
Department of Health,Guys and St Thomas NHS Foundation Trust,28/04/2021,(81240) Medical Surgical Supplies & Equipment,(id:42298) Cardiovascular Services,MEDTRONIC LTD,id:13984142 ,3900.00
Department of Health,Guys and St Thomas NHS Foundation Trust,23/04/2021,(81240) Medical Surgical Supplies & Equipment,(id:42298) Cardiovascular Services,MEDTRONIC LTD,id:13954802 ,    14433.60
Department of Health,Guys and St Thomas NHS Foundation Trust,23/04/2021,(81240) Medical Surgical Supplies & Equipment,(id:42298) Cardiovascular Services,ABBOTT MEDICAL UK LTD,id:13927985   ,7200.00
Department of Health,Guys and St Thomas NHS Foundation Trust,09/04/2021,(81240) Medical Surgical Supplies & Equipment,(id:42298) Cardiovascular Services,BOSTON SCIENTIFIC LTD,id:13887719   ,3014.40
Department of Health,Guys and St Thomas NHS Foundation Trust,09/04/2021,(81240) Medical Surgical Supplies & Equipment,(id:42298) Cardiovascular Services,MEDTRONIC LTD,id:13887676 ,4860.00
Department of Health,Guys and St Thomas NHS Foundation Trust,28/04/2021,(81240) Medical Surgical Supplies & Equipment,(id:42298) Cardiovascular Services,MEDTRONIC LTD,id:13366414 ,    17280.00
Department of Health,Guys and St Thomas NHS Foundation Trust,09/04/2021,(83400) Office Equipment,(id:42291) Cardiovascular Services,NHS SUPPLY CHAIN (MAIDSTONE),id:13845954  , 121.39
Department of Health,Guys and St Thomas NHS Foundation Trust,09/04/2021,(83400) Office Equipment,(id:42291) Cardiovascular Services,NHS SUPPLY CHAIN (MAIDSTONE),id:13763774  ,  65.32
Department of Health,Guys and St Thomas NHS Foundation Trust,09/04/2021,(82800) Bedding & Linen,(id:42291) Cardiovascular Services,NHS SUPPLY CHAIN (MAIDSTONE),id:13763774   ,  81.79
Department of Health,Guys and St Thomas NHS Foundation Trust,09/04/2021,(82800) Bedding & Linen,(id:42291) Cardiovascular Services,NHS SUPPLY CHAIN (MAIDSTONE),id:13894938   ,   4.49
Department of Health,Guys and St Thomas NHS Foundation Trust,09/04/2021,(81200) Medical Surgical Supplies & Equipment,(id:42291) Cardiovascular Services,NHS SUPPLY CHAIN (MAIDSTONE),id:13894938 , 415.63
Department of Health,Guys and St Thomas NHS Foundation Trust,09/04/2021,(81100) Dressings,(id:42291) Cardiovascular Services,NHS SUPPLY CHAIN (MAIDSTONE),id:13894938    ,  63.49
Department of Health,Guys and St Thomas NHS Foundation Trust,01/04/2021,(50522) Unqualified Nursing Staff,(id:42291) Cardiovascular Services,CARE PROVIDERS HEALTHCARE,id:13946394 , 265.31
Department of Health,Guys and St Thomas NHS Foundation Trust,09/04/2021,(81700) Lab Equipment Purchase,(id:42291) Cardiovascular Services,NHS SUPPLY CHAIN (MAIDSTONE),id:13894938 ,  21.40
Department of Health,Guys and St Thomas NHS Foundation Trust,23/04/2021,(81700) Lab Equipment Purchase,(id:42291) Cardiovascular Services,NHS SUPPLY CHAIN (MAIDSTONE),id:13933387 ,  16.08
Department of Health,Guys and St Thomas NHS Foundation Trust,09/04/2021,(81225) Medical Surgical Supplies & Equipment,(id:42291) Cardiovascular Services,NHS SUPPLY CHAIN (MAIDSTONE),id:13845954 ,  18.42
Department of Health,Guys and St Thomas NHS Foundation Trust,23/04/2021,(82700) Uniforms & Clothing,(id:42290) Cardiovascular Services,NHS SUPPLY CHAIN (MAIDSTONE),id:13946606    ,  31.68
Department of Health,Guys and St Thomas NHS Foundation Trust,23/04/2021,(83400) Office Equipment,(id:42290) Cardiovascular Services,NHS SUPPLY CHAIN (MAIDSTONE),id:13933387  ,  10.49
Department of Health,Guys and St Thomas NHS Foundation Trust,09/04/2021,(81200) Medical Surgical Supplies & Equipment,(id:42290) Cardiovascular Services,NHS SUPPLY CHAIN (MAIDSTONE),id:13763774 , 397.38
Department of Health,Guys and St Thomas NHS Foundation Trust,09/04/2021,(81200) Medical Surgical Supplies & Equipment,(id:42290) Cardiovascular Services,NHS SUPPLY CHAIN (MAIDSTONE),id:13894938 , 217.60
Department of Health,Guys and St Thomas NHS Foundation Trust,23/04/2021,(81200) Medical Surgical Supplies & Equipment,(id:42290) Cardiovascular Services,NHS SUPPLY CHAIN (MAIDSTONE),id:13933387 , 189.55
Department of Health,Guys and St Thomas NHS Foundation Trust,09/04/2021,(81100) Dressings,(id:42290) Cardiovascular Services,NHS SUPPLY CHAIN (MAIDSTONE),id:13763774    ,  61.47
Department of Health,Guys and St Thomas NHS Foundation Trust,16/04/2021,(50522) Unqualified Nursing Staff,(id:42290) Cardiovascular Services,MSI GROUP LTD,id:13993342   , 249.79
Department of Health,Guys and St Thomas NHS Foundation Trust,09/04/2021,(81255) Medical Surgical Supplies & Equipment,(id:42290) Cardiovascular Services,NHS SUPPLY CHAIN (MAIDSTONE),id:13845954 ,   3.37
Department of Health,Guys and St Thomas NHS Foundation Trust,09/04/2021,(81255) Medical Surgical Supplies & Equipment,(id:42290) Cardiovascular Services,NHS SUPPLY CHAIN (MAIDSTONE),id:13763774 ,   4.68
Department of Health,Guys and St Thomas NHS Foundation Trust,23/04/2021,(81400) Medical Surgical Supplies & Equipment,(id:1231419) Cardiovascular Services,MEDTRONIC LTD,id:13954754    ,    13000.00
Department of Health,Guys and St Thomas NHS Foundation Trust,28/04/2021,(81200) Medical Surgical Supplies & Equipment,(id:42293) Cardiovascular Services,EDWARDS LIFESCIENCES LTD,id:14036299, 960.00
Department of Health,Guys and St Thomas NHS Foundation Trust,16/04/2021,(81200) Medical Surgical Supplies & Equipment,(id:42293) Cardiovascular Services,GETINGE LTD,id:13933316   , 831.60
Department of Health,Guys and St Thomas NHS Foundation Trust,16/04/2021,(81200) Medical Surgical Supplies & Equipment,(id:42293) Cardiovascular Services,MEDTRONIC LTD,id:13923784 , 432.00
Department of Health,Guys and St Thomas NHS Foundation Trust,09/04/2021,(81000) Surgical Appliances,(id:42293) Cardiovascular Services,DESOUTTER MEDICAL LTD,id:13337988 ,4412.40
Department of Health,Guys and St Thomas NHS Foundation Trust,28/04/2021,(81280) Medical Surgical Supplies & Equipment,(id:42293) Cardiovascular Services,CRYOLIFE EUROPA LTD,id:14022734,2160.00
Department of Health,Guys and St Thomas NHS Foundation Trust,16/04/2021,(81280) Medical Surgical Supplies & Equipment,(id:42293) Cardiovascular Services,EDWARDS LIFESCIENCES LTD,id:13992114,2880.00
Department of Health,Guys and St Thomas NHS Foundation Trust,16/04/2021,(81280) Medical Surgical Supplies & Equipment,(id:42293) Cardiovascular Services,EDWARDS LIFESCIENCES LTD,id:13992115,1440.00
Department of Health,Guys and St Thomas NHS Foundation Trust,23/04/2021,(81280) Medical Surgical Supplies & Equipment,(id:42293) Cardiovascular Services,EDWARDS LIFESCIENCES LTD,id:14020036,2160.00
Department of Health,Guys and St Thomas NHS Foundation Trust,09/04/2021,(81200) Medical Surgical Supplies & Equipment,(id:42292) Cardiovascular Services,NHS SUPPLY CHAIN (MAIDSTONE),id:13845954 , 194.76
Department of Health,Guys and St Thomas NHS Foundation Trust,01/04/2021,(81200) Medical Surgical Supplies & Equipment,(id:42292) Cardiovascular Services,TERUMO UK LTD,id:13927857 , 672.00
Department of Health,Guys and St Thomas NHS Foundation Trust,16/04/2021,(81200) Medical Surgical Supplies & Equipment,(id:42292) Cardiovascular Services,GETINGE LTD,id:13958594   , 475.20
Department of Health,Guys and St Thomas NHS Foundation Trust,28/04/2021,(81400) Medical Surgical Supplies & Equipment,(id:42292) Cardiovascular Services,LIVANOVA UK LTD,id:13950577    ,    79567.67
Department of Health,Guys and St Thomas NHS Foundation Trust,28/04/2021,(81100) Dressings,(id:42292) Cardiovascular Services,GETINGE LTD,id:14042034 ,1098.00
Department of Health,Guys and St Thomas NHS Foundation Trust,01/04/2021,(81270) Medical Surgical Supplies & Equipment,(id:42292) Cardiovascular Services,GETINGE LTD,id:13933234   , 180.00
Department of Health,Guys and St Thomas NHS Foundation Trust,16/04/2021,(81270) Medical Surgical Supplies & Equipment,(id:42292) Cardiovascular Services,GETINGE LTD,id:13958614   , 360.00
Department of Health,Guys and St Thomas NHS Foundation Trust,09/04/2021,(82000) Provisions & Kitchens,(id:42287) Cardiovascular Services,NHS SUPPLY CHAIN (MAIDSTONE),id:13894938  , 128.61
Department of Health,Guys and St Thomas NHS Foundation Trust,23/04/2021,(83400) Office Equipment,(id:42287) Cardiovascular Services,NHS SUPPLY CHAIN (MAIDSTONE),id:13933387  , 239.04
Department of Health,Guys and St Thomas NHS Foundation Trust,23/04/2021,(82800) Bedding & Linen,(id:42287) Cardiovascular Services,NHS SUPPLY CHAIN (MAIDSTONE),id:13946606   , 149.31
Department of Health,Guys and St Thomas NHS Foundation Trust,09/04/2021,(81100) Dressings,(id:42287) Cardiovascular Services,NHS SUPPLY CHAIN (MAIDSTONE),id:13763774    , 182.78
Department of Health,Guys and St Thomas NHS Foundation Trust,09/04/2021,(81255) Medical Surgical Supplies & Equipment,(id:42287) Cardiovascular Services,NHS SUPPLY CHAIN (MAIDSTONE),id:13763774 ,  16.44
Department of Health,Guys and St Thomas NHS Foundation Trust,09/04/2021,(81200) Medical Surgical Supplies & Equipment,(id:41863) PACCS,RESMED (UK) LTD,id:13960794  ,3448.80
Department of Health,Guys and St Thomas NHS Foundation Trust,09/04/2021,(81200) Medical Surgical Supplies & Equipment,(id:41863) PACCS,RESMED (UK) LTD,id:13959035  ,4329.60
Department of Health,Guys and St Thomas NHS Foundation Trust,09/04/2021,(81200) Medical Surgical Supplies & Equipment,(id:41863) PACCS,RESMED (UK) LTD,id:13959854  ,4800.00
Department of Health,Guys and St Thomas NHS Foundation Trust,09/04/2021,(81200) Medical Surgical Supplies & Equipment,(id:41863) PACCS,RESMED (UK) LTD,id:13963234  ,4800.00
Department of Health,Guys and St Thomas NHS Foundation Trust,09/04/2021,(81200) Medical Surgical Supplies & Equipment,(id:41863) PACCS,RESMED (UK) LTD,id:13959234  ,4800.00
Department of Health,Guys and St Thomas NHS Foundation Trust,16/04/2021,(81200) Medical Surgical Supplies & Equipment,(id:41863) PACCS,RESMED (UK) LTD,id:13933795  ,1920.00
Department of Health,Guys and St Thomas NHS Foundation Trust,16/04/2021,(81200) Medical Surgical Supplies & Equipment,(id:41863) PACCS,RESMED (UK) LTD,id:13956115  ,    -1920.00
Department of Health,Guys and St Thomas NHS Foundation Trust,01/04/2021,(81200) Medical Surgical Supplies & Equipment,(id:41863) PACCS,RESMED (UK) LTD,id:13947634  ,4800.00
Department of Health,Guys and St Thomas NHS Foundation Trust,23/04/2021,(81900) Lab Equipment Purchase,(id:41863) PACCS,VIAPATH ANALYTICS LLP,id:13932954 ,3854.00
Department of Health,Guys and St Thomas NHS Foundation Trust,23/04/2021,(81900) Lab Equipment Purchase,(id:41863) PACCS,VIAPATH ANALYTICS LLP,id:13650094 ,3854.00
Department of Health,Guys and St Thomas NHS Foundation Trust,09/04/2021,(82000) Provisions & Kitchens,(id:41863) PACCS,NHS SUPPLY CHAIN (MAIDSTONE),id:13845954,   9.22
Department of Health,Guys and St Thomas NHS Foundation Trust,23/04/2021,(82600) Uniforms & Clothing,(id:41935) PACCS,NHS SUPPLY CHAIN (MAIDSTONE),id:13933387  ,  47.88
Department of Health,Guys and St Thomas NHS Foundation Trust,09/04/2021,(82700) Uniforms & Clothing,(id:41935) PACCS,NHS SUPPLY CHAIN (MAIDSTONE),id:13894938  ,  31.68
Department of Health,Guys and St Thomas NHS Foundation Trust,01/04/2021,(50562) Qualified Nursing Staff,(id:41935) PACCS,JUST NURSES (NURSCO HEALTHCARE LIMITED),id:13946270  , 668.38
Department of Health,Guys and St Thomas NHS Foundation Trust,09/04/2021,(81100) Dressings,(id:41935) PACCS,NHS SUPPLY CHAIN (MAIDSTONE),id:13763774  , 401.21
Department of Health,Guys and St Thomas NHS Foundation Trust,09/04/2021,(81100) Dressings,(id:41935) PACCS,NHS SUPPLY CHAIN (MAIDSTONE),id:13894938  , 200.83
Department of Health,Guys and St Thomas NHS Foundation Trust,23/04/2021,(81100) Dressings,(id:41935) PACCS,NHS SUPPLY CHAIN (MAIDSTONE),id:13933387  , 173.44
